{"text_format":"1","workbook":"xlsx","n_sheets":16,"sheets":["Ovladani_dokumentu","Zakl_udaje","Majetek_info_o_riziku","Majetek","Stroje","Stroje_vc_zivlu","Elektronika","Elektronika_vc_zivlu","Preruseni_provozu_info_PC","Preruseni_pomocny_vypocet","Preruseni_provozu_zivel","Preruseni_provozu_techn_rizika","Odpovednost","Vyrobci_distributori_dovozci","Hotely_restaurace","List_seznamy_bunky"],"not_rendered":{"charts":0,"images":7,"macros":1,"external_links":1,"defined_names":128,"comments":0,"pivot_tables":0},"unopened":[],"bounds":{"document_bytes":16777216,"sheet_cells":100000,"rows_first":2000,"rows_last":500,"rows_between":2000,"halvings":0,"cell_chars":16384,"cell_head_chars":4096},"cells_cut":0,"cells_raw":0,"read":"whole","date_system":"1900"}

{"sheet":"Ovladani_dokumentu","index":0,"n_rows":31,"n_cols":21,"rows_kept":31,"cut":false,"hidden":true,"merged":[[6,0,6,4],[8,0,8,4],[15,2,15,3],[18,2,18,3],[20,2,20,3],[10,0,10,1],[11,0,11,1],[12,0,12,1],[10,3,10,4],[11,3,11,4],[12,3,12,4]]}
[null,null,null,null,null,null,null,null,null,null,null,null,null,null,null,null,null,null,"Verze k odeslání klientovi","Verze zpracovat","Verze k odeslání do pojišťovny (skrýt nevyplněné informace)"]
[null,null,null,null,null,null,null,"s provizí makléře","měsíční",null,null,null,null,null,null,null,null,null,1,1,1]
[null,null,null,null,null,null,null,"bez provize makléře","čtvrtletní",null,null,null,null,null,null,null,null,null,1,1,1]
[null,null,null,null,null,null,null,null,"pololetní",null,null,null,null,null,null,null,null,null,1,1,1]
[null,null,null,null,null,null,null,null,"roční",null,null,null,null,null,null,null,null,null,1,1,1]
[null,null,null,null,null,null,null,null,null,null,null,null,null,null,null,null,null,null,1,1,1]
["Ovládaní profilu klienta",null,null,null,null,null,null,null,null,null,null,null,null,null,null,null,null,null,1,1,1]
[]
["Tento list před odesláním dokumentu 3. straně (klientovi, pojišťovně atd.) vždy skryjte, je určen pouze pro naši potřebu."]
[]
["IČO pojistníka/ pojištěného:",null,"00266621"]
["IČO dalšího pojištěného:"]
["IČO dalšího pojištěného:"]
[]
[]
["Chci řešit tato pojištění:",null,"- pojištění majetku (živel, odcizení, vandalismus, skla, věci během silniční přepravy)"]
[null,null,"Je u klienta k dispozici riziková zpráva?"]
[null,null,"- pojištění strojů"]
[null,null,"Je (nebo bude) pojištění živlu a odcizení pro stroje sjednáno v rámci pojištění majetku?"]
[null,null,"- pojištění elektroniky"]
[null,null,"Je (nebo bude) pojištění živlu a odcizení pro elektroniku sjednáno v rámci pojištění majetku?"]
[null,null,"- živelní přerušení provozu"]
[null,null,"- pojištění přerušení provozu z důvodu technických rizik"]
[null,null,"- pojištění odpovědnosti"]
[null,null,"Jedná se o výrobce, distributora nebo dovozce výrobků?"]
[null,null,"Jedná se o hotel, ubytovací středisko nebo restauraci?"]
[]
[]
["Chci provést s dokumentem tuto akci:",null,"- zobrazit verzi k odeslání klientovi (tato verze skryje i list Ovládání dokumentu)"]
[null,null,"- zobrazit verzi  ke zpracování"]
[null,null,"- zobrazit verzi k odeslání do pojišťoven (tato verze skryje nevyplněné údaje a list Ovládání dokumentu) "]

{"sheet":"Zakl_udaje","index":1,"n_rows":90,"n_cols":22,"rows_kept":90,"cut":false,"hidden":false,"merged":[[66,16363,66,16370],[66,16371,66,16378],[68,0,68,3],[71,2,71,3],[72,2,72,3],[66,16323,66,16330],[66,16331,66,16338],[66,16339,66,16346],[66,16347,66,16354],[66,16355,66,16362],[66,16283,66,16290],[66,16291,66,16298],[66,16299,66,16306],[66,16307,66,16314],[66,16315,66,16322],[66,16243,66,16250],[66,16251,66,16258],[66,16259,66,16266],[66,16267,66,16274],[66,16275,66,16282],[66,16203,66,16210],[66,16211,66,16218],[66,16219,66,16226],[66,16227,66,16234],[66,16235,66,16242],[66,16163,66,16170],[66,16171,66,16178],[66,16179,66,16186],[66,16187,66,16194],[66,16195,66,16202],[66,16123,66,16130],[66,16131,66,16138],[66,16139,66,16146],[66,16147,66,16154],[66,16155,66,16162],[66,16083,66,16090],[66,16091,66,16098],[66,16099,66,16106],[66,16107,66,16114],[66,16115,66,16122],[66,16043,66,16050],[66,16051,66,16058],[66,16059,66,16066],[66,16067,66,16074],[66,16075,66,16082],[66,16003,66,16010],[66,16011,66,16018],[66,16019,66,16026],[66,16027,66,16034],[66,16035,66,16042],[66,15963,66,15970],[66,15971,66,15978],[66,15979,66,15986],[66,15987,66,15994],[66,15995,66,16002],[66,15923,66,15930],[66,15931,66,15938],[66,15939,66,15946],[66,15947,66,15954],[66,15955,66,15962],[66,15883,66,15890],[66,15891,66,15898],[66,15899,66,15906],[66,15907,66,15914],[66,15915,66,15922],[66,15843,66,15850],[66,15851,66,15858],[66,15859,66,15866],[66,15867,66,15874],[66,15875,66,15882],[66,15803,66,15810],[66,15811,66,15818],[66,15819,66,15826],[66,15827,66,15834],[66,15835,66,15842],[66,15763,66,15770],[66,15771,66,15778],[66,15779,66,15786],[66,15787,66,15794],[66,15795,66,15802],[66,15723,66,15730],[66,15731,66,15738],[66,15739,66,15746],[66,15747,66,15754],[66,15755,66,15762],[66,15683,66,15690],[66,15691,66,15698],[66,15699,66,15706],[66,15707,66,15714],[66,15715,66,15722],[66,15643,66,15650],[66,15651,66,15658],[66,15659,66,15666],[66,15667,66,15674],[66,15675,66,15682],[66,15603,66,15610],[66,15611,66,15618],[66,15619,66,15626],[66,15627,66,15634],[66,15635,66,15642],[66,15563,66,15570],[66,15571,66,15578],[66,15579,66,15586],[66,15587,66,15594],[66,15595,66,15602],[66,15523,66,15530],[66,15531,66,15538],[66,15539,66,15546],[66,15547,66,15554],[66,15555,66,15562],[66,15483,66,15490],[66,15491,66,15498],[66,15499,66,15506],[66,15507,66,15514],[66,15515,66,15522],[66,15443,66,15450],[66,15451,66,15458],[66,15459,66,15466],[66,15467,66,15474],[66,15475,66,15482],[66,15403,66,15410],[66,15411,66,15418],[66,15419,66,15426],[66,15427,66,15434],[66,15435,66,15442],[66,15363,66,15370],[66,15371,66,15378],[66,15379,66,15386],[66,15387,66,15394],[66,15395,66,15402],[66,15323,66,15330],[66,15331,66,15338],[66,15339,66,15346],[66,15347,66,15354],[66,15355,66,15362],[66,15283,66,15290],[66,15291,66,15298],[66,15299,66,15306],[66,15307,66,15314],[66,15315,66,15322],[66,15243,66,15250],[66,15251,66,15258],[66,15259,66,15266],[66,15267,66,15274],[66,15275,66,15282],[66,15203,66,15210],[66,15211,66,15218],[66,15219,66,15226],[66,15227,66,15234],[66,15235,66,15242],[66,15163,66,15170],[66,15171,66,15178],[66,15179,66,15186],[66,15187,66,15194],[66,15195,66,15202],[66,15123,66,15130],[66,15131,66,15138],[66,15139,66,15146],[66,15147,66,15154],[66,15155,66,15162],[66,15083,66,15090],[66,15091,66,15098],[66,15099,66,15106],[66,15107,66,15114],[66,15115,66,15122],[66,15043,66,15050],[66,15051,66,15058],[66,15059,66,15066],[66,15067,66,15074],[66,15075,66,15082],[66,15003,66,15010],[66,15011,66,15018],[66,15019,66,15026],[66,15027,66,15034],[66,15035,66,15042],[66,14963,66,14970],[66,14971,66,14978],[66,14979,66,14986],[66,14987,66,14994],[66,14995,66,15002],[66,14923,66,14930],[66,14931,66,14938],[66,14939,66,14946],[66,14947,66,14954],[66,14955,66,14962],[66,14883,66,14890],[66,14891,66,14898],[66,14899,66,14906],[66,14907,66,14914],[66,14915,66,14922],[66,14843,66,14850],[66,14851,66,14858],[66,14859,66,14866],[66,14867,66,14874],[66,14875,66,14882],[66,14803,66,14810],[66,14811,66,14818],[66,14819,66,14826],[66,14827,66,14834],[66,14835,66,14842],[66,14763,66,14770],[66,14771,66,14778],[66,14779,66,14786],[66,14787,66,14794],[66,14795,66,14802],[66,14723,66,14730],[66,14731,66,14738],[66,14739,66,14746],[66,14747,66,14754],[66,14755,66,14762],[66,14683,66,14690],[66,14691,66,14698],[66,14699,66,14706],[66,14707,66,14714],[66,14715,66,14722],[66,14643,66,14650],[66,14651,66,14658],[66,14659,66,14666],[66,14667,66,14674],[66,14675,66,14682],[66,14603,66,14610],[66,14611,66,14618],[66,14619,66,14626],[66,14627,66,14634],[66,14635,66,14642],[66,14563,66,14570],[66,14571,66,14578],[66,14579,66,14586],[66,14587,66,14594],[66,14595,66,14602],[66,14523,66,14530],[66,14531,66,14538],[66,14539,66,14546],[66,14547,66,14554],[66,14555,66,14562],[66,14483,66,14490],[66,14491,66,14498],[66,14499,66,14506],[66,14507,66,14514],[66,14515,66,14522],[66,14443,66,14450],[66,14451,66,14458],[66,14459,66,14466],[66,14467,66,14474],[66,14475,66,14482],[66,14403,66,14410],[66,14411,66,14418],[66,14419,66,14426],[66,14427,66,14434],[66,14435,66,14442],[66,14363,66,14370],[66,14371,66,14378],[66,14379,66,14386],[66,14387,66,14394],[66,14395,66,14402],[66,14323,66,14330],[66,14331,66,14338],[66,14339,66,14346],[66,14347,66,14354],[66,14355,66,14362],[66,14283,66,14290],[66,14291,66,14298],[66,14299,66,14306],[66,14307,66,14314],[66,14315,66,14322],[66,14243,66,14250],[66,14251,66,14258],[66,14259,66,14266],[66,14267,66,14274],[66,14275,66,14282],[66,14203,66,14210],[66,14211,66,14218],[66,14219,66,14226],[66,14227,66,14234],[66,14235,66,14242],[66,14163,66,14170],[66,14171,66,14178],[66,14179,66,14186],[66,14187,66,14194],[66,14195,66,14202],[66,14123,66,14130],[66,14131,66,14138],[66,14139,66,14146],[66,14147,66,14154],[66,14155,66,14162],[66,14083,66,14090],[66,14091,66,14098],[66,14099,66,14106],[66,14107,66,14114],[66,14115,66,14122],[66,14043,66,14050],[66,14051,66,14058],[66,14059,66,14066],[66,14067,66,14074],[66,14075,66,14082],[66,14003,66,14010],[66,14011,66,14018],[66,14019,66,14026],[66,14027,66,14034],[66,14035,66,14042],[66,13963,66,13970],[66,13971,66,13978],[66,13979,66,13986],[66,13987,66,13994],[66,13995,66,14002],[66,13923,66,13930],[66,13931,66,13938],[66,13939,66,13946],[66,13947,66,13954],[66,13955,66,13962],[66,13883,66,13890],[66,13891,66,13898],[66,13899,66,13906],[66,13907,66,13914],[66,13915,66,13922],[66,13843,66,13850],[66,13851,66,13858],[66,13859,66,13866],[66,13867,66,13874],[66,13875,66,13882],[66,13803,66,13810],[66,13811,66,13818],[66,13819,66,13826],[66,13827,66,13834],[66,13835,66,13842],[66,13763,66,13770],[66,13771,66,13778],[66,13779,66,13786],[66,13787,66,13794],[66,13795,66,13802],[66,13723,66,13730],[66,13731,66,13738],[66,13739,66,13746],[66,13747,66,13754],[66,13755,66,13762],[66,13683,66,13690],[66,13691,66,13698],[66,13699,66,13706],[66,13707,66,13714],[66,13715,66,13722],[66,13643,66,13650],[66,13651,66,13658],[66,13659,66,13666],[66,13667,66,13674],[66,13675,66,13682],[66,13603,66,13610],[66,13611,66,13618],[66,13619,66,13626],[66,13627,66,13634],[66,13635,66,13642],[66,13563,66,13570],[66,13571,66,13578],[66,13579,66,13586],[66,13587,66,13594],[66,13595,66,13602],[66,13523,66,13530],[66,13531,66,13538],[66,13539,66,13546],[66,13547,66,13554],[66,13555,66,13562],[66,13483,66,13490],[66,13491,66,13498],[66,13499,66,13506],[66,13507,66,13514],[66,13515,66,13522],[66,13443,66,13450],[66,13451,66,13458],[66,13459,66,13466],[66,13467,66,13474],[66,13475,66,13482],[66,13403,66,13410],[66,13411,66,13418],[66,13419,66,13426],[66,13427,66,13434],[66,13435,66,13442],[66,13363,66,13370],[66,13371,66,13378],[66,13379,66,13386],[66,13387,66,13394],[66,13395,66,13402],[66,13323,66,13330],[66,13331,66,13338],[66,13339,66,13346],[66,13347,66,13354],[66,13355,66,13362],[66,13283,66,13290],[66,13291,66,13298],[66,13299,66,13306],[66,13307,66,13314],[66,13315,66,13322],[66,13243,66,13250],[66,13251,66,13258],[66,13259,66,13266],[66,13267,66,13274],[66,13275,66,13282],[66,13203,66,13210],[66,13211,66,13218],[66,13219,66,13226],[66,13227,66,13234],[66,13235,66,13242],[66,13163,66,13170],[66,13171,66,13178],[66,13179,66,13186],[66,13187,66,13194],[66,13195,66,13202],[66,13123,66,13130],[66,13131,66,13138],[66,13139,66,13146],[66,13147,66,13154],[66,13155,66,13162],[66,13083,66,13090],[66,13091,66,13098],[66,13099,66,13106],[66,13107,66,13114],[66,13115,66,13122],[66,13043,66,13050],[66,13051,66,13058],[66,13059,66,13066],[66,13067,66,13074],[66,13075,66,13082],[66,13003,66,13010],[66,13011,66,13018],[66,13019,66,13026],[66,13027,66,13034],[66,13035,66,13042],[66,12963,66,12970],[66,12971,66,12978],[66,12979,66,12986],[66,12987,66,12994],[66,12995,66,13002],[66,12923,66,12930],[66,12931,66,12938],[66,12939,66,12946],[66,12947,66,12954],[66,12955,66,12962],[66,12883,66,12890],[66,12891,66,12898],[66,12899,66,12906],[66,12907,66,12914],[66,12915,66,12922],[66,12843,66,12850],[66,12851,66,12858],[66,12859,66,12866],[66,12867,66,12874],[66,12875,66,12882],[66,12803,66,12810],[66,12811,66,12818],[66,12819,66,12826],[66,12827,66,12834],[66,12835,66,12842],[66,12763,66,12770],[66,12771,66,12778],[66,12779,66,12786],[66,12787,66,12794],[66,12795,66,12802],[66,12723,66,12730],[66,12731,66,12738],[66,12739,66,12746],[66,12747,66,12754],[66,12755,66,12762],[66,12683,66,12690],[66,12691,66,12698],[66,12699,66,12706],[66,12707,66,12714],[66,12715,66,12722],[66,12643,66,12650],[66,12651,66,12658],[66,12659,66,12666],[66,12667,66,12674],[66,12675,66,12682],[66,12603,66,12610],[66,12611,66,12618],[66,12619,66,12626],[66,12627,66,12634],[66,12635,66,12642],[66,12563,66,12570],[66,12571,66,12578],[66,12579,66,12586],[66,12587,66,12594],[66,12595,66,12602],[66,12523,66,12530],[66,12531,66,12538],[66,12539,66,12546],[66,12547,66,12554],[66,12555,66,12562],[66,12483,66,12490],[66,12491,66,12498],[66,12499,66,12506],[66,12507,66,12514],[66,12515,66,12522],[66,12443,66,12450],[66,12451,66,12458],[66,12459,66,12466],[66,12467,66,12474],[66,12475,66,12482],[66,12403,66,12410],[66,12411,66,12418],[66,12419,66,12426],[66,12427,66,12434],[66,12435,66,12442],[66,12363,66,12370],[66,12371,66,12378],[66,12379,66,12386],[66,12387,66,12394],[66,12395,66,12402],[66,12323,66,12330],[66,12331,66,12338],[66,12339,66,12346],[66,12347,66,12354],[66,12355,66,12362],[66,12283,66,12290],[66,12291,66,12298],[66,12299,66,12306],[66,12307,66,12314],[66,12315,66,12322],[66,12243,66,12250],[66,12251,66,12258],[66,12259,66,12266],[66,12267,66,12274],[66,12275,66,12282],[66,12203,66,12210],[66,12211,66,12218],[66,12219,66,12226],[66,12227,66,12234],[66,12235,66,12242],[66,12163,66,12170],[66,12171,66,12178],[66,12179,66,12186],[66,12187,66,12194],[66,12195,66,12202],[66,12123,66,12130],[66,12131,66,12138],[66,12139,66,12146],[66,12147,66,12154],[66,12155,66,12162],[66,12083,66,12090],[66,12091,66,12098],[66,12099,66,12106],[66,12107,66,12114],[66,12115,66,12122],[66,12043,66,12050],[66,12051,66,12058],[66,12059,66,12066],[66,12067,66,12074],[66,12075,66,12082],[66,12003,66,12010],[66,12011,66,12018],[66,12019,66,12026],[66,12027,66,12034],[66,12035,66,12042],[66,11963,66,11970],[66,11971,66,11978],[66,11979,66,11986],[66,11987,66,11994],[66,11995,66,12002],[66,11923,66,11930],[66,11931,66,11938],[66,11939,66,11946],[66,11947,66,11954],[66,11955,66,11962],[66,11883,66,11890],[66,11891,66,11898],[66,11899,66,11906],[66,11907,66,11914],[66,11915,66,11922],[66,11843,66,11850],[66,11851,66,11858],[66,11859,66,11866],[66,11867,66,11874],[66,11875,66,11882],[66,11803,66,11810],[66,11811,66,11818],[66,11819,66,11826],[66,11827,66,11834],[66,11835,66,11842],[66,11763,66,11770],[66,11771,66,11778],[66,11779,66,11786],[66,11787,66,11794],[66,11795,66,11802],[66,11723,66,11730],[66,11731,66,11738],[66,11739,66,11746],[66,11747,66,11754],[66,11755,66,11762],[66,11683,66,11690],[66,11691,66,11698],[66,11699,66,11706],[66,11707,66,11714],[66,11715,66,11722],[66,11643,66,11650],[66,11651,66,11658],[66,11659,66,11666],[66,11667,66,11674],[66,11675,66,11682],[66,11603,66,11610],[66,11611,66,11618],[66,11619,66,11626],[66,11627,66,11634],[66,11635,66,11642],[66,11563,66,11570],[66,11571,66,11578],[66,11579,66,11586],[66,11587,66,11594],[66,11595,66,11602],[66,11523,66,11530],[66,11531,66,11538],[66,11539,66,11546],[66,11547,66,11554],[66,11555,66,11562],[66,11483,66,11490],[66,11491,66,11498],[66,11499,66,11506],[66,11507,66,11514],[66,11515,66,11522],[66,11443,66,11450],[66,11451,66,11458],[66,11459,66,11466],[66,11467,66,11474],[66,11475,66,11482],[66,11403,66,11410],[66,11411,66,11418],[66,11419,66,11426],[66,11427,66,11434],[66,11435,66,11442],[66,11363,66,11370],[66,11371,66,11378],[66,11379,66,11386],[66,11387,66,11394],[66,11395,66,11402],[66,11323,66,11330],[66,11331,66,11338],[66,11339,66,11346],[66,11347,66,11354],[66,11355,66,11362],[66,11283,66,11290],[66,11291,66,11298],[66,11299,66,11306],[66,11307,66,11314],[66,11315,66,11322],[66,11243,66,11250],[66,11251,66,11258],[66,11259,66,11266],[66,11267,66,11274],[66,11275,66,11282],[66,11203,66,11210],[66,11211,66,11218],[66,11219,66,11226],[66,11227,66,11234],[66,11235,66,11242],[66,11163,66,11170],[66,11171,66,11178],[66,11179,66,11186],[66,11187,66,11194],[66,11195,66,11202],[66,11123,66,11130],[66,11131,66,11138],[66,11139,66,11146],[66,11147,66,11154],[66,11155,66,11162],[66,11083,66,11090],[66,11091,66,11098],[66,11099,66,11106],[66,11107,66,11114],[66,11115,66,11122],[66,11043,66,11050],[66,11051,66,11058],[66,11059,66,11066],[66,11067,66,11074],[66,11075,66,11082],[66,11003,66,11010],[66,11011,66,11018],[66,11019,66,11026],[66,11027,66,11034],[66,11035,66,11042],[66,10963,66,10970],[66,10971,66,10978],[66,10979,66,10986],[66,10987,66,10994],[66,10995,66,11002],[66,10923,66,10930],[66,10931,66,10938],[66,10939,66,10946],[66,10947,66,10954],[66,10955,66,10962],[66,10883,66,10890],[66,10891,66,10898],[66,10899,66,10906],[66,10907,66,10914],[66,10915,66,10922],[66,10843,66,10850],[66,10851,66,10858],[66,10859,66,10866],[66,10867,66,10874],[66,10875,66,10882],[66,10803,66,10810],[66,10811,66,10818],[66,10819,66,10826],[66,10827,66,10834],[66,10835,66,10842],[66,10763,66,10770],[66,10771,66,10778],[66,10779,66,10786],[66,10787,66,10794],[66,10795,66,10802],[66,10723,66,10730],[66,10731,66,10738],[66,10739,66,10746],[66,10747,66,10754],[66,10755,66,10762],[66,10683,66,10690],[66,10691,66,10698],[66,10699,66,10706],[66,10707,66,10714],[66,10715,66,10722],[66,10643,66,10650],[66,10651,66,10658],[66,10659,66,10666],[66,10667,66,10674],[66,10675,66,10682],[66,10603,66,10610],[66,10611,66,10618],[66,10619,66,10626],[66,10627,66,10634],[66,10635,66,10642],[66,10563,66,10570],[66,10571,66,10578],[66,10579,66,10586],[66,10587,66,10594],[66,10595,66,10602],[66,10523,66,10530],[66,10531,66,10538],[66,10539,66,10546],[66,10547,66,10554],[66,10555,66,10562],[66,10483,66,10490],[66,10491,66,10498],[66,10499,66,10506],[66,10507,66,10514],[66,10515,66,10522],[66,10443,66,10450],[66,10451,66,10458],[66,10459,66,10466],[66,10467,66,10474],[66,10475,66,10482],[66,10403,66,10410],[66,10411,66,10418],[66,10419,66,10426],[66,10427,66,10434],[66,10435,66,10442],[66,10363,66,10370],[66,10371,66,10378],[66,10379,66,10386],[66,10387,66,10394],[66,10395,66,10402],[66,10323,66,10330],[66,10331,66,10338],[66,10339,66,10346],[66,10347,66,10354],[66,10355,66,10362],[66,10283,66,10290],[66,10291,66,10298],[66,10299,66,10306],[66,10307,66,10314],[66,10315,66,10322],[66,10243,66,10250],[66,10251,66,10258],[66,10259,66,10266],[66,10267,66,10274],[66,10275,66,10282],[66,10203,66,10210],[66,10211,66,10218],[66,10219,66,10226],[66,10227,66,10234],[66,10235,66,10242],[66,10163,66,10170],[66,10171,66,10178],[66,10179,66,10186],[66,10187,66,10194],[66,10195,66,10202],[66,10123,66,10130],[66,10131,66,10138],[66,10139,66,10146],[66,10147,66,10154],[66,10155,66,10162],[66,10083,66,10090],[66,10091,66,10098],[66,10099,66,10106],[66,10107,66,10114],[66,10115,66,10122],[66,10043,66,10050],[66,10051,66,10058],[66,10059,66,10066],[66,10067,66,10074],[66,10075,66,10082],[66,10003,66,10010],[66,10011,66,10018],[66,10019,66,10026],[66,10027,66,10034],[66,10035,66,10042],[66,9963,66,9970],[66,9971,66,9978],[66,9979,66,9986],[66,9987,66,9994],[66,9995,66,10002],[66,9923,66,9930],[66,9931,66,9938],[66,9939,66,9946],[66,9947,66,9954],[66,9955,66,9962],[66,9883,66,9890],[66,9891,66,9898],[66,9899,66,9906],[66,9907,66,9914],[66,9915,66,9922],[66,9843,66,9850],[66,9851,66,9858],[66,9859,66,9866],[66,9867,66,9874],[66,9875,66,9882],[66,9803,66,9810],[66,9811,66,9818],[66,9819,66,9826],[66,9827,66,9834],[66,9835,66,9842],[66,9763,66,9770],[66,9771,66,9778],[66,9779,66,9786],[66,9787,66,9794],[66,9795,66,9802],[66,9723,66,9730],[66,9731,66,9738],[66,9739,66,9746],[66,9747,66,9754],[66,9755,66,9762],[66,9683,66,9690],[66,9691,66,9698],[66,9699,66,9706],[66,9707,66,9714],[66,9715,66,9722],[66,9643,66,9650],[66,9651,66,9658],[66,9659,66,9666],[66,9667,66,9674],[66,9675,66,9682],[66,9603,66,9610],[66,9611,66,9618],[66,9619,66,9626],[66,9627,66,9634],[66,9635,66,9642],[66,9563,66,9570],[66,9571,66,9578],[66,9579,66,9586],[66,9587,66,9594],[66,9595,66,9602],[66,9523,66,9530],[66,9531,66,9538],[66,9539,66,9546],[66,9547,66,9554],[66,9555,66,9562],[66,9483,66,9490],[66,9491,66,9498],[66,9499,66,9506],[66,9507,66,9514],[66,9515,66,9522],[66,9443,66,9450],[66,9451,66,9458],[66,9459,66,9466],[66,9467,66,9474],[66,9475,66,9482],[66,9403,66,9410],[66,9411,66,9418],[66,9419,66,9426],[66,9427,66,9434],[66,9435,66,9442],[66,9363,66,9370],[66,9371,66,9378],[66,9379,66,9386],[66,9387,66,9394],[66,9395,66,9402],[66,9323,66,9330],[66,9331,66,9338],[66,9339,66,9346],[66,9347,66,9354],[66,9355,66,9362],[66,9283,66,9290],[66,9291,66,9298],[66,9299,66,9306],[66,9307,66,9314],[66,9315,66,9322],[66,9243,66,9250],[66,9251,66,9258],[66,9259,66,9266],[66,9267,66,9274],[66,9275,66,9282],[66,9203,66,9210],[66,9211,66,9218],[66,9219,66,9226],[66,9227,66,9234],[66,9235,66,9242],[66,9163,66,9170],[66,9171,66,9178],[66,9179,66,9186],[66,9187,66,9194],[66,9195,66,9202],[66,9123,66,9130],[66,9131,66,9138],[66,9139,66,9146],[66,9147,66,9154],[66,9155,66,9162],[66,9083,66,9090],[66,9091,66,9098],[66,9099,66,9106],[66,9107,66,9114],[66,9115,66,9122],[66,9043,66,9050],[66,9051,66,9058],[66,9059,66,9066],[66,9067,66,9074],[66,9075,66,9082],[66,9003,66,9010],[66,9011,66,9018],[66,9019,66,9026],[66,9027,66,9034],[66,9035,66,9042],[66,8963,66,8970],[66,8971,66,8978],[66,8979,66,8986],[66,8987,66,8994],[66,8995,66,9002],[66,8923,66,8930],[66,8931,66,8938],[66,8939,66,8946],[66,8947,66,8954],[66,8955,66,8962],[66,8883,66,8890],[66,8891,66,8898],[66,8899,66,8906],[66,8907,66,8914],[66,8915,66,8922],[66,8843,66,8850],[66,8851,66,8858],[66,8859,66,8866],[66,8867,66,8874],[66,8875,66,8882],[66,8803,66,8810],[66,8811,66,8818],[66,8819,66,8826],[66,8827,66,8834],[66,8835,66,8842],[66,8763,66,8770],[66,8771,66,8778],[66,8779,66,8786],[66,8787,66,8794],[66,8795,66,8802],[66,8723,66,8730],[66,8731,66,8738],[66,8739,66,8746],[66,8747,66,8754],[66,8755,66,8762],[66,8683,66,8690],[66,8691,66,8698],[66,8699,66,8706],[66,8707,66,8714],[66,8715,66,8722],[66,8643,66,8650],[66,8651,66,8658],[66,8659,66,8666],[66,8667,66,8674],[66,8675,66,8682],[66,8603,66,8610],[66,8611,66,8618],[66,8619,66,8626],[66,8627,66,8634],[66,8635,66,8642],[66,8563,66,8570],[66,8571,66,8578],[66,8579,66,8586],[66,8587,66,8594],[66,8595,66,8602],[66,8523,66,8530],[66,8531,66,8538],[66,8539,66,8546],[66,8547,66,8554],[66,8555,66,8562],[66,8483,66,8490],[66,8491,66,8498],[66,8499,66,8506],[66,8507,66,8514],[66,8515,66,8522],[66,8443,66,8450],[66,8451,66,8458],[66,8459,66,8466],[66,8467,66,8474],[66,8475,66,8482],[66,8403,66,8410],[66,8411,66,8418],[66,8419,66,8426],[66,8427,66,8434],[66,8435,66,8442]],"merged_total":2097,"flags":["merged_cut"]}
[null,null,null,null,null,null,null,null,null,null,null,null,null,null,null,null,null,null,null,"Verze k odeslání klientovi","Verze zpracovat","Verze k odeslání do pojišťovny (skrýt nevyplněné informace)"]
[null,null,null,null,null,null,null,null,null,null,null,null,null,null,null,null,null,null,null,1,1,1]
[null,null,null,null,null,null,null,null,null,null,null,null,null,null,null,null,null,null,null,1,1,1]
[null,null,null,null,null,null,null,null,null,null,null,null,null,null,null,null,null,null,null,1,1,1]
[null,null,null,null,null,null,null,null,null,null,null,null,null,null,null,null,null,null,null,1,1,1]
[null,null,null,null,null,null,null,null,null,null,null,null,null,null,null,null,null,null,null,1,1,1]
[null,null,null,null,null,null,null,null,null,null,null,null,null,null,null,null,null,null,null,1,1,1]
["Dotazník k pojištění",null,null,null,null,null,null,null,null,null,null,null,null,null,null,null,null,null,null,1,"SKRÝT","SKRÝT"]
["Profil klienta",null,null,null,null,null,null,null,null,null,null,null,null,null,null,null,null,null,null,"SKRÝT",1,1]
[null,null,null,null,null,null,null,null,null,null,null,null,null,null,null,null,null,null,null,1,1,1]
["Cílem tohoto dokumentu je shrnout informace potřebné k vypracování návrhu pojištění. Uveďte prosím požadované informace, které se týkají Vaší společnosti, nebo veškeré další informace, které považujete v této souvislosti za důležité. V případě potřeby uvádějte informace na samostatný list. Informace uvedené v tomto dokumentu jsou důvěrné a budou použity pouze pro potřebu pojištění. Neúplnost nebo nesprávnost sdělených informací mohou ovlivnit naše doporučení týkající se pojištění a samotnou kvalitu pojištění. Děkujeme za spolupráci.",null,null,null,null,null,null,null,null,null,null,null,null,null,null,null,null,null,null,1,"SKRÝT","SKRÝT"]
[null,null,null,null,null,null,null,null,null,null,null,null,null,null,null,null,null,null,null,1,"SKRÝT","SKRÝT"]
["Pojistník / Pojištěný:","Statutární město Teplice",null,null,null,null,null,null,null,null,null,null,null,null,null,null,null,null,null,1,1,1]
["Sídlo:","náměstí Svobody 2/2, Teplice - Teplice, PSČ 41501",null,null,null,null,null,null,null,null,null,null,null,null,null,null,null,null,null,1,1,1]
["IČO:","00266621",null,null,null,null,null,null,null,null,null,null,null,null,null,null,null,null,null,1,1,1]
["Webová adresa:",null,null,null,null,null,null,null,null,null,null,null,null,null,null,null,null,null,null,1,1,{"$f":"IF(ISBLANK(B16),\"SKRÝT\",1)","v":"SKRÝT"}]
[null,null,null,null,null,null,null,null,null,null,null,null,null,null,null,null,null,null,null,1,1,1]
["Další pojištěný:","dle přílohy č. 5",null,null,null,null,null,null,null,null,null,null,null,null,null,null,null,null,null,1,1,{"$f":"IF(ISBLANK(B18),\"SKRÝT\",1)","v":1}]
["Sídlo:",null,null,null,null,null,null,null,null,null,null,null,null,null,null,null,null,null,null,1,1,{"$f":"IF(ISBLANK(B19),\"SKRÝT\",1)","v":"SKRÝT"}]
["IČO:",null,null,null,null,null,null,null,null,null,null,null,null,null,null,null,null,null,null,1,1,{"$f":"IF(ISBLANK(B20),\"SKRÝT\",1)","v":"SKRÝT"}]
["Webová adresa:",null,null,null,null,null,null,null,null,null,null,null,null,null,null,null,null,null,null,1,1,{"$f":"IF(ISBLANK(B21),\"SKRÝT\",1)","v":"SKRÝT"}]
[null,null,null,null,null,null,null,null,null,null,null,null,null,null,null,null,null,null,null,1,1,{"$f":"IF(ISBLANK(B18),\"SKRÝT\",1)","v":1}]
["Další pojištěný:",null,null,null,null,null,null,null,null,null,null,null,null,null,null,null,null,null,null,1,1,{"$f":"IF(ISBLANK(B23),\"SKRÝT\",1)","v":"SKRÝT"}]
["Sídlo:",null,null,null,null,null,null,null,null,null,null,null,null,null,null,null,null,null,null,1,1,"SKRÝT"]
["IČO:",null,null,null,null,null,null,null,null,null,null,null,null,null,null,null,null,null,null,1,1,"SKRÝT"]
["Webová adresa:",null,null,null,null,null,null,null,null,null,null,null,null,null,null,null,null,null,null,1,1,"SKRÝT"]
[null,null,null,null,null,null,null,null,null,null,null,null,null,null,null,null,null,null,null,1,1,"SKRÝT"]
["Stručný popis činnosti pojištěného/ pojištěných:","činnost města",null,null,null,null,null,null,null,null,null,null,null,null,null,null,null,null,null,"SKRÝT",1,1]
[null,null,null,null,null,null,null,null,null,null,null,null,null,null,null,null,null,null,null,"SKRÝT",1,1]
["Počátek pojištění:","01.01.2024 - na dobu neurčitou ",null,null,null,null,null,null,null,null,null,null,null,null,null,null,null,null,null,1,1,1]
["Výpovědní doba:","6 měsíců - požadovaná textace uvedena v dokumentu ,,základní informace\" na straně 7"]
["Textace do PS:"]
[null,null,null,null,null,null,null,null,null,null,null,null,null,null,null,null,null,null,null,1,1,1]
["Pojistné:","s provizí makléře",null,"Splátky pojistného:","Roční",null,null,null,null,null,null,null,null,null,null,null,null,null,null,"SKRÝT",1,1]
[null,null,null,null,null,null,null,null,null,null,null,null,null,null,null,null,null,null,null,"SKRÝT",1,1]
["Makléřská doložka:","Do pojistné smlouvy požadujeme zahrnout následující znění makléřské doložky:",null,null,null,null,null,null,null,null,null,null,null,null,null,null,null,null,null,"SKRÝT",1,1]
[null,"Pojištěný pověřuje výhradně pojišťovací makléřskou společnost RENOMIA, a. s., se sídlem Holandská 8, 639 00 Brno, IČ: 48391301 (dále jen \"makléř\"), vedením (řízením) a zpracováním jeho pojistného zájmu. Veškerý styk, který se bude týkat této pojistné smlouvy, včetně hlášení pojistných událostí, bude prováděn výhradně prostřednictvím makléře. Prohlášení a jiné úkony pojištěného směřované pojistiteli jsou vůči pojistiteli účinné doručením makléři. Makléř je povinen o těchto úkonech pojistitele informovat bez zbytečného prodlení.",null,null,null,null,null,null,null,null,null,null,null,null,null,null,null,null,null,"SKRÝT",1,1]
[null,null,null,null,null,null,null,null,null,null,null,null,null,null,null,null,null,null,null,"SKRÝT",1,1]
["Inkaso pojistného:","Požadujeme inkaso pojistného. ",null,null,null,null,null,null,null,null,null,null,null,null,null,null,null,null,null,"SKRÝT",1,1]
[null,"Do pojistné smlouvy požadujeme vložit následující znění doložky: ",null,null,null,null,null,null,null,null,null,null,null,null,null,null,null,null,null,"SKRÝT",1,1]
[null,"Pojistné se považuje za uhrazené připsáním na účet pojišťovacího makléře, č.ú.5030018888/5500 vedený u Raiffeisenbank a.s., variabilní symbol dle čísla pojistné smlouvy",null,null,null,null,null,null,null,null,null,null,null,null,null,null,null,null,null,"SKRÝT",1,1]
[null,null,null,null,null,null,null,null,null,null,null,null,null,null,null,null,null,null,null,"SKRÝT",1,1]
["V nabídce uveďte:",null,null,null,null,null,null,null,null,null,null,null,null,null,null,null,null,null,null,"SKRÝT",1,1]
["Bonifikace za příznivý škodní průběh",null,null,null,null,null,null,null,null,null,null,null,null,null,null,null,null,null,null,"SKRÝT",1,1]
["Škodní průběh do 10%",null,"Bonifikace min. 25%",null,null,null,null,null,null,null,null,null,null,null,null,null,null,null,null,"SKRÝT",1,1]
["Škodní průběh do 15%",null,"Bonifikacemin. 15%",null,null,null,null,null,null,null,null,null,null,null,null,null,null,null,null,"SKRÝT",1,1]
["Škodní průběh do 20%",null,"Bonifikace min. 10%",null,null,null,null,null,null,null,null,null,null,null,null,null,null,null,null,"SKRÝT",1,1]
["Škodní průběh do 30%",null,"Bonifikace min. 5%",null,null,null,null,null,null,null,null,null,null,null,null,null,null,null,null,"SKRÝT",1,1]
[null,null,null,null,null,null,null,null,null,null,null,null,null,null,null,null,null,null,null,"SKRÝT",1,1]
["Poskytnutí dodatečné slevy za dlouhodobost  ",null,null,null,null,null,null,null,null,null,null,null,null,null,null,null,null,null,null,"SKRÝT",1,1]
["Po ukončení 1 roku pojištění ",null,"5% z ročního pojistného",null,null,null,null,null,null,null,null,null,null,null,null,null,null,null,null,"SKRÝT",1,1]
["Po ukončení 2 roku pojištění ",null,"10% z ročního pojistného"]
["Po ukončení 3 roku pojištění a každý následný rok",null,"15% z ročního pojistného"]
["4 roky trvání PS"]
["5 let trvání PS"]
["Přes 5 let trvání pojištění ",null,null,null,null,null,null,null,null,null,null,null,null,null,null,null,null,null,null,"SKRÝT",1,1]
["Textace požadovaného ujednání:"]
["Pokud pojistník/pojištěný způsobí zánik pojištění dříve než za 4 roky od data nabytí jeho účinnosti, zavazuje se pojistník/pojištěný uhradit částku "]
["odpovídající poskytnuté slevě za dobu trvání pojištění.V případě, že k ukončení smluvního vztahu dojde na základě naplnění podmínek vyplývajících "]
["ze zákona, které pojistníkovi / pojištěnému neumožní pokračovat ve smluvním vztahu (např. pokud dojde v průběhu smluvního vztahu k takové změně"]
["závazku ze smlouvy na veřejnou zakázku, že se dle zákona již bude jednat o podstatnou změnu závazku, již nesmí zadavatel umožnit,  nebo na základě "]
["jiných skutečností, na něž nemá pojistník / pojištěný žádný vliv), a bude v důsledku toho muset smluvní vztah ukončit, nebude pojistník/pojištěný  povinen "]
["částku odpovídající poskytnuté slevě uhradit."]
[]
[]
[]
["Přehled škod"]
[null,null,null,null,null,null,null,null,null,null,null,null,null,null,null,null,null,null,null,1,1,1]
["Uvedeny jsou pouze škody, které jsou RENOMIA, a. s., známy.",null,null,null,null,null,null,null,null,null,null,null,null,null,null,null,null,null,null,"SKRÝT",1,1]
[null,null,null,null,null,null,null,null,null,null,null,null,null,null,null,null,null,null,null,"SKRÝT",1,1]
["Uveďte prosím škody za posledních 5 let. V případě, že požadujete pojištění záplavy a povodně, uveďte prosím všechny známé škody ze záplavy, povodně (tzn. i škody starší 5 let).",null,null,null,null,null,null,null,null,null,null,null,null,null,null,null,null,null,null,1,"SKRÝT","SKRÝT"]
["Datum vzniku","Pojistný produkt/ \npojistné nebezpečí","Popis škody",null,"Odhad výše škody \n(pokud není známa konečná výše)","Konečná výše škody",null,null,null,null,null,null,null,null,null,null,null,null,null,1,1,1]
["viz příloha - Základní informace.doc",null,null,null,null,null,null,null,null,null,null,null,null,null,null,null,null,null,null,1,1,1]
[null,null,null,null,null,null,null,null,null,null,null,null,null,null,{"$f":"IF(ISBLANK(A74),\"SKRÝT\",1)","v":"SKRÝT"},"SKRÝT","SKRÝT",{"$f":"IF(ISBLANK(E74),\"SKRÝT\",1)","v":"SKRÝT"},{"$f":"IF(ISBLANK(F74),\"SKRÝT\",1)","v":"SKRÝT"},1,1,{"$f":"IF(AND(O74=\"SKRÝT\",P74=\"SKRÝT\",Q74=\"SKRÝT\",R74=\"SKRÝT\",S74=\"SKRÝT\"),\"SKRÝT\",1)","v":"SKRÝT"}]
[null,null,null,null,null,null,null,null,null,null,null,null,null,null,"SKRÝT","SKRÝT","SKRÝT",{"$f":"IF(ISBLANK(E75),\"SKRÝT\",1)","v":"SKRÝT"},{"$f":"IF(ISBLANK(F75),\"SKRÝT\",1)","v":"SKRÝT"},1,1,{"$f":"IF(ISBLANK(B75),\"SKRÝT\",1)","v":"SKRÝT"}]
[null,null,null,null,null,null,null,null,null,null,null,null,null,null,{"$f":"IF(ISBLANK(A76),\"SKRÝT\",1)","v":"SKRÝT"},{"$f":"IF(ISBLANK(B76),\"SKRÝT\",1)","v":"SKRÝT"},{"$f":"IF(ISBLANK(C76),\"SKRÝT\",1)","v":"SKRÝT"},{"$f":"IF(ISBLANK(E76),\"SKRÝT\",1)","v":"SKRÝT"},{"$f":"IF(ISBLANK(F76),\"SKRÝT\",1)","v":"SKRÝT"},1,1,"SKRÝT"]
[null,null,null,null,null,null,null,null,null,null,null,null,null,null,"SKRÝT","SKRÝT","SKRÝT","SKRÝT","SKRÝT",1,1,"SKRÝT"]
[null,null,null,null,null,null,null,null,null,null,null,null,null,null,"SKRÝT","SKRÝT","SKRÝT","SKRÝT","SKRÝT",1,1,"SKRÝT"]
[null,null,null,null,null,null,null,null,null,null,null,null,null,null,"SKRÝT","SKRÝT","SKRÝT","SKRÝT","SKRÝT",1,1,"SKRÝT"]
[null,null,null,null,null,null,null,null,null,null,null,null,null,null,"SKRÝT","SKRÝT","SKRÝT","SKRÝT","SKRÝT",1,1,"SKRÝT"]
[null,null,null,null,null,null,null,null,null,null,null,null,null,null,"SKRÝT","SKRÝT","SKRÝT","SKRÝT","SKRÝT",1,1,"SKRÝT"]
[null,null,null,null,null,null,null,null,null,null,null,null,null,null,"SKRÝT","SKRÝT","SKRÝT","SKRÝT","SKRÝT",1,1,"SKRÝT"]
[null,null,null,null,null,null,null,null,null,null,null,null,null,null,"SKRÝT","SKRÝT","SKRÝT","SKRÝT","SKRÝT",1,1,"SKRÝT"]
[null,null,null,null,null,null,null,null,null,null,null,null,null,null,null,null,null,null,null,1,1,1]
["Forma i obsah  tohoto profilu klienta, včetně jejich příloh, je výhradním know-how RENOMIA, a. s., které podléhá právní ochraně  (§ 2976 a násl. ObčZ, § 248 TrZ). Pojistitel je oprávněn pouze k omezenému užití tohoto know-how, a to výhradně pro účely zpracování nabídky pro RENOMIA, a. s. Jakékoliv jiné užívání včetně dalšího šíření je zakázáno. V případě porušení práv k know-how uplatní RENOMIA, a. s., všech právních prostředků k jejich obraně včetně veškerých sankcí. ",null,null,null,null,null,null,null,null,null,null,null,null,null,null,null,null,null,null,"SKRÝT",1,1]
["Prohlašujeme tímto, že všechny informace uvedené v tomto dokumentu jsou úplné, pravdivé a přesné a taktéž, že informace nám byly poskytnuty srozumitelně, jasně a přesně. Zavazujeme se, že budeme informovat zprostředkovatele pojištění a pojistitele o podstatných změnách ohledně zaznamenaných skutečností, ke kterým by došlo před uzavřením nebo po uzavření pojistné smlouvy. Zároveň souhlasíme s tím, aby informace sdělené v tomto dokumentu byly použity pro účely předsmluvní dokumentace a informační povinnosti pojistitele. Tento dokument obsahuje informace důvěrného charakteru. Žádná část dokumentu nesmí být kopírována, uveřejněna či jinak poskytnuta třetí straně bez předchozího písemného souhlasu RENOMIA, a.s.",null,null,null,null,null,null,null,null,null,null,null,null,null,null,null,null,null,null,1,"SKRÝT","SKRÝT"]
["Datum:",null,null,null,"Za klienta","………………………",null,null,null,null,null,null,null,null,null,null,null,null,null,1,"SKRÝT","SKRÝT"]
[null,null,null,null,null,"Razítko a podpis",null,null,null,null,null,null,null,null,null,null,null,null,null,1,"SKRÝT","SKRÝT"]
["Datum:",null,null,null,"Za RENOMIA, a. s.","………………………",null,null,null,null,null,null,null,null,null,null,null,null,null,1,"SKRÝT","SKRÝT"]
[null,null,null,null,null,"Jméno a příjmení",null,null,null,null,null,null,null,null,null,null,null,null,null,1,"SKRÝT","SKRÝT"]

{"sheet":"Majetek_info_o_riziku","index":2,"n_rows":24,"n_cols":22,"rows_kept":24,"cut":false,"hidden":true,"merged":[[7,0,7,6],[9,0,9,6],[10,0,10,1],[10,2,10,6],[20,0,20,1],[21,0,21,1],[22,0,22,1],[23,0,23,1],[12,0,12,1],[13,0,13,1],[14,0,14,1],[15,0,15,1],[16,0,18,0],[19,0,19,1]]}
[null,null,null,null,null,null,null,null,null,null,null,null,null,null,null,null,null,null,null,"Verze k odeslání klientovi","Verze zpracovat","Verze k odeslání do pojišťovny (skrýt nevyplněné informace)"]
[null,null,null,null,null,null,null,null,null,null,null,null,null,null,null,null,null,null,null,1,1,1]
[null,null,null,null,null,null,null,null,null,null,null,null,null,null,null,null,null,null,null,1,1,1]
[null,null,null,null,null,null,null,null,null,null,null,null,null,null,null,null,null,null,null,1,1,1]
[null,null,null,null,null,null,null,null,null,null,null,null,null,null,null,null,null,null,null,1,1,1]
[null,null,null,null,null,null,null,null,null,null,null,null,null,null,null,null,null,null,null,1,1,1]
[null,null,null,null,null,null,null,null,null,null,null,null,null,null,null,null,null,null,null,1,1,1]
["Pojištění majetku - informace o riziku",null,null,null,null,null,null,null,null,null,null,null,null,null,null,null,null,null,null,1,1,1]
[null,null,null,null,null,null,null,null,null,null,null,null,null,null,null,null,null,null,null,1,1,1]
["Informace se týkají objektů v místě pojištění s největší hodnotou majetku.",null,null,null,null,null,null,null,null,null,null,null,null,null,null,null,null,null,null,1,1,1]
[null,null,"Popis jednotlivých objektů",null,null,null,null,null,null,null,null,null,null,null,null,null,null,null,null,1,1,{"$f":"IF(AND(V12=\"SKRÝT\",V13=\"SKRÝT\",V14=\"SKRÝT\",V15=\"SKRÝT\",V16=\"SKRÝT\",V17=\"SKRÝT\",V18=\"SKRÝT\",V19=\"SKRÝT\",V20=\"SKRÝT\",V21=\"SKRÝT\",V22=\"SKRÝT\",V23=\"SKRÝT\",V24=\"SKRÝT\"),\"SKRÝT\",1)","v":"SKRÝT"}]
["Název objektu",null,null,null,null,null,null,null,null,null,null,null,null,null,{"$f":"IF(ISBLANK(C12),\"SKRÝT\",1)","v":"SKRÝT"},{"$f":"IF(ISBLANK(D12),\"SKRÝT\",1)","v":"SKRÝT"},{"$f":"IF(ISBLANK(E12),\"SKRÝT\",1)","v":"SKRÝT"},{"$f":"IF(ISBLANK(F12),\"SKRÝT\",1)","v":"SKRÝT"},{"$f":"IF(ISBLANK(G12),\"SKRÝT\",1)","v":"SKRÝT"},1,1,{"$f":"IF(AND(O12=\"SKRÝT\",P12=\"SKRÝT\",Q12=\"SKRÝT\",R12=\"SKRÝT\",S12=\"SKRÝT\"),\"SKRÝT\",1)","v":"SKRÝT"}]
["Převažující konstrukce objektu (železobetonová (ŽB), zděná, ocelová, dřevěná)",null,null,null,null,null,null,null,null,null,null,null,null,null,{"$f":"IF(ISBLANK(C13),\"SKRÝT\",1)","v":"SKRÝT"},{"$f":"IF(ISBLANK(D13),\"SKRÝT\",1)","v":"SKRÝT"},{"$f":"IF(ISBLANK(E13),\"SKRÝT\",1)","v":"SKRÝT"},{"$f":"IF(ISBLANK(F13),\"SKRÝT\",1)","v":"SKRÝT"},{"$f":"IF(ISBLANK(G13),\"SKRÝT\",1)","v":"SKRÝT"},1,1,{"$f":"IF(AND(O13=\"SKRÝT\",P13=\"SKRÝT\",Q13=\"SKRÝT\",R13=\"SKRÝT\",S13=\"SKRÝT\"),\"SKRÝT\",1)","v":"SKRÝT"}]
["Počet nadzemních (NP) a podzemních (PP) podlaží",null,null,null,null,null,null,null,null,null,null,null,null,null,"SKRÝT","SKRÝT","SKRÝT","SKRÝT","SKRÝT",1,1,"SKRÝT"]
["Způsob skladování zásob (volná plocha, regálové sklady,  apod.)",null,null,null,null,null,null,null,null,null,null,null,null,null,"SKRÝT","SKRÝT","SKRÝT","SKRÝT","SKRÝT",1,1,"SKRÝT"]
["Celková plocha skladování/ max. výška skladování",null,null,null,null,null,null,null,null,null,null,null,null,null,"SKRÝT","SKRÝT","SKRÝT","SKRÝT","SKRÝT",1,1,{"$f":"IF(AND(O16=\"SKRÝT\",P16=\"SKRÝT\",Q16=\"SKRÝT\",R16=\"SKRÝT\",S16=\"SKRÝT\"),\"SKRÝT\",1)","v":"SKRÝT"}]
["Jaká je povaha skladovaných zásob v %?","hořlavé",null,null,null,null,null,null,null,null,null,null,null,null,"SKRÝT","SKRÝT","SKRÝT","SKRÝT","SKRÝT",1,1,"SKRÝT"]
[null,"nehořlavé",null,null,null,null,null,null,null,null,null,null,null,null,"SKRÝT","SKRÝT","SKRÝT","SKRÝT","SKRÝT",1,1,"SKRÝT"]
[null,"výbušné",null,null,null,null,null,null,null,null,null,null,null,null,"SKRÝT","SKRÝT","SKRÝT","SKRÝT","SKRÝT",1,1,"SKRÝT"]
["K jakému účelu slouží podzemní podlaží? (skladování, kotelna, strojovna výtahu, strojovna vzduchotechniky, apod.)",null,null,null,null,null,null,null,null,null,null,null,null,null,"SKRÝT","SKRÝT","SKRÝT","SKRÝT","SKRÝT",1,1,"SKRÝT"]
["Byly v minulosti objekty zasaženy povodní? Pokud ANO - kdy, rozsah a výše škod",null,null,null,null,null,null,null,null,null,null,null,null,null,"SKRÝT","SKRÝT","SKRÝT","SKRÝT","SKRÝT",1,1,"SKRÝT"]
["Je objekt vybaven elektronickým zabezpečovacím systémem (EZS) proti krádeži? Pokud ANO, jaké je procento pokrytí.",null,null,null,null,null,null,null,null,null,null,null,null,null,"SKRÝT","SKRÝT","SKRÝT","SKRÝT","SKRÝT",1,1,"SKRÝT"]
["Je objekt vybaven systémem automatické detekce požáru (EPS)? Pokud ANO, jaké je procento pokrytí.",null,null,null,null,null,null,null,null,null,null,null,null,null,"SKRÝT","SKRÝT","SKRÝT","SKRÝT","SKRÝT",1,1,"SKRÝT"]
["Je objekt vybaven systémem stabilního hasicího zařízení (např. sprinklery)? Pokud ANO, jaké je procento pokrytí.",null,null,null,null,null,null,null,null,null,null,null,null,null,"SKRÝT","SKRÝT","SKRÝT","SKRÝT","SKRÝT",1,1,"SKRÝT"]

{"sheet":"Majetek","index":3,"n_rows":182,"n_cols":22,"rows_kept":182,"cut":false,"hidden":false,"merged":[[132,0,132,2],[134,0,134,2],[117,0,117,2],[118,0,118,2],[99,2,99,3],[155,0,155,1],[155,2,155,3],[140,2,140,4],[146,0,147,2],[144,0,144,7],[143,0,143,7],[181,0,181,7],[166,1,166,7],[167,0,167,7],[179,0,179,3],[180,1,180,7],[169,0,169,7],[177,0,178,2],[177,4,177,5],[177,6,177,7],[171,0,171,1],[171,2,171,3],[172,0,172,3],[172,4,172,7],[139,0,139,2],[137,0,137,4],[138,0,138,4],[146,4,146,5],[170,0,170,1],[175,0,175,4],[170,2,170,3],[151,0,151,3],[152,0,152,3],[161,0,161,7],[149,0,149,3],[148,0,148,3],[150,0,150,3],[173,1,173,7],[142,1,142,7],[154,0,154,3],[156,1,156,7],[6,0,6,7],[165,0,165,3],[160,0,160,7],[163,0,164,2],[163,4,163,5],[163,6,163,7],[158,0,158,7],[145,0,145,7],[122,0,122,4],[121,0,121,1],[124,0,124,4],[125,0,125,4],[126,0,126,4],[128,0,128,4],[130,0,130,4],[131,0,131,4],[133,0,133,4],[146,6,146,7],[153,0,153,3],[157,0,157,7],[135,0,135,4],[123,0,123,2],[34,0,34,4],[35,0,35,4],[17,0,17,2],[113,0,113,6],[114,0,114,6],[115,0,115,6],[26,0,26,4],[27,0,27,4],[28,0,28,4],[67,0,67,7],[64,1,64,7],[55,1,55,4],[89,0,89,3],[91,0,91,3],[74,0,74,7],[80,4,80,5],[83,0,83,3],[32,0,32,4],[80,6,80,7],[81,4,81,5],[69,0,69,2],[60,1,60,7],[37,0,37,2],[36,0,36,4],[116,0,116,6],[109,0,109,7],[101,0,101,7],[129,0,129,2],[103,1,103,7],[41,0,41,4],[119,0,119,7],[98,0,98,3],[97,0,97,3],[95,0,95,3],[90,0,90,3],[94,0,94,3],[30,0,30,1],[42,0,42,4],[24,0,24,4],[62,1,62,7],[57,1,57,7],[58,0,58,7],[45,0,45,1],[38,0,38,4],[39,0,39,4],[127,0,127,2],[92,0,92,1],[92,2,92,3],[63,1,63,7],[48,0,48,4],[49,0,49,4],[70,0,70,2],[72,0,72,2],[47,0,47,1],[105,1,105,7],[84,0,84,3],[140,0,140,1],[8,0,8,7],[44,0,44,4],[46,0,46,4],[40,0,40,1],[43,0,43,1],[10,0,10,3],[10,4,10,6],[11,0,11,3],[11,4,11,6],[12,0,12,3],[12,4,12,6],[13,0,13,3],[13,4,13,6],[14,0,14,3],[14,4,14,6],[15,0,15,3],[15,4,15,6],[76,0,76,1],[88,0,88,3],[19,0,19,7],[23,0,23,4],[22,0,22,1],[25,0,25,4],[29,0,29,4],[31,0,31,4],[33,0,33,4],[81,6,81,7],[136,0,136,2],[16,0,16,2],[56,0,56,4],[99,0,99,1],[109,104,109,111],[109,112,109,119],[109,120,109,127],[109,128,109,135],[109,56,109,63],[50,0,50,4],[78,0,78,7],[107,0,107,7],[102,0,102,7],[104,1,104,7],[100,1,100,7],[65,1,65,7],[96,0,96,3],[86,0,86,3],[87,0,87,3],[85,0,85,3],[71,0,71,2],[75,0,75,1],[54,0,54,1],[51,0,51,4],[52,0,52,4],[53,0,53,4],[109,8,109,15],[109,24,109,31],[93,0,93,3],[80,0,82,2],[61,1,61,7],[109,208,109,215],[109,216,109,223],[109,224,109,231],[109,232,109,239],[109,240,109,247],[109,248,109,255],[109,256,109,263],[109,32,109,39],[109,40,109,47],[109,48,109,55],[109,352,109,359],[109,360,109,367],[109,368,109,375],[109,376,109,383],[109,384,109,391],[109,392,109,399],[109,264,109,271],[109,272,109,279],[109,136,109,143],[109,144,109,151],[109,152,109,159],[109,160,109,167],[109,168,109,175],[109,176,109,183],[109,184,109,191],[109,192,109,199],[109,200,109,207],[109,64,109,71],[109,72,109,79],[109,80,109,87],[109,88,109,95],[109,96,109,103],[109,400,109,407],[109,408,109,415],[109,416,109,423],[109,280,109,287],[109,288,109,295],[109,296,109,303],[109,304,109,311],[109,312,109,319],[109,320,109,327],[109,328,109,335],[109,336,109,343],[109,344,109,351],[109,496,109,503],[109,504,109,511],[109,512,109,519],[109,520,109,527],[109,528,109,535],[109,536,109,543],[109,544,109,551],[109,552,109,559],[109,560,109,567],[109,424,109,431],[109,432,109,439],[109,440,109,447],[109,448,109,455],[109,456,109,463],[109,464,109,471],[109,472,109,479],[109,480,109,487],[109,488,109,495],[109,640,109,647],[109,648,109,655],[109,656,109,663],[109,664,109,671],[109,672,109,679],[109,680,109,687],[109,688,109,695],[109,696,109,703],[109,704,109,711],[109,568,109,575],[109,576,109,583],[109,584,109,591],[109,592,109,599],[109,600,109,607],[109,608,109,615],[109,616,109,623],[109,624,109,631],[109,632,109,639],[109,784,109,791],[109,792,109,799],[109,800,109,807],[109,808,109,815],[109,816,109,823],[109,824,109,831],[109,832,109,839],[109,840,109,847],[109,848,109,855],[109,712,109,719],[109,720,109,727],[109,728,109,735],[109,736,109,743],[109,744,109,751],[109,752,109,759],[109,760,109,767],[109,768,109,775],[109,776,109,783],[109,928,109,935],[109,936,109,943],[109,944,109,951],[109,952,109,959],[109,960,109,967],[109,968,109,975],[109,976,109,983],[109,984,109,991],[109,992,109,999],[109,856,109,863],[109,864,109,871],[109,872,109,879],[109,880,109,887],[109,888,109,895],[109,896,109,903],[109,904,109,911],[109,912,109,919],[109,920,109,927],[109,1072,109,1079],[109,1080,109,1087],[109,1088,109,1095],[109,1096,109,1103],[109,1104,109,1111],[109,1112,109,1119],[109,1120,109,1127],[109,1128,109,1135],[109,1136,109,1143],[109,1000,109,1007],[109,1008,109,1015],[109,1016,109,1023],[109,1024,109,1031],[109,1032,109,1039],[109,1040,109,1047],[109,1048,109,1055],[109,1056,109,1063],[109,1064,109,1071],[109,1216,109,1223],[109,1224,109,1231],[109,1232,109,1239],[109,1240,109,1247],[109,1248,109,1255],[109,1256,109,1263],[109,1264,109,1271],[109,1272,109,1279],[109,1280,109,1287],[109,1144,109,1151],[109,1152,109,1159],[109,1160,109,1167],[109,1168,109,1175],[109,1176,109,1183],[109,1184,109,1191],[109,1192,109,1199],[109,1200,109,1207],[109,1208,109,1215],[109,1360,109,1367],[109,1368,109,1375],[109,1376,109,1383],[109,1384,109,1391],[109,1392,109,1399],[109,1400,109,1407],[109,1408,109,1415],[109,1416,109,1423],[109,1424,109,1431],[109,1288,109,1295],[109,1296,109,1303],[109,1304,109,1311],[109,1312,109,1319],[109,1320,109,1327],[109,1328,109,1335],[109,1336,109,1343],[109,1344,109,1351],[109,1352,109,1359],[109,1504,109,1511],[109,1512,109,1519],[109,1520,109,1527],[109,1528,109,1535],[109,1536,109,1543],[109,1544,109,1551],[109,1552,109,1559],[109,1560,109,1567],[109,1568,109,1575],[109,1432,109,1439],[109,1440,109,1447],[109,1448,109,1455],[109,1456,109,1463],[109,1464,109,1471],[109,1472,109,1479],[109,1480,109,1487],[109,1488,109,1495],[109,1496,109,1503],[109,1648,109,1655],[109,1656,109,1663],[109,1664,109,1671],[109,1672,109,1679],[109,1680,109,1687],[109,1688,109,1695],[109,1696,109,1703],[109,1704,109,1711],[109,1712,109,1719],[109,1576,109,1583],[109,1584,109,1591],[109,1592,109,1599],[109,1600,109,1607],[109,1608,109,1615],[109,1616,109,1623],[109,1624,109,1631],[109,1632,109,1639],[109,1640,109,1647],[109,1792,109,1799],[109,1800,109,1807],[109,1808,109,1815],[109,1816,109,1823],[109,1824,109,1831],[109,1832,109,1839],[109,1840,109,1847],[109,1848,109,1855],[109,1856,109,1863],[109,1720,109,1727],[109,1728,109,1735],[109,1736,109,1743],[109,1744,109,1751],[109,1752,109,1759],[109,1760,109,1767],[109,1768,109,1775],[109,1776,109,1783],[109,1784,109,1791],[109,1936,109,1943],[109,1944,109,1951],[109,1952,109,1959],[109,1960,109,1967],[109,1968,109,1975],[109,1976,109,1983],[109,1984,109,1991],[109,1992,109,1999],[109,2000,109,2007],[109,1864,109,1871],[109,1872,109,1879],[109,1880,109,1887],[109,1888,109,1895],[109,1896,109,1903],[109,1904,109,1911],[109,1912,109,1919],[109,1920,109,1927],[109,1928,109,1935],[109,2080,109,2087],[109,2088,109,2095],[109,2096,109,2103],[109,2104,109,2111],[109,2112,109,2119],[109,2120,109,2127],[109,2128,109,2135],[109,2136,109,2143],[109,2144,109,2151],[109,2008,109,2015],[109,2016,109,2023],[109,2024,109,2031],[109,2032,109,2039],[109,2040,109,2047],[109,2048,109,2055],[109,2056,109,2063],[109,2064,109,2071],[109,2072,109,2079],[109,2224,109,2231],[109,2232,109,2239],[109,2240,109,2247],[109,2248,109,2255],[109,2256,109,2263],[109,2264,109,2271],[109,2272,109,2279],[109,2280,109,2287],[109,2288,109,2295],[109,2152,109,2159],[109,2160,109,2167],[109,2168,109,2175],[109,2176,109,2183],[109,2184,109,2191],[109,2192,109,2199],[109,2200,109,2207],[109,2208,109,2215],[109,2216,109,2223],[109,2368,109,2375],[109,2376,109,2383],[109,2384,109,2391],[109,2392,109,2399],[109,2400,109,2407],[109,2408,109,2415],[109,2416,109,2423],[109,2424,109,2431],[109,2432,109,2439],[109,2296,109,2303],[109,2304,109,2311],[109,2312,109,2319],[109,2320,109,2327],[109,2328,109,2335],[109,2336,109,2343],[109,2344,109,2351],[109,2352,109,2359],[109,2360,109,2367],[109,2512,109,2519],[109,2520,109,2527],[109,2528,109,2535],[109,2536,109,2543],[109,2544,109,2551],[109,2552,109,2559],[109,2560,109,2567],[109,2568,109,2575],[109,2576,109,2583],[109,2440,109,2447],[109,2448,109,2455],[109,2456,109,2463],[109,2464,109,2471],[109,2472,109,2479],[109,2480,109,2487],[109,2488,109,2495],[109,2496,109,2503],[109,2504,109,2511],[109,2656,109,2663],[109,2664,109,2671],[109,2672,109,2679],[109,2680,109,2687],[109,2688,109,2695],[109,2696,109,2703],[109,2704,109,2711],[109,2712,109,2719],[109,2720,109,2727],[109,2584,109,2591],[109,2592,109,2599],[109,2600,109,2607],[109,2608,109,2615],[109,2616,109,2623],[109,2624,109,2631],[109,2632,109,2639],[109,2640,109,2647],[109,2648,109,2655],[109,2800,109,2807],[109,2808,109,2815],[109,2816,109,2823],[109,2824,109,2831],[109,2832,109,2839],[109,2840,109,2847],[109,2848,109,2855],[109,2856,109,2863],[109,2864,109,2871],[109,2728,109,2735],[109,2736,109,2743],[109,2744,109,2751],[109,2752,109,2759],[109,2760,109,2767],[109,2768,109,2775],[109,2776,109,2783],[109,2784,109,2791],[109,2792,109,2799],[109,2944,109,2951],[109,2952,109,2959],[109,2960,109,2967],[109,2968,109,2975],[109,2976,109,2983],[109,2984,109,2991],[109,2992,109,2999],[109,3000,109,3007],[109,3008,109,3015],[109,2872,109,2879],[109,2880,109,2887],[109,2888,109,2895],[109,2896,109,2903],[109,2904,109,2911],[109,2912,109,2919],[109,2920,109,2927],[109,2928,109,2935],[109,2936,109,2943],[109,3088,109,3095],[109,3096,109,3103],[109,3104,109,3111],[109,3112,109,3119],[109,3120,109,3127],[109,3128,109,3135],[109,3136,109,3143],[109,3144,109,3151],[109,3152,109,3159],[109,3016,109,3023],[109,3024,109,3031],[109,3032,109,3039],[109,3040,109,3047],[109,3048,109,3055],[109,3056,109,3063],[109,3064,109,3071],[109,3072,109,3079],[109,3080,109,3087],[109,3232,109,3239],[109,3240,109,3247],[109,3248,109,3255],[109,3256,109,3263],[109,3264,109,3271],[109,3272,109,3279],[109,3280,109,3287],[109,3288,109,3295],[109,3296,109,3303],[109,3160,109,3167],[109,3168,109,3175],[109,3176,109,3183],[109,3184,109,3191],[109,3192,109,3199],[109,3200,109,3207],[109,3208,109,3215],[109,3216,109,3223],[109,3224,109,3231],[109,3376,109,3383],[109,3384,109,3391],[109,3392,109,3399],[109,3400,109,3407],[109,3408,109,3415],[109,3416,109,3423],[109,3424,109,3431],[109,3432,109,3439],[109,3440,109,3447],[109,3304,109,3311],[109,3312,109,3319],[109,3320,109,3327],[109,3328,109,3335],[109,3336,109,3343],[109,3344,109,3351],[109,3352,109,3359],[109,3360,109,3367],[109,3368,109,3375],[109,3520,109,3527],[109,3528,109,3535],[109,3536,109,3543],[109,3544,109,3551],[109,3552,109,3559],[109,3560,109,3567],[109,3568,109,3575],[109,3576,109,3583],[109,3584,109,3591],[109,3448,109,3455],[109,3456,109,3463],[109,3464,109,3471],[109,3472,109,3479],[109,3480,109,3487],[109,3488,109,3495],[109,3496,109,3503],[109,3504,109,3511],[109,3512,109,3519],[109,3664,109,3671],[109,3672,109,3679],[109,3680,109,3687],[109,3688,109,3695],[109,3696,109,3703],[109,3704,109,3711],[109,3712,109,3719],[109,3720,109,3727],[109,3728,109,3735],[109,3592,109,3599],[109,3600,109,3607],[109,3608,109,3615],[109,3616,109,3623],[109,3624,109,3631],[109,3632,109,3639],[109,3640,109,3647],[109,3648,109,3655],[109,3656,109,3663],[109,3808,109,3815],[109,3816,109,3823],[109,3824,109,3831],[109,3832,109,3839],[109,3840,109,3847],[109,3848,109,3855],[109,3856,109,3863],[109,3864,109,3871],[109,3872,109,3879],[109,3736,109,3743],[109,3744,109,3751],[109,3752,109,3759],[109,3760,109,3767],[109,3768,109,3775],[109,3776,109,3783],[109,3784,109,3791],[109,3792,109,3799],[109,3800,109,3807],[109,3952,109,3959],[109,3960,109,3967],[109,3968,109,3975],[109,3976,109,3983],[109,3984,109,3991],[109,3992,109,3999],[109,4000,109,4007],[109,4008,109,4015],[109,4016,109,4023],[109,3880,109,3887],[109,3888,109,3895],[109,3896,109,3903],[109,3904,109,3911],[109,3912,109,3919],[109,3920,109,3927],[109,3928,109,3935],[109,3936,109,3943],[109,3944,109,3951],[109,4096,109,4103],[109,4104,109,4111],[109,4112,109,4119],[109,4120,109,4127],[109,4128,109,4135],[109,4136,109,4143],[109,4144,109,4151],[109,4152,109,4159],[109,4160,109,4167],[109,4024,109,4031],[109,4032,109,4039],[109,4040,109,4047],[109,4048,109,4055],[109,4056,109,4063],[109,4064,109,4071],[109,4072,109,4079],[109,4080,109,4087],[109,4088,109,4095],[109,4240,109,4247],[109,4248,109,4255],[109,4256,109,4263],[109,4264,109,4271],[109,4272,109,4279],[109,4280,109,4287],[109,4288,109,4295],[109,4296,109,4303],[109,4304,109,4311],[109,4168,109,4175],[109,4176,109,4183],[109,4184,109,4191],[109,4192,109,4199],[109,4200,109,4207],[109,4208,109,4215],[109,4216,109,4223],[109,4224,109,4231],[109,4232,109,4239],[109,4384,109,4391],[109,4392,109,4399],[109,4400,109,4407],[109,4408,109,4415],[109,4416,109,4423],[109,4424,109,4431],[109,4432,109,4439],[109,4440,109,4447],[109,4448,109,4455],[109,4312,109,4319],[109,4320,109,4327],[109,4328,109,4335],[109,4336,109,4343],[109,4344,109,4351],[109,4352,109,4359],[109,4360,109,4367],[109,4368,109,4375],[109,4376,109,4383],[109,4528,109,4535],[109,4536,109,4543],[109,4544,109,4551],[109,4552,109,4559],[109,4560,109,4567],[109,4568,109,4575],[109,4576,109,4583],[109,4584,109,4591],[109,4592,109,4599],[109,4456,109,4463],[109,4464,109,4471],[109,4472,109,4479],[109,4480,109,4487],[109,4488,109,4495],[109,4496,109,4503],[109,4504,109,4511],[109,4512,109,4519],[109,4520,109,4527],[109,4672,109,4679],[109,4680,109,4687],[109,4688,109,4695],[109,4696,109,4703],[109,4704,109,4711],[109,4712,109,4719],[109,4720,109,4727],[109,4728,109,4735],[109,4736,109,4743],[109,4600,109,4607],[109,4608,109,4615],[109,4616,109,4623],[109,4624,109,4631],[109,4632,109,4639],[109,4640,109,4647],[109,4648,109,4655],[109,4656,109,4663],[109,4664,109,4671],[109,4816,109,4823],[109,4824,109,4831],[109,4832,109,4839],[109,4840,109,4847],[109,4848,109,4855],[109,4856,109,4863],[109,4864,109,4871],[109,4872,109,4879],[109,4880,109,4887],[109,4744,109,4751],[109,4752,109,4759],[109,4760,109,4767],[109,4768,109,4775],[109,4776,109,4783],[109,4784,109,4791],[109,4792,109,4799],[109,4800,109,4807],[109,4808,109,4815],[109,4960,109,4967],[109,4968,109,4975],[109,4976,109,4983],[109,4984,109,4991],[109,4992,109,4999],[109,5000,109,5007],[109,5008,109,5015],[109,5016,109,5023],[109,5024,109,5031],[109,4888,109,4895],[109,4896,109,4903],[109,4904,109,4911],[109,4912,109,4919],[109,4920,109,4927],[109,4928,109,4935],[109,4936,109,4943],[109,4944,109,4951],[109,4952,109,4959],[109,5104,109,5111],[109,5112,109,5119],[109,5120,109,5127],[109,5128,109,5135],[109,5136,109,5143],[109,5144,109,5151],[109,5152,109,5159],[109,5160,109,5167],[109,5168,109,5175],[109,5032,109,5039],[109,5040,109,5047],[109,5048,109,5055],[109,5056,109,5063],[109,5064,109,5071],[109,5072,109,5079],[109,5080,109,5087],[109,5088,109,5095],[109,5096,109,5103],[109,5248,109,5255],[109,5256,109,5263],[109,5264,109,5271],[109,5272,109,5279],[109,5280,109,5287],[109,5288,109,5295],[109,5296,109,5303],[109,5304,109,5311],[109,5312,109,5319],[109,5176,109,5183],[109,5184,109,5191],[109,5192,109,5199],[109,5200,109,5207],[109,5208,109,5215],[109,5216,109,5223],[109,5224,109,5231],[109,5232,109,5239],[109,5240,109,5247],[109,5392,109,5399],[109,5400,109,5407],[109,5408,109,5415],[109,5416,109,5423],[109,5424,109,5431],[109,5432,109,5439],[109,5440,109,5447],[109,5448,109,5455],[109,5456,109,5463],[109,5320,109,5327],[109,5328,109,5335],[109,5336,109,5343],[109,5344,109,5351],[109,5352,109,5359],[109,5360,109,5367],[109,5368,109,5375],[109,5376,109,5383],[109,5384,109,5391],[109,5536,109,5543],[109,5544,109,5551],[109,5552,109,5559],[109,5560,109,5567],[109,5568,109,5575],[109,5576,109,5583],[109,5584,109,5591],[109,5592,109,5599],[109,5600,109,5607],[109,5464,109,5471],[109,5472,109,5479],[109,5480,109,5487],[109,5488,109,5495],[109,5496,109,5503],[109,5504,109,5511],[109,5512,109,5519],[109,5520,109,5527],[109,5528,109,5535],[109,5680,109,5687],[109,5688,109,5695],[109,5696,109,5703],[109,5704,109,5711],[109,5712,109,5719],[109,5720,109,5727],[109,5728,109,5735],[109,5736,109,5743],[109,5744,109,5751],[109,5608,109,5615],[109,5616,109,5623],[109,5624,109,5631],[109,5632,109,5639],[109,5640,109,5647],[109,5648,109,5655],[109,5656,109,5663],[109,5664,109,5671],[109,5672,109,5679],[109,5824,109,5831],[109,5832,109,5839],[109,5840,109,5847],[109,5848,109,5855],[109,5856,109,5863],[109,5864,109,5871],[109,5872,109,5879],[109,5880,109,5887],[109,5888,109,5895],[109,5752,109,5759],[109,5760,109,5767],[109,5768,109,5775],[109,5776,109,5783],[109,5784,109,5791],[109,5792,109,5799],[109,5800,109,5807],[109,5808,109,5815],[109,5816,109,5823],[109,5968,109,5975],[109,5976,109,5983],[109,5984,109,5991],[109,5992,109,5999],[109,6000,109,6007],[109,6008,109,6015],[109,6016,109,6023],[109,6024,109,6031],[109,6032,109,6039],[109,5896,109,5903],[109,5904,109,5911],[109,5912,109,5919],[109,5920,109,5927],[109,5928,109,5935],[109,5936,109,5943],[109,5944,109,5951],[109,5952,109,5959],[109,5960,109,5967],[109,6112,109,6119],[109,6120,109,6127],[109,6128,109,6135],[109,6136,109,6143],[109,6144,109,6151],[109,6152,109,6159],[109,6160,109,6167],[109,6168,109,6175],[109,6176,109,6183],[109,6040,109,6047],[109,6048,109,6055],[109,6056,109,6063],[109,6064,109,6071],[109,6072,109,6079],[109,6080,109,6087],[109,6088,109,6095],[109,6096,109,6103],[109,6104,109,6111],[109,6256,109,6263],[109,6264,109,6271],[109,6272,109,6279],[109,6280,109,6287],[109,6288,109,6295],[109,6296,109,6303],[109,6304,109,6311],[109,6312,109,6319],[109,6320,109,6327],[109,6184,109,6191],[109,6192,109,6199],[109,6200,109,6207],[109,6208,109,6215],[109,6216,109,6223],[109,6224,109,6231],[109,6232,109,6239],[109,6240,109,6247],[109,6248,109,6255],[109,6400,109,6407],[109,6408,109,6415],[109,6416,109,6423],[109,6424,109,6431],[109,6432,109,6439],[109,6440,109,6447],[109,6448,109,6455],[109,6456,109,6463],[109,6464,109,6471],[109,6328,109,6335],[109,6336,109,6343],[109,6344,109,6351],[109,6352,109,6359],[109,6360,109,6367],[109,6368,109,6375],[109,6376,109,6383],[109,6384,109,6391],[109,6392,109,6399],[109,6544,109,6551],[109,6552,109,6559],[109,6560,109,6567],[109,6568,109,6575],[109,6576,109,6583],[109,6584,109,6591],[109,6592,109,6599],[109,6600,109,6607],[109,6608,109,6615],[109,6472,109,6479],[109,6480,109,6487],[109,6488,109,6495],[109,6496,109,6503],[109,6504,109,6511],[109,6512,109,6519],[109,6520,109,6527],[109,6528,109,6535],[109,6536,109,6543],[109,6688,109,6695],[109,6696,109,6703],[109,6704,109,6711],[109,6712,109,6719]],"merged_total":2220,"flags":["merged_cut"]}
[null,null,null,null,null,null,null,null,null,null,null,null,null,null,null,null,null,null,null,"Verze k odeslání klientovi","Verze zpracovat","Verze k odeslání do pojišťovny"]
[null,null,null,null,null,null,null,null,null,null,null,null,null,null,null,null,null,null,null,1,1,1]
[null,null,null,null,null,null,null,null,null,null,null,null,null,null,null,null,null,null,null,1,1,1]
[null,null,null,null,null,null,null,null,null,null,null,null,null,null,null,null,null,null,null,1,1,1]
[null,null,null,null,null,null,null,null,null,null,null,null,null,null,null,null,null,null,null,1,1,1]
[]
["Živelní pojištění majetku  a další připojištění",null,null,null,null,null,null,null,null,null,null,null,null,null,null,null,null,null,null,1,1,1]
[]
["Místa pojištění",null,null,null,null,null,null,null,null,null,null,null,null,null,null,null,null,null,null,1,1,1]
[]
["Ulice, číslo popisné, město a PSČ",null,null,null,"Převládající činnost",null,null,"Vlastní/ pronajaté",null,null,null,null,null,null,null,null,null,null,null,1,1,1]
["katastrální území města Teplice, území České republiky a Evropy",null,null,null,null,null,null,"Vlastní i pronajaté",null,"Automaticky se vyplňuje adresa sídla pojistníka. Adresu lze měnit.",null,null,null,null,null,null,null,null,null,1,1,1]
[null,null,null,null,null,null,null,null,null,null,null,null,null,null,null,{"$f":"IF(ISBLANK(A13),\"SKRÝT\",1)","v":"SKRÝT"},{"$f":"IF(ISBLANK(E13),\"SKRÝT\",1)","v":"SKRÝT"},"SKRÝT",null,1,1,{"$f":"IF(AND(P13=\"SKRÝT\",Q13=\"SKRÝT\",R13=\"SKRÝT\"),\"SKRÝT\",1)","v":"SKRÝT"}]
[null,null,null,null,null,null,null,null,null,null,null,null,null,null,null,{"$f":"IF(ISBLANK(A14),\"SKRÝT\",1)","v":"SKRÝT"},"SKRÝT","SKRÝT",null,1,1,{"$f":"IF(AND(P14=\"SKRÝT\",Q14=\"SKRÝT\",R14=\"SKRÝT\"),\"SKRÝT\",1)","v":"SKRÝT"}]
[null,null,null,null,null,null,null,null,null,null,null,null,null,null,null,{"$f":"IF(ISBLANK(A15),\"SKRÝT\",1)","v":"SKRÝT"},"SKRÝT","SKRÝT",null,1,1,{"$f":"IF(AND(P15=\"SKRÝT\",Q15=\"SKRÝT\",R15=\"SKRÝT\"),\"SKRÝT\",1)","v":"SKRÝT"}]
[null,null,null,null,null,null,null,null,null,null,null,null,null,null,null,{"$f":"IF(ISBLANK(A16),\"SKRÝT\",1)","v":"SKRÝT"},"SKRÝT","SKRÝT",null,1,1,{"$f":"IF(AND(P16=\"SKRÝT\",Q16=\"SKRÝT\",R16=\"SKRÝT\"),\"SKRÝT\",1)","v":"SKRÝT"}]
["Nespecifikovaná místa na území ČR - limit plnění:",null,null,5000000,null,null,null,null,null,null,null,null,null,null,null,null,null,null,null,1,1,{"$f":"IF(ISBLANK(D17),\"SKRÝT\",1)","v":1}]
["Nespecifikovaná místa na území Evropy - limit plnění:",null,null,500000,null,null,null,null,null,null,null,null,null,null,null,null,null,null,null,1,1,{"$f":"IF(ISBLANK(D18),\"SKRÝT\",1)","v":1}]
[]
["Majetek k pojištění",null,null,null,null,null,null,null,null,null,null,null,null,null,null,null,null,null,null,1,1,1]
[null,null,null,null,null,null,null,null,null,null,null,null,null,null,null,null,null,null,null,1,1,1]
["Předměty pojištění",null,null,null,null,"Vlastní/ cizí/ \nvlastní a cizí","Pojistná částka","Pojistná hodnota","roční pojistné",null,null,null,null,null,null,null,null,null,null,1,1,{"$f":"IF((G57)=0,\"SKRÝT\",1)","v":1}]
["Soubor budov a ostatních staveb",null,null,null,null,null,{"$f":"SUM(G24:G30)","v":9221772915},null,null,null,null,null,null,null,null,null,null,null,null,1,1,{"$f":"IF(G23=0,\"SKRÝT\",1)","v":1}]
["Soubor budov, stavbev a hal, včetně technického zhodnocení a stavebních součástí vnějších i vnitřních (např. EZS, EPS, čidla, kamerové zabezpečovací systémy, mechanické zábranné systémy, anténní systémy, FVE, oplocení a technologie, umělecká díla umístěná v budovách i na budovách např. malby, stropy, fresky a pod.) dle přílohy č. 1",null,null,null,null,"Vlastní",8956906368,"Nová cena",null,null,null,null,null,null,null,null,null,null,null,1,1,1]
["Soubor budov, staveb a hal, včetně technického zhodnocení a stavebních součástí vnějších i vnitřních (např. EZS, EPS, čidla, kamerové zabezpečovací systémy, mechanické zábranné systémy, anténní systémy, FVE, oplocení a technologie, umělecká díla umístěná v budovách i na budovách např. malby, stropy, fresky a pod.) dle přílohy č. 2",null,null,null,null,"Vlastní",50666547,"Časová cena"]
["Lehké stavby a dřevostavby, přístřešky, kolny, včetně technického zhodnocení a stavebních součástí vnějších i vnitřních (např. EZS, EPS, čidla, kamerové zabezpečovací systémy, mechanické zábranné systémy, anténní systémy, FVE)",null,null,null,null,"Vlastní",2000000,"První riziko - nová cena",null,null,null,null,null,null,null,null,null,null,null,1,1,1]
["Ostatní věci nemovité  a movité na volném prostranství (např. rampy, komíny, trakční/trojelové vedení pro trojelbusy vč příslušenství,sloupy veřejného osvětlení vč. svítidel, vč. osvětlení staveb halogenovými světly, světelné závěsy apod., semafory,  dopravní značky, výhledová zrcadla, všechny typy hřišť vč. příslušenství - herní prvky, prvky školních a fotbalových hřišť např. branky, tyče, koše, zábradlí, atletické dráhy, upravené povrchy, ploty, travnaté povrchy, závlahové systémy vč. čidel,čerpadel,postřikovačů, řídídích jednotek,kabely pro automatizační a řídící systém, vrt vč. vystrojení, vč. elektropřípojek,vč.dalších staveb a prvků, které jsou součástí hřišť , zpevněné plochy, komunikace, pozemkové úpravy, kanalizace, inženýrské sítě, včetně odnímatelných částic  kanalizační a jiné šachtice, poklopy, odpadkové koše, lavičky, parkovací automaty, zábradlí, sloupky a koule vč. dlažby, řetězy, autobusové zastávky vč. skel,kašny, altány, kontejnerová stání, venkovní úpravy např. opěrné zdi, venkovní schody, obrubníky, ploty, apod.)",null,null,null,null,"Vlastní",210000000,"První riziko - nová cena",null,null,null,null,null,null,null,null,null,null,null,1,1,1]
["Ostatní věci nemovité na volném prostranství, které se nachází na vodních tocích (např. mosty, lávky, apod.)",null,null,null,null,"Vlastní",200000,"První riziko - nová cena",null,null,null,null,null,null,null,null,null,null,null,1,1,1]
["Ostatní nemovité věci na volném prostranství umělecké, zvláštní kulturní a historické hodnoty (např. památníky, kaple, sochy, bisty, kašny, altány  apod.)",null,null,null,null,"Vlastní",1500000,"První riziko - obvyklá cena",null,"POZOR na smluvní ujednání pro řemeslné a restaurátorské práce.",null,null,null,null,null,null,null,null,null,1,1,1]
["Náklady na znovupořízení zeleně",null,null,null,null,"Vlastní",500000,"První riziko - nová cena",null,null,null,null,null,null,null,null,null,null,null,1,1,1]
["Soubor věcí movitých",null,null,null,null,null,{"$f":"SUM(G32:G35)","v":300900000},null,null,null,null,null,null,null,null,null,null,null,null,1,1,1]
["Provozní zařízení vlastní a cizí (stroje, elektronika, soubor věcí vedených v operativní evidenci, na účtu spotřeby materiálu, ostatní vybavení, drobný majetek, vč. kamerového systému apod.)",null,null,null,null,"Vlastní a cizí",300000000,"Nová cena",null,null,null,null,null,null,null,null,null,null,null,1,1,1]
["Soubor cizích věcí užívaných a převzatých",null,null,null,null,"Cizí",500000,"První riziko - nová cena"]
["Písemnosti, plány, výkresy, nosiče dat (vč. software) a záznamy na nich",null,null,null,null,"Vlastní",200000,"První riziko - nová cena",null,null,null,null,null,null,null,null,null,null,null,1,1,1]
["Věci vnesené a odložené, věci zaměstnanců",null,null,null,null,"Cizí",200000,"První riziko - časová cena",null,null,null,null,null,null,null,null,null,null,null,1,1,1]
["Kancelářská a výpočetní technika, ústředny, el.siganlizace apod., vč. vybavení kanceláří, škol a školek např. interaktivní tabule, počítače apod.)",null,null,null,null,"Vlastní a cizí",1000000,"První riziko - nová cena",null,null,null,null,null,null,null,null,null,null,null,1,1,1]
["Soubor lodíček (4x pramice TINA IV vč. příslušenství)",null,null,null,null,"Vlastní",129000,"První riziko - nová cena"]
["Soubor zásob (materiál, zboží, nedokončená výroba)",null,null,null,null,null,{"$f":"SUM(G39:G40)","v":10000000},null,null,null,null,null,null,null,null,null,null,null,null,1,1,1]
["Soubor zásob",null,null,null,null,"Vlastní",10000000,"Nová cena",null,null,null,null,null,null,null,null,null,null,null,1,1,1]
[null,null,null,null,null,null,null,"Preventivní pojistná částka",null,null,null,null,null,null,null,null,null,null,null,1,1,"SKRÝT"]
["Soubor nových investic (účet 042)",null,null,null,null,null,{"$f":"SUM(G42:G43)","v":0},null,null,null,null,null,null,null,null,null,null,null,null,1,1,"SKRÝT"]
["Budovy, stavby a haly včetně technického zhodnocení",null,null,null,null,null,null,null,null,null,null,null,null,null,null,null,null,null,null,1,1,"SKRÝT"]
["Věci movité (stroje, zařízení)",null,null,null,null,null,null,null,null,null,null,null,null,null,null,null,null,null,null,1,1,"SKRÝT"]
["Soubor peněz a cenností",null,null,null,null,null,{"$f":"SUM(G45)","v":1700000},null,null,null,null,null,null,null,null,null,null,null,null,null,null,1]
["Peníze, cennosti a ceniny ",null,null,null,null,"Vlastní",1700000,"První riziko - nová cena",null,null,null,null,null,null,null,null,null,null,null,1,1,1]
["Přeprava peněz a cenností",null,null,null,null,null,{"$f":"SUM(G47)","v":600000},null,null,null,null,null,null,null,null,null,null,null,null,1,1,1]
["Peníze, cennosti a ceniny, při přepravě",null,null,null,null,"Vlastní",600000,"První riziko - nová cena",null,null,null,null,null,null,null,null,null,null,null,1,1,1]
["Věci zvláštní hodnoty",null,null,null,null,null,{"$f":"SUM(G49:G50)","v":1500000},null,null,null,null,null,null,null,null,null,null,null,null,1,1,1]
["Umělecká díla, věci zvláštní kulturní a historické hodnoty",null,null,null,null,"Vlastní",1500000,"První riziko - obvyklá cena",null,"POZOR na smluvní ujednání pro věci zvláštní hodnoty a připojištění řemeslných a restaurátorských prací.",null,null,null,null,null,null,null,null,null,1,1,1]
["Poskytnutí dodatečné slevy za dlouhodobost   - požadovaná textace ",null,null,null,null,null,null,null,null,"POZOR na smluvní ujednání pro věci zvláštní hodnoty a připojištění řemeslných a restaurátorských prací.",null,null,null,null,null,null,null,null,null,1,1,{"$f":"IF(G50=0,\"SKRÝT\",1)","v":"SKRÝT"}]
["Soubor věcí během silniční přepravy",null,null,null,null,null,{"$f":"SUM(G52:G54)","v":0},null,null,null,null,null,null,null,null,null,null,null,null,1,1,"SKRÝT"]
["Soubor věcí movitých (Provozní zařízení)",null,null,null,null,null,null,"První riziko - nová cena",null,null,null,null,null,null,null,null,null,null,null,1,1,"SKRÝT"]
["Soubor zásob (Materiál, nedokončená výroba, zásoby)",null,null,null,null,null,null,"První riziko - nová cena",null,null,null,null,null,null,null,null,null,null,null,1,1,"SKRÝT"]
["Věci převzaté např. za účelem opravy",null,null,null,null,"Cizí",null,"První riziko - nová cena",null,null,null,null,null,null,null,null,null,null,null,1,1,"SKRÝT"]
["Jiné",null,null,null,null,null,{"$f":"SUM(G56)","v":2420000},null,null,null,null,null,null,null,null,null,null,null,null,1,1,1]
["Uveďte:","FVE, stroje",null,null,null,"Vlastní",2420000,"První riziko - nová cena",null,null,null,null,null,null,null,null,null,null,null,1,1,{"$f":"IF((G56)=0,\"SKRÝT\",1)","v":1}]
["viz příloha - Základní informace ",null,null,null,null,null,{"$f":"SUM(G24:G30,G32:G36,G39:G40,G42:G43,G45,G49:G50,G52:G54,G56)","v":9539292915},null,null,null,null,null,null,null,null,null,null,null,null,1,1,{"$f":"IF((G57)=0,\"SKRÝT\",1)","v":1}]
["Poznámka","Pokud pojistník, pojištěný nebo oprávněná osoba způsobí zánik pojištění,  dříve než za 4 roky od data nabytí její učinnosti, zavazuje se pojistník ",null,null,null,null,null,null,null,null,null,null,null,null,null,null,null,null,null,1,1,{"$f":"IF(ISBLANK(A59),\"SKRÝT\",1)","v":"SKRÝT"}]
[null,null,null,null,null,null,null,null,null,"Zde můžete doplnit poznámky.",null,null,null,null,null,null,null,null,null,1,1,{"$f":"IF(ISBLANK(A59),\"SKRÝT\",1)","v":"SKRÝT"}]
[null,null,null,null,null,null,null,null,null,null,null,null,null,null,null,null,null,null,null,1,1,1]
["Použité pojmy",null,null,null,null,null,null,null,null,null,null,null,null,null,null,null,null,null,null,1,1,1]
["Nová cena","Cena, za kterou lze v daném místě a v daném čase věc stejnou nebo srovnatelnou znovu pořídit jako věc stejnou nebo novou, stejného druhu a účelu.",null,null,null,null,null,null,null,null,null,null,null,null,null,null,null,null,null,1,1,1]
["Časová cena","Cena, kterou měla věc bezprostředně před pojistnou událostí; stanoví se z nové ceny věci, přičemž se přihlíží ke stupni opotřebení nebo jiného znehodnocení anebo k zhodnocení věci, k němuž došlo její opravou, modernizací nebo jiným způsobem.",null,null,null,null,null,null,null,null,null,null,null,null,null,null,null,null,null,1,1,1]
["Jiná cena","Cena, jejíž výše i způsob stanovení jsou dohodnuté v pojistné smlouvě.",null,null,null,null,null,null,null,null,null,null,null,null,null,null,null,null,null,1,1,1]
["Obvyklá cena","Cena, kterou může pojištěný dosáhnout při prodeji předmětné věci v daném čase a místě pojištění.",null,null,null,null,null,null,null,null,null,null,null,null,null,null,null,null,null,1,1,1]
["První riziko","V případě pojištění na první riziko se pojištění sjednává pouze na část známé pojistné hodnoty věci. Pojistná částka sjednaná na první riziko je zároveň horní hranicí plnění pojistitele ze všech pojistných událostí vzniklých za určenou dobu.",null,null,null,null,null,null,null,null,null,null,null,null,null,null,null,null,null,1,1,1]
[null,null,null,null,null,null,null,null,null,null,null,null,null,null,null,null,null,null,null,1,1,1]
["Další informace o pojišťovaném majetku",null,null,null,null,null,null,null,null,null,null,null,null,null,null,null,null,null,null,1,1,{"$f":"IF(AND(V70=\"SKRÝT\",V71=\"SKRÝT\",V72=\"SKRÝT\",V73=\"SKRÝT\"),\"SKRÝT\",1)","v":1}]
[null,null,null,"Ano/ Ne",null,null,null,null,null,null,null,null,null,null,null,null,null,null,null,1,1,{"$f":"IF(AND(V70=\"SKRÝT\",V71=\"SKRÝT\",V72=\"SKRÝT\",V73=\"SKRÝT\"),\"SKRÝT\",1)","v":1}]
["Jsou pojišťované budovy a stavby památkově chráněny?",null,null,"Ano",null,null,null,null,null,"Pokud ano,  POZOR na smluvní ujednání pro řemeslné a restaurátorské práce.",null,null,null,null,null,null,null,null,null,1,1,{"$f":"IF(ISBLANK(D70),\"SKRÝT\",1)","v":1}]
["Nachází se pojišťované zásoby na volném prostranství?",null,null,null,null,null,null,null,null,null,null,null,null,null,null,null,null,null,null,1,1,{"$f":"IF(ISBLANK(D71),\"SKRÝT\",1)","v":"SKRÝT"}]
["Nachází se pojišťované věci movité na volném prostranství?",null,null,"Ano",null,null,null,null,null,null,null,null,null,null,null,null,null,null,null,1,1,{"$f":"IF(ISBLANK(D72),\"SKRÝT\",1)","v":1}]
["Je osoba provádějící přepravu peněz vybavena obranným sprejem?",null,null,"Ano",null,null,null,null,null,"Pokud ne, POZOR na podmínky zabezpečení pro přepravu cenností.",null,null,null,null,null,null,null,null,null,1,1,{"$f":"IF(ISBLANK(D73),\"SKRÝT\",1)","v":1}]
[null,null,null,null,null,null,null,null,null,null,null,null,null,null,null,null,null,null,null,1,1,1]
["Místo pojištění s největší hodnotou majetku",null,null,null,null,null,null,null,null,null,null,null,null,null,null,null,null,null,null,1,1,{"$f":"IF(AND(N77=\"SKRÝT\",O77=\"SKRÝT\",P77=\"SKRÝT\",Q77=\"SKRÝT\",R77=\"SKRÝT\",S77=\"SKRÝT\"),\"SKRÝT\",1)","v":1}]
["Ulice, číslo popisné, město a PSČ",null,"Budovy a stavby","Věci movité vlastní","Věci movité cizí","Zásoby","CELKEM","Vlastní/ pronajaté",null,null,null,null,null,null,null,null,null,null,null,1,1,{"$f":"IF(AND(N77=\"SKRÝT\",O77=\"SKRÝT\",P77=\"SKRÝT\",Q77=\"SKRÝT\",R77=\"SKRÝT\",S77=\"SKRÝT\"),\"SKRÝT\",1)","v":1}]
["Viz příloha základní informace",null,null,null,null,null,{"$f":"SUM(C77:F77)","v":0},null,null,null,null,null,null,{"$f":"IF(ISBLANK(A77),\"SKRÝT\",1)","v":1},{"$f":"IF(ISBLANK(C77),\"SKRÝT\",1)","v":"SKRÝT"},{"$f":"IF(ISBLANK(D77),\"SKRÝT\",1)","v":"SKRÝT"},{"$f":"IF(ISBLANK(E77),\"SKRÝT\",1)","v":"SKRÝT"},{"$f":"IF(ISBLANK(F77),\"SKRÝT\",1)","v":"SKRÝT"},{"$f":"IF(ISBLANK(H77),\"SKRÝT\",1)","v":"SKRÝT"},1,1,{"$f":"IF(AND(N77=\"SKRÝT\",O77=\"SKRÝT\",P77=\"SKRÝT\",Q77=\"SKRÝT\",R77=\"SKRÝT\",S77=\"SKRÝT\"),\"SKRÝT\",1)","v":1}]
[null,null,null,null,null,null,null,null,null,null,null,null,null,null,null,null,null,null,null,1,1,{"$f":"IF(AND(N77=\"SKRÝT\",O77=\"SKRÝT\",P77=\"SKRÝT\",Q77=\"SKRÝT\",R77=\"SKRÝT\",S77=\"SKRÝT\"),\"SKRÝT\",1)","v":1}]
["Živelní pojištění majetku",null,null,null,null,null,null,null,null,null,null,null,null,null,null,null,null,null,null,1,1,1]
[null,null,null,null,null,null,null,null,null,null,null,null,null,null,null,null,null,null,null,1,1,1]
["Pojištěná nebezpečí",null,null,null,"Varianta  I.",null,"Varianta  II.",null,null,"Požadujte především různé varianty limitů. ",null,null,null,null,null,null,null,null,null,1,1,1]
[null,null,null,null,"Kompletní živel",null,null,null,null,null,null,null,null,null,null,null,null,null,null,1,1,1]
[null,null,null,null,"Limit plnění","Spoluúčast","Limit plnění","Spoluúčast",null,null,null,null,null,null,null,null,null,null,null,1,1,1]
["FLEXA (požár, výbuch, úder blesku, pád letadla nebo jeho částí)",null,null,null,"bez limitu",1000,"bez limitu",null,null,null,null,null,null,null,null,null,null,null,null,1,1,1]
["Povodeň nebo záplava, zemětřesení, zřícení lavin",null,null,null,50000000,1000,null,null,null,"Při nastavení výše limitu je nutné vycházet z umístění pojišťovaného majetku. POZOR na případné škody na zásobách, strojích, elektronice apod.",null,null,null,null,null,{"$f":"IF(ISBLANK(E85),\"SKRÝT\",1)","v":1},{"$f":"IF(ISBLANK(F85),\"SKRÝT\",1)","v":1},{"$f":"IF(ISBLANK(G85),\"SKRÝT\",1)","v":"SKRÝT"},{"$f":"IF(ISBLANK(H85),\"SKRÝT\",1)","v":"SKRÝT"},1,1,{"$f":"IF(AND(P85=\"SKRÝT\",Q85=\"SKRÝT\",R85=\"SKRÝT\",S85=\"SKRÝT\"),\"SKRÝT\",1)","v":1}]
["Vichřice, krupobití; sesuv půdy, zřícení skal nebo zemin; tíha sněhu, námrazy; pád stromů, stožárů nebo jiných předmětů ",null,null,null,100000000,1000,null,null,null,"Pro tato nebezpečí doporučujeme limit ve výši 20 - 30 % z celkové pojistné částky. V individuálních případech více. Nezbytné minimum je 10% celkové pojistné částky. ",null,null,null,null,null,{"$f":"IF(ISBLANK(E86),\"SKRÝT\",1)","v":1},{"$f":"IF(ISBLANK(F86),\"SKRÝT\",1)","v":1},{"$f":"IF(ISBLANK(G86),\"SKRÝT\",1)","v":"SKRÝT"},{"$f":"IF(ISBLANK(H86),\"SKRÝT\",1)","v":"SKRÝT"},1,1,{"$f":"IF(AND(P86=\"SKRÝT\",Q86=\"SKRÝT\",R86=\"SKRÝT\",S86=\"SKRÝT\"),\"SKRÝT\",1)","v":1}]
["Vodovodní škody, vč. úniku vody z vnitřních okapových svodů, odpadního potrubí a kanalizace",null,null,null,50000000,1000,null,null,null,"Při nastavení výše limitu POZOR na případné škody na zásobách, strojích, elektronice apod.",null,null,null,null,null,1,1,"SKRÝT","SKRÝT",1,1,1]
["Náraz dopravního prostředku; aerodynamický třesk; kouř",null,null,null,3000000,1000,null,null,null,null,null,null,null,null,null,1,1,"SKRÝT","SKRÝT",1,1,1]
["Atmosférické srážky",null,null,null,1000000,1000,null,null,null,"V případě, že požadujete All risk, doporučujeme neuvádět zvláštní limit ani spoluúčast.  Doporučujeme uvést např.: \"viz Ostatní\".",null,null,null,null,null,1,1,"SKRÝT","SKRÝT",1,1,1]
["Nepřímý úder blesku",null,null,null,500000,1000,null,null,null,"V případě, že požadujete All risk, doporučujeme neuvádět zvláštní limit ani spoluúčast.  Doporučujeme uvést např.: \"viz Ostatní\".",null,null,null,null,null,1,1,"SKRÝT","SKRÝT",1,1,1]
["Mechanické poškození zateplení budov ptactvem, hmyzem, hlodavci",null,null,null,100000,1000,null,null,null,"V případě, že požadujete All risk, doporučujeme neuvádět zvláštní limit ani spoluúčast.  Doporučujeme uvést např.: \"viz Ostatní\".",null,null,null,null,null,1,1,"SKRÝT","SKRÝT",1,1,1]
["Ostatní (v případě All risk)",null,null,null,null,null,null,null,null,null,null,null,null,null,null,"SKRÝT","SKRÝT","SKRÝT","SKRÝT",1,1,"SKRÝT"]
["Jiné (uveďte):",null,null,null,null,null,null,null,null,"Pokud chcete pojistit i jiné nebezpečí, doplňte.",null,null,null,null,null,"SKRÝT","SKRÝT","SKRÝT","SKRÝT",1,1,"SKRÝT"]
["Deratizace a dezinfekce ",null,null,null,100000,1000]
["Náklady na hašení, demolici a odvoz suti ",null,null,null,5000000,"Viz jednotlivá nebezpečí",null,"Viz jednotlivá nebezpečí",null,"Doporučená výše limitu je 5 - 10 % z hodnoty nemovitého majetku, v závislosti na jeho konstrukci (železobeton, cihla atd.)",null,null,null,null,null,1,null,"SKRÝT",null,1,1,{"$f":"IF(AND(P95=\"SKRÝT\",R95=\"SKRÝT\"),\"SKRÝT\",1)","v":1}]
["Náklady na vodné a stočné",null,null,null,300000,"Viz vodovodní škody",null,"Viz vodovodní škody",null,"Pokud mají být pojištěny vodovodní škody, doporučujeme požadovat.",null,null,null,null,null,1,null,"SKRÝT",null,1,1,1]
["Zvýšené náklady související s obnovou majetku, tak aby mohl být využíván k původním účelům, z důvodu změny obecně závazných právních předpisů a norem nebo nedostupnosti zařízení se stejnými technickými parametry",null,null,null,null,"Viz jednotlivá nebezpečí",null,"Viz jednotlivá nebezpečí",null,"Doporučená výše limitu je asi 5 % z celkové hodnoty majetku.",null,null,null,null,null,{"$f":"IF(ISBLANK(E97),\"SKRÝT\",1)","v":"SKRÝT"},null,{"$f":"IF(ISBLANK(G97),\"SKRÝT\",1)","v":"SKRÝT"},null,1,1,"SKRÝT"]
["Výpadek medií na zvovu pořízení ",null,null,null,500000,"Viz jednotlivá nebezpečí",null,"Viz jednotlivá nebezpečí",null,"V případě, že jsou předmětem pojištění domy s bytovými jednotkami, doporučujeme požadovat.",null,null,null,null,null,1,null,"SKRÝT",null,1,1,1]
["Náklady na řemeslné a restaurátorské práce",null,null,null,3000000,"Viz jednotlivá nebezpečí",null,"Viz jednotlivá nebezpečí",null,"Pokud jsou předmětem pojištění památkově chráněné budovy nebo věci zvláštní hodnoty jako např. sochy (např. u obcí), doporučujeme tyto náklady připojistit. Obvykle dostačuje limit mezi 500 tis. Kč - 2 mil. Kč. Jestliže je předmětem pojištění zámek apod., doporučujeme limit vyšší.",null,null,null,null,null,{"$f":"IF(E99=\"\",\"SKRÝT\",1)","v":1},null,{"$f":"IF(ISBLANK(G99),\"SKRÝT\",1)","v":"SKRÝT"},null,1,1,1]
["Jiné náklady (uveďte):",null,null,null,null,"Viz jednotlivá nebezpečí",null,"Viz jednotlivá nebezpečí",null,"Pokud chcete pojistit i jiné náklady, doplňte.",null,null,null,null,null,"SKRÝT",null,"SKRÝT",null,1,1,"SKRÝT"]
["Poznámka",null,null,null,null,null,null,null,null,null,null,null,null,null,null,null,null,null,null,1,1,{"$f":"IF(AND(V102=\"SKRÝT\",V103=\"SKRÝT\"),\"SKRÝT\",1)","v":"SKRÝT"}]
[null,null,null,null,null,null,null,null,null,"Příklad poznámky. Pokud nepožadujete, řádek odstraňte.",null,null,null,null,null,null,null,null,null,"SKRÝT",1,{"$f":"IF(ISBLANK(A102),\"SKRÝT\",1)","v":"SKRÝT"}]
[null,null,null,null,null,null,null,null,null,"Zde můžete doplnit poznámky. Řádek můžete rozkopírovat. ",null,null,null,null,null,null,null,null,null,1,1,{"$f":"IF(ISBLANK(A103),\"SKRÝT\",1)","v":"SKRÝT"}]
["Použité pojmy",null,null,null,null,null,null,null,null,null,null,null,null,null,null,null,null,null,null,1,1,{"$f":"IF(V79=\"SKRÝT\",\"SKRÝT\",1)","v":1}]
["All risk","Všechna nebezpečí, kromě výslovně vyloučených (např. technická rizika, válka, stávka; politická rizika; jaderné záření, reakce, kontaminace; běžné opotřebení; vnitřní povaha věci; atmosférické vlivy; úmysl pojištěného; zpronevěra; následné škody; pokuty a jiné sankce)",null,null,null,null,null,null,null,null,null,null,null,null,null,null,null,null,null,1,1,{"$f":"IF(V104=\"SKRÝT\",\"SKRÝT\",1)","v":1}]
["Kompletní živel","FLEXA (požár, úder blesku, výbuch, pád letadla nebo jeho nákladu); povodeň, záplava; vichřice nebo krupobití; pád stromů, stožárů nebo jiných předmětů; náraz dopravního prostředku; tíha sněhu nebo námrazy; sesuv půdy, zřícení skal nebo zemin, sesouvání nebo zřícení lavin; zemětřesení; aerodynamický třesk; vodovodní škody; kouř; nepřímý úder blesku; atmosférické srážky",null,null,null,null,null,null,null,null,null,null,null,null,null,null,null,null,null,1,1,{"$f":"IF(V105=\"SKRÝT\",\"SKRÝT\",1)","v":1}]
[null,null,null,null,null,null,null,null,null,null,null,null,null,null,null,null,null,null,null,1,1,1]
["Pojištění majetku proti odcizení, vandalismu",null,null,null,null,null,null,null,null,null,null,null,null,null,null,null,null,null,null,1,1,{"$f":"IF(AND(V148=\"SKRÝT\",V149=\"SKRÝT\",V150=\"SKRÝT\",V151=\"SKRÝT\",V152=\"SKRÝT\",V153=\"SKRÝT\",V155=\"SKRÝT\"),\"SKRÝT\",1)","v":1}]
[null,null,null,null,null,null,null,null,null,null,null,null,null,null,null,null,null,null,null,1,1,{"$f":"IF(AND(V122=\"SKRÝT\",V125=\"SKRÝT\",V126=\"SKRÝT\",V127=\"SKRÝT\",V129=\"SKRÝT\",V131=\"SKRÝT\",V132=\"SKRÝT\"),\"SKRÝT\",1)","v":"SKRÝT"}]
["Místa pojištění",null,null,null,null,null,null,null,null,null,null,null,null,null,null,null,null,null,null,1,1,{"$f":"IF(V111=\"SKRÝT\",\"SKRÝT\",1)","v":1}]
[null,null,null,null,null,null,null,null,null,null,null,null,null,null,null,null,null,null,null,null,null,{"$f":"IF(V112=\"SKRÝT\",\"SKRÝT\",1)","v":1}]
["Ulice, číslo popisné, město a PSČ",null,null,null,null,null,null,"Limit plnění",null,null,null,null,null,null,null,null,null,null,null,1,1,{"$f":"IF(V113=\"SKRÝT\",\"SKRÝT\",1)","v":1}]
["katastrální  území města Teplic",null,null,null,null,null,null,null,null,"Doporučujeme sjednávat celkový limit pro všechna místa pojištění (viz limity u jednotlivých nebezpečí). Jednotlivá místa pojištění doporučujeme limitovat jen na přání klienta.",null,null,null,null,null,{"$f":"IF(ISBLANK(A113),\"SKRÝT\",1)","v":1},null,{"$f":"IF(ISBLANK(H113),\"SKRÝT\",1)","v":"SKRÝT"},null,1,1,{"$f":"IF(AND(P113=\"SKRÝT\",R113=\"SKRÝT\"),\"SKRÝT\",1)","v":1}]
[null,null,null,null,null,null,null,null,null,"Doporučujeme sjednávat celkový limit pro všechna místa pojištění (viz limity u jednotlivých nebezpečí). Jednotlivá místa pojištění doporučujeme limitovat jen na přání klienta.",null,null,null,null,null,{"$f":"IF(ISBLANK(A114),\"SKRÝT\",1)","v":"SKRÝT"},null,{"$f":"IF(ISBLANK(H114),\"SKRÝT\",1)","v":"SKRÝT"},null,1,1,{"$f":"IF(AND(P114=\"SKRÝT\",R114=\"SKRÝT\"),\"SKRÝT\",1)","v":"SKRÝT"}]
[null,null,null,null,null,null,null,null,null,"Doporučujeme sjednávat celkový limit pro všechna místa pojištění (viz limity u jednotlivých nebezpečí). Jednotlivá místa pojištění doporučujeme limitovat jen na přání klienta.",null,null,null,null,null,{"$f":"IF(ISBLANK(A115),\"SKRÝT\",1)","v":"SKRÝT"},null,{"$f":"IF(ISBLANK(H115),\"SKRÝT\",1)","v":"SKRÝT"},null,1,1,{"$f":"IF(AND(P115=\"SKRÝT\",R115=\"SKRÝT\"),\"SKRÝT\",1)","v":"SKRÝT"}]
[null,null,null,null,null,null,null,null,null,"Doporučujeme sjednávat celkový limit pro všechna místa pojištění (viz limity u jednotlivých nebezpečí). Jednotlivá místa pojištění doporučujeme limitovat jen na přání klienta.",null,null,null,null,null,{"$f":"IF(ISBLANK(A116),\"SKRÝT\",1)","v":"SKRÝT"},null,{"$f":"IF(ISBLANK(H116),\"SKRÝT\",1)","v":"SKRÝT"},null,1,1,{"$f":"IF(AND(P116=\"SKRÝT\",R116=\"SKRÝT\"),\"SKRÝT\",1)","v":"SKRÝT"}]
[null,null,null,null,null,null,null,null,null,"Doporučujeme sjednávat celkový limit pro všechna místa pojištění (viz limity u jednotlivých nebezpečí). Jednotlivá místa pojištění doporučujeme limitovat jen na přání klienta.",null,null,null,null,null,{"$f":"IF(ISBLANK(A117),\"SKRÝT\",1)","v":"SKRÝT"},null,{"$f":"IF(ISBLANK(H117),\"SKRÝT\",1)","v":"SKRÝT"},null,1,1,{"$f":"IF(AND(P117=\"SKRÝT\",R117=\"SKRÝT\"),\"SKRÝT\",1)","v":"SKRÝT"}]
["Nespecifikovaná místa na území ČR - limit plnění:",null,null,5000000,null,null,null,null,null,null,null,null,null,null,null,null,null,null,null,1,1,{"$f":"IF(ISBLANK(D118),\"SKRÝT\",1)","v":1}]
["Nespecifikovaná místa na území Evropy - limit plnění:",null,null,500000,null,null,null,null,null,null,null,null,null,null,null,null,null,null,null,1,1,{"$f":"IF(ISBLANK(D119),\"SKRÝT\",1)","v":1}]
["Majetek k pojištění",null,null,null,null,null,null,null,null,null,null,null,null,null,null,null,null,null,null,1,1,{"$f":"IF(AND(V123=\"SKRÝT\",V126=\"SKRÝT\",V127=\"SKRÝT\",V128=\"SKRÝT\",V130=\"SKRÝT\",V132=\"SKRÝT\",V133=\"SKRÝT\"),\"SKRÝT\",1)","v":"SKRÝT"}]
["Předměty pojištění",null,null,null,null,"Vlastní/ cizí/ \nvlastní a cizí","Pojistná částka","Pojistná hodnota",null,null,null,null,null,null,null,null,null,null,null,1,1,{"$f":"IF(AND(V124=\"SKRÝT\",V127=\"SKRÝT\",V128=\"SKRÝT\",V129=\"SKRÝT\",V131=\"SKRÝT\",V133=\"SKRÝT\",V134=\"SKRÝT\"),\"SKRÝT\",1)","v":"SKRÝT"}]
["Soubor stavebních součástí",null,null,null,null,null,{"$f":"SUM(G123)","v":0},null,null,null,null,null,null,null,null,null,null,null,null,1,1,{"$f":"IF(G122=0,\"SKRÝT\",1)","v":"SKRÝT"}]
["Vnitřní i vnější stavební součásti (např. EZS, EPS, čidla, kamerové zabezpečovací systémy, mechanické zábranné systémy, anténní systémy, FVE)",null,null,null,null,null,null,"První riziko - nová cena",null,"POZOR na úroveň zabezpečení u klienta.",null,null,null,null,null,null,null,null,null,1,1,{"$f":"IF((G123)=0,\"SKRÝT\",1)","v":"SKRÝT"}]
["Soubor věcí movitých",null,null,null,null,null,{"$f":"SUM(G125:G127)","v":0},null,null,null,null,null,null,null,null,null,null,null,null,1,1,{"$f":"IF(G124=0,\"SKRÝT\",1)","v":"SKRÝT"}]
["Provozní zařízení (stroje, elektronika, soubor věcí vedených v operativní evidenci, na účtu spotřeby materiálu, ostatní vybavení kanceláře, drobný majetek, apod.)",null,null,null,null,null,null,"První riziko - nová cena",null,"POZOR na úroveň zabezpečení u klienta.",null,null,null,null,null,null,null,null,null,1,1,{"$f":"IF(G125=0,\"SKRÝT\",1)","v":"SKRÝT"}]
["Písemnosti, plány, výkresy, nosiče dat (vč. software) a záznamy na nich",null,null,null,null,null,null,"První riziko - nová cena",null,"POZOR na úroveň zabezpečení u klienta.",null,null,null,null,null,null,null,null,null,1,1,"SKRÝT"]
["Věci vnesené a odložené, věci zaměstnanců",null,null,null,null,null,null,"První riziko - časová cena",null,"POZOR na úroveň zabezpečení u klienta.",null,null,null,null,null,null,null,null,null,1,1,"SKRÝT"]
["Soubor zásob",null,null,null,null,null,{"$f":"SUM(G129)","v":0},null,null,null,null,null,null,null,null,null,null,null,null,1,1,"SKRÝT"]
["Materiál, zboží, nedokončená výroba",null,null,null,null,null,null,"První riziko - nová cena",null,"POZOR na úroveň zabezpečení u klienta.",null,null,null,null,null,null,null,null,null,1,1,"SKRÝT"]
["Soubor nových investic (účet 042)",null,null,null,null,null,{"$f":"SUM(G131:G132)","v":0},null,null,null,null,null,null,null,null,null,null,null,null,1,1,"SKRÝT"]
["Budovy, stavby a haly včetně technického zhodnocení",null,null,null,null,null,null,"První riziko - nová cena",null,"POZOR na úroveň zabezpečení u klienta.",null,null,null,null,null,null,null,null,null,1,1,"SKRÝT"]
["Věci movité (stroje, zařízení)",null,null,null,null,null,null,"První riziko - nová cena",null,"POZOR na úroveň zabezpečení u klienta.",null,null,null,null,null,null,null,null,null,1,1,"SKRÝT"]
["Soubor peněz a cenností",null,null,null,null,null,{"$f":"SUM(G134)","v":0},null,null,null,null,null,null,null,null,null,null,null,null,1,1,"SKRÝT"]
["Peníze, cennosti a ceniny ",null,null,null,null,null,null,"První riziko - nová cena",null,"POZOR na úroveň zabezpečení u klienta.",null,null,null,null,null,null,null,null,null,1,1,"SKRÝT"]
["Přeprava peněz a cenností",null,null,null,null,null,null,null,null,null,null,null,null,null,null,null,null,null,null,1,1,"SKRÝT"]
["Peníze, cennosti a ceniny při přepravě",null,null,null,null,null,null,"První riziko - nová cena",null,"POZOR na úroveň zabezpečení u klienta.",null,null,null,null,null,null,null,null,null,1,1,"SKRÝT"]
["Věci zvláštní hodnoty",null,null,null,null,null,null,null,null,null,null,null,null,null,null,null,null,null,null,1,1,"SKRÝT"]
["Umělecká díla, věci zvláštní kulturní a historické hodnoty",null,null,null,null,null,null,"První riziko - obvyklá cena",null,"POZOR na smluvní ujednání pro věci zvláštní hodnoty a úroveň zabezpečení u klienta.",null,null,null,null,null,null,null,null,null,1,1,"SKRÝT"]
["Vzorky, názorné modely, prototypy, včetně exponátů na výstavách",null,null,null,null,null,null,"První riziko - obvyklá cena",null,"POZOR na smluvní ujednání pro věci zvláštní hodnoty a úroveň zabezpečení u klienta.",null,null,null,null,null,null,null,null,null,1,1,"SKRÝT"]
["Jiné",null,null,null,null,null,{"$f":"SUM(G141)","v":0},null,null,null,null,null,null,null,null,null,null,null,null,1,1,"SKRÝT"]
["Ostatní (uveďte):",null,null,null,null,null,null,"První riziko - nová cena",null,"POZOR na úroveň zabezpečení u klienta.",null,null,null,null,null,null,null,null,null,1,1,"SKRÝT"]
["Pojistná částka celkem",null,null,null,null,null,{"$f":"SUM(G122,G124,G128,G130,G133,G135,G137,G140)","v":0},null,null,null,null,null,null,null,null,null,null,null,null,1,1,"SKRÝT"]
["Poznámka",null,null,null,null,null,null,null,null,null,null,null,null,null,null,null,null,null,null,1,1,{"$f":"IF(V144=\"SKRÝT\",\"SKRÝT\",1)","v":"SKRÝT"}]
[null,null,null,null,null,null,null,null,null,"Zde můžete doplnit poznámky.",null,null,null,null,null,null,null,null,null,1,1,{"$f":"IF(ISBLANK(A144),\"SKRÝT\",1)","v":"SKRÝT"}]
[null,null,null,null,null,null,null,null,null,null,null,null,null,null,null,null,null,null,null,1,1,{"$f":"IF(AND(V148=\"SKRÝT\",V149=\"SKRÝT\",V150=\"SKRÝT\",V151=\"SKRÝT\",V152=\"SKRÝT\",V153=\"SKRÝT\",V155=\"SKRÝT\"),\"SKRÝT\",1)","v":1}]
["Rozsah pojištění",null,null,null,null,null,null,null,null,null,null,null,null,null,null,null,null,null,null,1,1,{"$f":"IF(AND(V148=\"SKRÝT\",V149=\"SKRÝT\",V150=\"SKRÝT\",V151=\"SKRÝT\",V152=\"SKRÝT\",V153=\"SKRÝT\",V155=\"SKRÝT\"),\"SKRÝT\",1)","v":1}]
["Pojištěná nebezpečí",null,null,null,"Varianta  I.",null,"Varianta  II.",null,null,"Požadujte především různé varianty limitů. ",null,null,null,null,null,null,null,null,null,1,1,{"$f":"IF(AND(V148=\"SKRÝT\",V149=\"SKRÝT\",V150=\"SKRÝT\",V151=\"SKRÝT\",V152=\"SKRÝT\",V153=\"SKRÝT\",V155=\"SKRÝT\"),\"SKRÝT\",1)","v":1}]
[null,null,null,null,"Limit plnění","Spoluúčast","Limit plnění","Spoluúčast",null,null,null,null,null,null,null,null,null,null,null,1,1,{"$f":"IF(AND(V149=\"SKRÝT\",V150=\"SKRÝT\",V151=\"SKRÝT\",V152=\"SKRÝT\",V153=\"SKRÝT\",V155=\"SKRÝT\",V156=\"SKRÝT\"),\"SKRÝT\",1)","v":1}]
["Odcizení (krádež, loupež) (zjištěný i nezjištěný pachatel)",null,null,null,4000000,1000,null,null,null,"POZOR na úroveň zabezpečení u klienta.",null,null,null,null,null,{"$f":"IF(ISBLANK(E149),\"SKRÝT\",1)","v":1},{"$f":"IF(ISBLANK(F149),\"SKRÝT\",1)","v":1},{"$f":"IF(ISBLANK(G149),\"SKRÝT\",1)","v":"SKRÝT"},{"$f":"IF(ISBLANK(H149),\"SKRÝT\",1)","v":"SKRÝT"},1,1,{"$f":"IF(AND(P149=\"SKRÝT\",Q149=\"SKRÝT\",R149=\"SKRÝT\",S149=\"SKRÝT\"),\"SKRÝT\",1)","v":1}]
["Vandalismus (vč. prostého vandalismu, zjištěný i nezjištěný pachatel)",null,null,null,2000000,1000,null,null,null,"POZOR na úroveň zabezpečení u klienta.",null,null,null,null,null,{"$f":"IF(ISBLANK(E150),\"SKRÝT\",1)","v":1},{"$f":"IF(ISBLANK(F150),\"SKRÝT\",1)","v":1},{"$f":"IF(ISBLANK(G150),\"SKRÝT\",1)","v":"SKRÝT"},{"$f":"IF(ISBLANK(H150),\"SKRÝT\",1)","v":"SKRÝT"},1,1,1]
["Škody způsobené sprejery",null,null,null,300000,1000,null,null,null,null,null,null,null,null,null,1,1,"SKRÝT","SKRÝT",1,1,1]
["Odcizení věcí z motorového vozidla",null,null,null,100000,1000,null,null,null,"POZOR na úroveň zabezpečení u klienta.",null,null,null,null,null,1,1,"SKRÝT","SKRÝT",1,1,1]
["Prostá krádež",null,null,null,300000,1000,null,null,null,"POZOR na úroveň zabezpečení u klienta.",null,null,null,null,null,1,1,"SKRÝT","SKRÝT",1,1,1]
["Přeprava peněz",null,null,null,600000,1000,null,null,null,null,null,null,null,null,null,null,1]
["Náklady na výměnu zámků",null,null,null,200000,"Viz jednotlivá nebezpečí",null,"Viz jednotlivá nebezpečí",null,null,null,null,null,null,null,1,null,"SKRÝT",null,1,1,{"$f":"IF(AND(P155=\"SKRÝT\",R155=\"SKRÝT\"),\"SKRÝT\",1)","v":1}]
["Jiné (uveďte):",null,null,null,null,null,null,null,null,"Doplňte jiné nebezpečí nebo náklady, pokud chcete pojistit.",null,null,null,null,null,"SKRÝT","SKRÝT","SKRÝT","SKRÝT",1,1,"SKRÝT"]
["Poznámka",null,null,null,null,null,null,null,null,null,null,null,null,null,null,null,null,null,null,1,1,{"$f":"IF(AND(V158=\"SKRÝT\",V159=\"SKRÝT\"),\"SKRÝT\",1)","v":"SKRÝT"}]
[null,null,null,null,null,null,null,null,null,"Příklad poznámky. Pokud nepožadujete, řádek odstraňte.",null,null,null,null,null,null,null,null,null,"SKRÝT",1,{"$f":"IF(ISBLANK(A158),\"SKRÝT\",1)","v":"SKRÝT"}]
[null,null,null,null,null,null,null,null,null,"Zde můžete doplnit poznámky. Řádek můžete rozkopírovat.",null,null,null,null,null,null,null,null,null,1,1,{"$f":"IF(ISBLANK(A159),\"SKRÝT\",1)","v":"SKRÝT"}]
[null,null,null,null,null,null,null,null,null,null,null,null,null,null,null,null,null,null,null,1,1,{"$f":"IF(V157=\"SKRÝT\",\"SKRÝT\",1)","v":"SKRÝT"}]
["Pojištění skel",null,null,null,null,null,null,null,null,null,null,null,null,null,null,null,null,null,null,1,1,{"$f":"IF(V166=\"SKRÝT\",\"SKRÝT\",1)","v":1}]
["Předmětem pojištění je soubor skleněných výplní stavebních součástí (okenní, dveřní, výlohová), skleněné výplně movitého charakteru uvnitř budovy (výstavní skříňky a vitríny, obložení stěn, stropů a podhledů apod.), včetně nalepených snímačů zabezpečovacích zařízení, nalepených fólií, malby a jiných výzdob, dále reklamních tabulí, firemních štítů, fasádních obložení vnějších stěn budov, vnější vitríny apod. a světelné neónové nápisy včetně elektroinstalace.",null,null,null,null,null,null,null,null,null,null,null,null,null,null,null,null,null,null,1,1,{"$f":"IF(V166=\"SKRÝT\",\"SKRÝT\",1)","v":1}]
[null,null,null,null,null,null,null,null,null,null,null,null,null,null,null,null,null,null,null,1,1,{"$f":"IF(V166=\"SKRÝT\",\"SKRÝT\",1)","v":1}]
["Pojištěná nebezpečí",null,null,null,"Varianta  I.",null,"Varianta  II.",null,null,"Požadujte především různé varianty pojistných částek. ",null,null,null,null,null,null,null,null,null,1,1,{"$f":"IF(V166=\"SKRÝT\",\"SKRÝT\",1)","v":1}]
[null,null,null,null,"Pojistná částka \n(první riziko)","Spoluúčast","Pojistná částka \n(první riziko)","Spoluúčast",null,null,null,null,null,null,null,null,null,null,null,1,1,{"$f":"IF(V166=\"SKRÝT\",\"SKRÝT\",1)","v":1}]
["All risk (nahodilé rozbití), živelní nebezpečí; odcizení (krádež, loupež) ",null,null,null,500000,1000,null,null,null,"Doporučujeme pojistit zejména v případě velkoformátových skel, skleněných tabulích, případně skleněného opláštnění budovy.",null,null,null,null,null,{"$f":"IF(E166=0,\"SKRÝT\",1)","v":1},{"$f":"IF(ISBLANK(F166),\"SKRÝT\",1)","v":1},{"$f":"IF(ISBLANK(G166),\"SKRÝT\",1)","v":"SKRÝT"},{"$f":"IF(ISBLANK(H166),\"SKRÝT\",1)","v":"SKRÝT"},1,1,{"$f":"IF(AND(P166=\"SKRÝT\",Q166=\"SKRÝT\",R166=\"SKRÝT\",S166=\"SKRÝT\"),\"SKRÝT\",1)","v":1}]
["Poznámka",null,null,null,null,null,null,null,null,null,null,null,null,null,null,null,null,null,null,1,1,{"$f":"IF(V168=\"SKRÝT\",\"SKRÝT\",1)","v":1}]
["pojištění se vztahuje i na obyčejná skla (slabší 5mm) v okench, dveřích, světlících, střechách, obytných stěnách a ve vitrínách",null,null,null,null,null,null,null,null,"Zde můžete doplnit poznámky.",null,null,null,null,null,null,null,null,null,1,1,{"$f":"IF(ISBLANK(A168),\"SKRÝT\",1)","v":1}]
[null,null,null,null,null,null,null,null,null,null,null,null,null,null,null,null,null,null,null,1,1,{"$f":"IF(V168=\"SKRÝT\",\"SKRÝT\",1)","v":1}]
["Pojištění věcí během silniční přepravy",null,null,null,null,null,null,null,null,null,null,null,null,null,null,null,null,null,null,1,1,{"$f":"IF(V180=\"SKRÝT\",\"SKRÝT\",1)","v":"SKRÝT"}]
["Místo pojištění:",null,null,null,null,null,null,null,null,null,null,null,null,null,null,null,null,null,null,1,1,{"$f":"IF(ISBLANK(C171),\"SKRÝT\",1)","v":"SKRÝT"}]
["Počet vozidel používaných k přepravě:",null,null,null,null,null,null,null,null,null,null,null,null,null,null,null,null,null,null,1,1,{"$f":"IF(ISBLANK(C172),\"SKRÝT\",1)","v":"SKRÝT"}]
["Uveďte charakter věcí, které mají být pojištěny při silniční přepravě (např. křehké zboží, elektronika, alkohol, cigarety):",null,null,null,null,null,null,null,null,null,null,null,null,null,null,null,null,null,null,1,1,{"$f":"IF(ISBLANK(E173),\"SKRÝT\",1)","v":"SKRÝT"}]
["Předmět pojištění",null,null,null,null,null,null,null,null,null,null,null,null,null,null,null,null,null,null,1,1,{"$f":"IF(V175=\"SKRÝT\",\"SKRÝT\",1)","v":"SKRÝT"}]
["Soubor věcí během silniční přepravy",null,null,null,null,null,{"$f":"SUM(G176:G176)","v":0},null,null,null,null,null,null,null,null,null,null,null,null,1,1,{"$f":"IF(G175=0,\"SKRÝT\",1)","v":"SKRÝT"}]
["Soubor věcí movitých (Provozní zařízení)",null,null,null,null,null,null,"První riziko - nová cena",null,null,null,null,null,null,null,null,null,null,null,1,1,{"$f":"IF(G176=0,\"SKRÝT\",1)","v":"SKRÝT"}]
[]
["Pojištěná nebezpečí",null,null,null,"Varianta  I.",null,"Varianta  II.",null,null,"Požadujte především různé varianty limitů. ",null,null,null,null,null,null,null,null,null,1,1,{"$f":"IF(AND(V180=\"SKRÝT\"),\"SKRÝT\",1)","v":"SKRÝT"}]
[null,null,null,null,"Pojistná částka \n(první riziko)","Spoluúčast","Pojistná částka \n(první riziko)","Spoluúčast",null,null,null,null,null,null,null,null,null,null,null,1,1,{"$f":"IF(AND(V180=\"SKRÝT\"),\"SKRÝT\",1)","v":"SKRÝT"}]
["Dopravní nehoda; živelní nebezpečí; odcizení (krádež, loupež) bez vazby na dopravní nehodu; nakládka, vykládka",null,null,null,null,null,null,null,null,null,null,null,null,null,null,{"$f":"IF(ISBLANK(E180),\"SKRÝT\",1)","v":"SKRÝT"},{"$f":"IF(ISBLANK(F180),\"SKRÝT\",1)","v":"SKRÝT"},{"$f":"IF(ISBLANK(G180),\"SKRÝT\",1)","v":"SKRÝT"},{"$f":"IF(ISBLANK(H180),\"SKRÝT\",1)","v":"SKRÝT"},1,1,{"$f":"IF(AND(P180=\"SKRÝT\",Q180=\"SKRÝT\",R180=\"SKRÝT\",S180=\"SKRÝT\"),\"SKRÝT\",1)","v":"SKRÝT"}]
["Poznámka",null,null,null,null,null,null,null,null,null,null,null,null,null,null,null,null,null,null,1,1,{"$f":"IF(V182=\"SKRÝT\",\"SKRÝT\",1)","v":"SKRÝT"}]
[null,null,null,null,null,null,null,null,null,"Zde můžete doplnit poznámky.",null,null,null,null,null,null,null,null,null,1,1,{"$f":"IF(ISBLANK(E182),\"SKRÝT\",1)","v":"SKRÝT"}]

{"sheet":"Stroje","index":4,"n_rows":62,"n_cols":22,"rows_kept":62,"cut":false,"hidden":false,"merged":[[38,16200,38,16207],[38,16208,38,16215],[38,16216,38,16223],[38,16224,38,16231],[38,16232,38,16239],[38,16160,38,16167],[38,16168,38,16175],[38,16176,38,16183],[38,16184,38,16191],[38,16192,38,16199],[38,16360,38,16367],[38,16368,38,16375],[38,16376,38,16383],[38,16320,38,16327],[38,16328,38,16335],[38,16336,38,16343],[38,16344,38,16351],[38,16352,38,16359],[38,16280,38,16287],[38,16288,38,16295],[38,16296,38,16303],[38,16304,38,16311],[38,16312,38,16319],[38,16240,38,16247],[38,16248,38,16255],[38,16256,38,16263],[38,16264,38,16271],[38,16272,38,16279],[38,16120,38,16127],[38,16128,38,16135],[38,16136,38,16143],[38,16144,38,16151],[38,16152,38,16159],[38,16080,38,16087],[38,16088,38,16095],[38,16096,38,16103],[38,16104,38,16111],[38,16112,38,16119],[38,16040,38,16047],[38,16048,38,16055],[38,16056,38,16063],[38,16064,38,16071],[38,16072,38,16079],[38,16000,38,16007],[38,16008,38,16015],[38,16016,38,16023],[38,16024,38,16031],[38,16032,38,16039],[38,15960,38,15967],[38,15968,38,15975],[38,15976,38,15983],[38,15984,38,15991],[38,15992,38,15999],[38,15920,38,15927],[38,15928,38,15935],[38,15936,38,15943],[38,15944,38,15951],[38,15952,38,15959],[38,15880,38,15887],[38,15888,38,15895],[38,15896,38,15903],[38,15904,38,15911],[38,15912,38,15919],[38,15840,38,15847],[38,15848,38,15855],[38,15856,38,15863],[38,15864,38,15871],[38,15872,38,15879],[38,15800,38,15807],[38,15808,38,15815],[38,15816,38,15823],[38,15824,38,15831],[38,15832,38,15839],[38,15760,38,15767],[38,15768,38,15775],[38,15776,38,15783],[38,15784,38,15791],[38,15792,38,15799],[38,15720,38,15727],[38,15728,38,15735],[38,15736,38,15743],[38,15744,38,15751],[38,15752,38,15759],[38,15680,38,15687],[38,15688,38,15695],[38,15696,38,15703],[38,15704,38,15711],[38,15712,38,15719],[38,15640,38,15647],[38,15648,38,15655],[38,15656,38,15663],[38,15664,38,15671],[38,15672,38,15679],[38,15600,38,15607],[38,15608,38,15615],[38,15616,38,15623],[38,15624,38,15631],[38,15632,38,15639],[38,15560,38,15567],[38,15568,38,15575],[38,15576,38,15583],[38,15584,38,15591],[38,15592,38,15599],[38,15520,38,15527],[38,15528,38,15535],[38,15536,38,15543],[38,15544,38,15551],[38,15552,38,15559],[38,15480,38,15487],[38,15488,38,15495],[38,15496,38,15503],[38,15504,38,15511],[38,15512,38,15519],[38,15440,38,15447],[38,15448,38,15455],[38,15456,38,15463],[38,15464,38,15471],[38,15472,38,15479],[38,15400,38,15407],[38,15408,38,15415],[38,15416,38,15423],[38,15424,38,15431],[38,15432,38,15439],[38,15360,38,15367],[38,15368,38,15375],[38,15376,38,15383],[38,15384,38,15391],[38,15392,38,15399],[38,15320,38,15327],[38,15328,38,15335],[38,15336,38,15343],[38,15344,38,15351],[38,15352,38,15359],[38,15280,38,15287],[38,15288,38,15295],[38,15296,38,15303],[38,15304,38,15311],[38,15312,38,15319],[38,15240,38,15247],[38,15248,38,15255],[38,15256,38,15263],[38,15264,38,15271],[38,15272,38,15279],[38,15200,38,15207],[38,15208,38,15215],[38,15216,38,15223],[38,15224,38,15231],[38,15232,38,15239],[38,15160,38,15167],[38,15168,38,15175],[38,15176,38,15183],[38,15184,38,15191],[38,15192,38,15199],[38,15120,38,15127],[38,15128,38,15135],[38,15136,38,15143],[38,15144,38,15151],[38,15152,38,15159],[38,15080,38,15087],[38,15088,38,15095],[38,15096,38,15103],[38,15104,38,15111],[38,15112,38,15119],[38,15040,38,15047],[38,15048,38,15055],[38,15056,38,15063],[38,15064,38,15071],[38,15072,38,15079],[38,15000,38,15007],[38,15008,38,15015],[38,15016,38,15023],[38,15024,38,15031],[38,15032,38,15039],[38,14960,38,14967],[38,14968,38,14975],[38,14976,38,14983],[38,14984,38,14991],[38,14992,38,14999],[38,14920,38,14927],[38,14928,38,14935],[38,14936,38,14943],[38,14944,38,14951],[38,14952,38,14959],[38,14880,38,14887],[38,14888,38,14895],[38,14896,38,14903],[38,14904,38,14911],[38,14912,38,14919],[38,14840,38,14847],[38,14848,38,14855],[38,14856,38,14863],[38,14864,38,14871],[38,14872,38,14879],[38,14800,38,14807],[38,14808,38,14815],[38,14816,38,14823],[38,14824,38,14831],[38,14832,38,14839],[38,14760,38,14767],[38,14768,38,14775],[38,14776,38,14783],[38,14784,38,14791],[38,14792,38,14799],[38,14720,38,14727],[38,14728,38,14735],[38,14736,38,14743],[38,14744,38,14751],[38,14752,38,14759],[38,14680,38,14687],[38,14688,38,14695],[38,14696,38,14703],[38,14704,38,14711],[38,14712,38,14719],[38,14640,38,14647],[38,14648,38,14655],[38,14656,38,14663],[38,14664,38,14671],[38,14672,38,14679],[38,14600,38,14607],[38,14608,38,14615],[38,14616,38,14623],[38,14624,38,14631],[38,14632,38,14639],[38,14560,38,14567],[38,14568,38,14575],[38,14576,38,14583],[38,14584,38,14591],[38,14592,38,14599],[38,14520,38,14527],[38,14528,38,14535],[38,14536,38,14543],[38,14544,38,14551],[38,14552,38,14559],[38,14480,38,14487],[38,14488,38,14495],[38,14496,38,14503],[38,14504,38,14511],[38,14512,38,14519],[38,14440,38,14447],[38,14448,38,14455],[38,14456,38,14463],[38,14464,38,14471],[38,14472,38,14479],[38,14400,38,14407],[38,14408,38,14415],[38,14416,38,14423],[38,14424,38,14431],[38,14432,38,14439],[38,14360,38,14367],[38,14368,38,14375],[38,14376,38,14383],[38,14384,38,14391],[38,14392,38,14399],[38,14320,38,14327],[38,14328,38,14335],[38,14336,38,14343],[38,14344,38,14351],[38,14352,38,14359],[38,14280,38,14287],[38,14288,38,14295],[38,14296,38,14303],[38,14304,38,14311],[38,14312,38,14319],[38,14240,38,14247],[38,14248,38,14255],[38,14256,38,14263],[38,14264,38,14271],[38,14272,38,14279],[38,14200,38,14207],[38,14208,38,14215],[38,14216,38,14223],[38,14224,38,14231],[38,14232,38,14239],[38,14160,38,14167],[38,14168,38,14175],[38,14176,38,14183],[38,14184,38,14191],[38,14192,38,14199],[38,14120,38,14127],[38,14128,38,14135],[38,14136,38,14143],[38,14144,38,14151],[38,14152,38,14159],[38,14080,38,14087],[38,14088,38,14095],[38,14096,38,14103],[38,14104,38,14111],[38,14112,38,14119],[38,14040,38,14047],[38,14048,38,14055],[38,14056,38,14063],[38,14064,38,14071],[38,14072,38,14079],[38,14000,38,14007],[38,14008,38,14015],[38,14016,38,14023],[38,14024,38,14031],[38,14032,38,14039],[38,13960,38,13967],[38,13968,38,13975],[38,13976,38,13983],[38,13984,38,13991],[38,13992,38,13999],[38,13920,38,13927],[38,13928,38,13935],[38,13936,38,13943],[38,13944,38,13951],[38,13952,38,13959],[38,13880,38,13887],[38,13888,38,13895],[38,13896,38,13903],[38,13904,38,13911],[38,13912,38,13919],[38,13840,38,13847],[38,13848,38,13855],[38,13856,38,13863],[38,13864,38,13871],[38,13872,38,13879],[38,13800,38,13807],[38,13808,38,13815],[38,13816,38,13823],[38,13824,38,13831],[38,13832,38,13839],[38,13760,38,13767],[38,13768,38,13775],[38,13776,38,13783],[38,13784,38,13791],[38,13792,38,13799],[38,13720,38,13727],[38,13728,38,13735],[38,13736,38,13743],[38,13744,38,13751],[38,13752,38,13759],[38,13680,38,13687],[38,13688,38,13695],[38,13696,38,13703],[38,13704,38,13711],[38,13712,38,13719],[38,13640,38,13647],[38,13648,38,13655],[38,13656,38,13663],[38,13664,38,13671],[38,13672,38,13679],[38,13600,38,13607],[38,13608,38,13615],[38,13616,38,13623],[38,13624,38,13631],[38,13632,38,13639],[38,13560,38,13567],[38,13568,38,13575],[38,13576,38,13583],[38,13584,38,13591],[38,13592,38,13599],[38,13520,38,13527],[38,13528,38,13535],[38,13536,38,13543],[38,13544,38,13551],[38,13552,38,13559],[38,13480,38,13487],[38,13488,38,13495],[38,13496,38,13503],[38,13504,38,13511],[38,13512,38,13519],[38,13440,38,13447],[38,13448,38,13455],[38,13456,38,13463],[38,13464,38,13471],[38,13472,38,13479],[38,13400,38,13407],[38,13408,38,13415],[38,13416,38,13423],[38,13424,38,13431],[38,13432,38,13439],[38,13360,38,13367],[38,13368,38,13375],[38,13376,38,13383],[38,13384,38,13391],[38,13392,38,13399],[38,13320,38,13327],[38,13328,38,13335],[38,13336,38,13343],[38,13344,38,13351],[38,13352,38,13359],[38,13280,38,13287],[38,13288,38,13295],[38,13296,38,13303],[38,13304,38,13311],[38,13312,38,13319],[38,13240,38,13247],[38,13248,38,13255],[38,13256,38,13263],[38,13264,38,13271],[38,13272,38,13279],[38,13200,38,13207],[38,13208,38,13215],[38,13216,38,13223],[38,13224,38,13231],[38,13232,38,13239],[38,13160,38,13167],[38,13168,38,13175],[38,13176,38,13183],[38,13184,38,13191],[38,13192,38,13199],[38,13120,38,13127],[38,13128,38,13135],[38,13136,38,13143],[38,13144,38,13151],[38,13152,38,13159],[38,13080,38,13087],[38,13088,38,13095],[38,13096,38,13103],[38,13104,38,13111],[38,13112,38,13119],[38,13040,38,13047],[38,13048,38,13055],[38,13056,38,13063],[38,13064,38,13071],[38,13072,38,13079],[38,13000,38,13007],[38,13008,38,13015],[38,13016,38,13023],[38,13024,38,13031],[38,13032,38,13039],[38,12960,38,12967],[38,12968,38,12975],[38,12976,38,12983],[38,12984,38,12991],[38,12992,38,12999],[38,12920,38,12927],[38,12928,38,12935],[38,12936,38,12943],[38,12944,38,12951],[38,12952,38,12959],[38,12880,38,12887],[38,12888,38,12895],[38,12896,38,12903],[38,12904,38,12911],[38,12912,38,12919],[38,12840,38,12847],[38,12848,38,12855],[38,12856,38,12863],[38,12864,38,12871],[38,12872,38,12879],[38,12800,38,12807],[38,12808,38,12815],[38,12816,38,12823],[38,12824,38,12831],[38,12832,38,12839],[38,12760,38,12767],[38,12768,38,12775],[38,12776,38,12783],[38,12784,38,12791],[38,12792,38,12799],[38,12720,38,12727],[38,12728,38,12735],[38,12736,38,12743],[38,12744,38,12751],[38,12752,38,12759],[38,12680,38,12687],[38,12688,38,12695],[38,12696,38,12703],[38,12704,38,12711],[38,12712,38,12719],[38,12640,38,12647],[38,12648,38,12655],[38,12656,38,12663],[38,12664,38,12671],[38,12672,38,12679],[38,12600,38,12607],[38,12608,38,12615],[38,12616,38,12623],[38,12624,38,12631],[38,12632,38,12639],[38,12560,38,12567],[38,12568,38,12575],[38,12576,38,12583],[38,12584,38,12591],[38,12592,38,12599],[38,12520,38,12527],[38,12528,38,12535],[38,12536,38,12543],[38,12544,38,12551],[38,12552,38,12559],[38,12480,38,12487],[38,12488,38,12495],[38,12496,38,12503],[38,12504,38,12511],[38,12512,38,12519],[38,12440,38,12447],[38,12448,38,12455],[38,12456,38,12463],[38,12464,38,12471],[38,12472,38,12479],[38,12400,38,12407],[38,12408,38,12415],[38,12416,38,12423],[38,12424,38,12431],[38,12432,38,12439],[38,12360,38,12367],[38,12368,38,12375],[38,12376,38,12383],[38,12384,38,12391],[38,12392,38,12399],[38,12320,38,12327],[38,12328,38,12335],[38,12336,38,12343],[38,12344,38,12351],[38,12352,38,12359],[38,12280,38,12287],[38,12288,38,12295],[38,12296,38,12303],[38,12304,38,12311],[38,12312,38,12319],[38,12240,38,12247],[38,12248,38,12255],[38,12256,38,12263],[38,12264,38,12271],[38,12272,38,12279],[38,12200,38,12207],[38,12208,38,12215],[38,12216,38,12223],[38,12224,38,12231],[38,12232,38,12239],[38,12160,38,12167],[38,12168,38,12175],[38,12176,38,12183],[38,12184,38,12191],[38,12192,38,12199],[38,12120,38,12127],[38,12128,38,12135],[38,12136,38,12143],[38,12144,38,12151],[38,12152,38,12159],[38,12080,38,12087],[38,12088,38,12095],[38,12096,38,12103],[38,12104,38,12111],[38,12112,38,12119],[38,12040,38,12047],[38,12048,38,12055],[38,12056,38,12063],[38,12064,38,12071],[38,12072,38,12079],[38,12000,38,12007],[38,12008,38,12015],[38,12016,38,12023],[38,12024,38,12031],[38,12032,38,12039],[38,11960,38,11967],[38,11968,38,11975],[38,11976,38,11983],[38,11984,38,11991],[38,11992,38,11999],[38,11920,38,11927],[38,11928,38,11935],[38,11936,38,11943],[38,11944,38,11951],[38,11952,38,11959],[38,11880,38,11887],[38,11888,38,11895],[38,11896,38,11903],[38,11904,38,11911],[38,11912,38,11919],[38,11840,38,11847],[38,11848,38,11855],[38,11856,38,11863],[38,11864,38,11871],[38,11872,38,11879],[38,11800,38,11807],[38,11808,38,11815],[38,11816,38,11823],[38,11824,38,11831],[38,11832,38,11839],[38,11760,38,11767],[38,11768,38,11775],[38,11776,38,11783],[38,11784,38,11791],[38,11792,38,11799],[38,11720,38,11727],[38,11728,38,11735],[38,11736,38,11743],[38,11744,38,11751],[38,11752,38,11759],[38,11680,38,11687],[38,11688,38,11695],[38,11696,38,11703],[38,11704,38,11711],[38,11712,38,11719],[38,11640,38,11647],[38,11648,38,11655],[38,11656,38,11663],[38,11664,38,11671],[38,11672,38,11679],[38,11600,38,11607],[38,11608,38,11615],[38,11616,38,11623],[38,11624,38,11631],[38,11632,38,11639],[38,11560,38,11567],[38,11568,38,11575],[38,11576,38,11583],[38,11584,38,11591],[38,11592,38,11599],[38,11520,38,11527],[38,11528,38,11535],[38,11536,38,11543],[38,11544,38,11551],[38,11552,38,11559],[38,11480,38,11487],[38,11488,38,11495],[38,11496,38,11503],[38,11504,38,11511],[38,11512,38,11519],[38,11440,38,11447],[38,11448,38,11455],[38,11456,38,11463],[38,11464,38,11471],[38,11472,38,11479],[38,11400,38,11407],[38,11408,38,11415],[38,11416,38,11423],[38,11424,38,11431],[38,11432,38,11439],[38,11360,38,11367],[38,11368,38,11375],[38,11376,38,11383],[38,11384,38,11391],[38,11392,38,11399],[38,11320,38,11327],[38,11328,38,11335],[38,11336,38,11343],[38,11344,38,11351],[38,11352,38,11359],[38,11280,38,11287],[38,11288,38,11295],[38,11296,38,11303],[38,11304,38,11311],[38,11312,38,11319],[38,11240,38,11247],[38,11248,38,11255],[38,11256,38,11263],[38,11264,38,11271],[38,11272,38,11279],[38,11200,38,11207],[38,11208,38,11215],[38,11216,38,11223],[38,11224,38,11231],[38,11232,38,11239],[38,11160,38,11167],[38,11168,38,11175],[38,11176,38,11183],[38,11184,38,11191],[38,11192,38,11199],[38,11120,38,11127],[38,11128,38,11135],[38,11136,38,11143],[38,11144,38,11151],[38,11152,38,11159],[38,11080,38,11087],[38,11088,38,11095],[38,11096,38,11103],[38,11104,38,11111],[38,11112,38,11119],[38,11040,38,11047],[38,11048,38,11055],[38,11056,38,11063],[38,11064,38,11071],[38,11072,38,11079],[38,11000,38,11007],[38,11008,38,11015],[38,11016,38,11023],[38,11024,38,11031],[38,11032,38,11039],[38,10960,38,10967],[38,10968,38,10975],[38,10976,38,10983],[38,10984,38,10991],[38,10992,38,10999],[38,10920,38,10927],[38,10928,38,10935],[38,10936,38,10943],[38,10944,38,10951],[38,10952,38,10959],[38,10880,38,10887],[38,10888,38,10895],[38,10896,38,10903],[38,10904,38,10911],[38,10912,38,10919],[38,10840,38,10847],[38,10848,38,10855],[38,10856,38,10863],[38,10864,38,10871],[38,10872,38,10879],[38,10800,38,10807],[38,10808,38,10815],[38,10816,38,10823],[38,10824,38,10831],[38,10832,38,10839],[38,10760,38,10767],[38,10768,38,10775],[38,10776,38,10783],[38,10784,38,10791],[38,10792,38,10799],[38,10720,38,10727],[38,10728,38,10735],[38,10736,38,10743],[38,10744,38,10751],[38,10752,38,10759],[38,10680,38,10687],[38,10688,38,10695],[38,10696,38,10703],[38,10704,38,10711],[38,10712,38,10719],[38,10640,38,10647],[38,10648,38,10655],[38,10656,38,10663],[38,10664,38,10671],[38,10672,38,10679],[38,10600,38,10607],[38,10608,38,10615],[38,10616,38,10623],[38,10624,38,10631],[38,10632,38,10639],[38,10560,38,10567],[38,10568,38,10575],[38,10576,38,10583],[38,10584,38,10591],[38,10592,38,10599],[38,10520,38,10527],[38,10528,38,10535],[38,10536,38,10543],[38,10544,38,10551],[38,10552,38,10559],[38,10480,38,10487],[38,10488,38,10495],[38,10496,38,10503],[38,10504,38,10511],[38,10512,38,10519],[38,10440,38,10447],[38,10448,38,10455],[38,10456,38,10463],[38,10464,38,10471],[38,10472,38,10479],[38,10400,38,10407],[38,10408,38,10415],[38,10416,38,10423],[38,10424,38,10431],[38,10432,38,10439],[38,10360,38,10367],[38,10368,38,10375],[38,10376,38,10383],[38,10384,38,10391],[38,10392,38,10399],[38,10320,38,10327],[38,10328,38,10335],[38,10336,38,10343],[38,10344,38,10351],[38,10352,38,10359],[38,10280,38,10287],[38,10288,38,10295],[38,10296,38,10303],[38,10304,38,10311],[38,10312,38,10319],[38,10240,38,10247],[38,10248,38,10255],[38,10256,38,10263],[38,10264,38,10271],[38,10272,38,10279],[38,10200,38,10207],[38,10208,38,10215],[38,10216,38,10223],[38,10224,38,10231],[38,10232,38,10239],[38,10160,38,10167],[38,10168,38,10175],[38,10176,38,10183],[38,10184,38,10191],[38,10192,38,10199],[38,10120,38,10127],[38,10128,38,10135],[38,10136,38,10143],[38,10144,38,10151],[38,10152,38,10159],[38,10080,38,10087],[38,10088,38,10095],[38,10096,38,10103],[38,10104,38,10111],[38,10112,38,10119],[38,10040,38,10047],[38,10048,38,10055],[38,10056,38,10063],[38,10064,38,10071],[38,10072,38,10079],[38,10000,38,10007],[38,10008,38,10015],[38,10016,38,10023],[38,10024,38,10031],[38,10032,38,10039],[38,9960,38,9967],[38,9968,38,9975],[38,9976,38,9983],[38,9984,38,9991],[38,9992,38,9999],[38,9920,38,9927],[38,9928,38,9935],[38,9936,38,9943],[38,9944,38,9951],[38,9952,38,9959],[38,9880,38,9887],[38,9888,38,9895],[38,9896,38,9903],[38,9904,38,9911],[38,9912,38,9919],[38,9840,38,9847],[38,9848,38,9855],[38,9856,38,9863],[38,9864,38,9871],[38,9872,38,9879],[38,9800,38,9807],[38,9808,38,9815],[38,9816,38,9823],[38,9824,38,9831],[38,9832,38,9839],[38,9760,38,9767],[38,9768,38,9775],[38,9776,38,9783],[38,9784,38,9791],[38,9792,38,9799],[38,9720,38,9727],[38,9728,38,9735],[38,9736,38,9743],[38,9744,38,9751],[38,9752,38,9759],[38,9680,38,9687],[38,9688,38,9695],[38,9696,38,9703],[38,9704,38,9711],[38,9712,38,9719],[38,9640,38,9647],[38,9648,38,9655],[38,9656,38,9663],[38,9664,38,9671],[38,9672,38,9679],[38,9600,38,9607],[38,9608,38,9615],[38,9616,38,9623],[38,9624,38,9631],[38,9632,38,9639],[38,9560,38,9567],[38,9568,38,9575],[38,9576,38,9583],[38,9584,38,9591],[38,9592,38,9599],[38,9520,38,9527],[38,9528,38,9535],[38,9536,38,9543],[38,9544,38,9551],[38,9552,38,9559],[38,9480,38,9487],[38,9488,38,9495],[38,9496,38,9503],[38,9504,38,9511],[38,9512,38,9519],[38,9440,38,9447],[38,9448,38,9455],[38,9456,38,9463],[38,9464,38,9471],[38,9472,38,9479],[38,9400,38,9407],[38,9408,38,9415],[38,9416,38,9423],[38,9424,38,9431],[38,9432,38,9439],[38,9360,38,9367],[38,9368,38,9375],[38,9376,38,9383],[38,9384,38,9391],[38,9392,38,9399],[38,9320,38,9327],[38,9328,38,9335],[38,9336,38,9343],[38,9344,38,9351],[38,9352,38,9359],[38,9280,38,9287],[38,9288,38,9295],[38,9296,38,9303],[38,9304,38,9311],[38,9312,38,9319],[38,9240,38,9247],[38,9248,38,9255],[38,9256,38,9263],[38,9264,38,9271],[38,9272,38,9279],[38,9200,38,9207],[38,9208,38,9215],[38,9216,38,9223],[38,9224,38,9231],[38,9232,38,9239],[38,9160,38,9167],[38,9168,38,9175],[38,9176,38,9183],[38,9184,38,9191],[38,9192,38,9199],[38,9120,38,9127],[38,9128,38,9135],[38,9136,38,9143],[38,9144,38,9151],[38,9152,38,9159],[38,9080,38,9087],[38,9088,38,9095],[38,9096,38,9103],[38,9104,38,9111],[38,9112,38,9119],[38,9040,38,9047],[38,9048,38,9055],[38,9056,38,9063],[38,9064,38,9071],[38,9072,38,9079],[38,9000,38,9007],[38,9008,38,9015],[38,9016,38,9023],[38,9024,38,9031],[38,9032,38,9039],[38,8960,38,8967],[38,8968,38,8975],[38,8976,38,8983],[38,8984,38,8991],[38,8992,38,8999],[38,8920,38,8927],[38,8928,38,8935],[38,8936,38,8943],[38,8944,38,8951],[38,8952,38,8959],[38,8880,38,8887],[38,8888,38,8895],[38,8896,38,8903],[38,8904,38,8911],[38,8912,38,8919],[38,8840,38,8847],[38,8848,38,8855],[38,8856,38,8863],[38,8864,38,8871],[38,8872,38,8879],[38,8800,38,8807],[38,8808,38,8815],[38,8816,38,8823],[38,8824,38,8831],[38,8832,38,8839],[38,8760,38,8767],[38,8768,38,8775],[38,8776,38,8783],[38,8784,38,8791],[38,8792,38,8799],[38,8720,38,8727],[38,8728,38,8735],[38,8736,38,8743],[38,8744,38,8751],[38,8752,38,8759],[38,8680,38,8687],[38,8688,38,8695],[38,8696,38,8703],[38,8704,38,8711],[38,8712,38,8719],[38,8640,38,8647],[38,8648,38,8655],[38,8656,38,8663],[38,8664,38,8671],[38,8672,38,8679],[38,8600,38,8607],[38,8608,38,8615],[38,8616,38,8623],[38,8624,38,8631],[38,8632,38,8639],[38,8560,38,8567],[38,8568,38,8575],[38,8576,38,8583],[38,8584,38,8591],[38,8592,38,8599],[38,8520,38,8527],[38,8528,38,8535],[38,8536,38,8543],[38,8544,38,8551],[38,8552,38,8559],[38,8480,38,8487],[38,8488,38,8495],[38,8496,38,8503],[38,8504,38,8511],[38,8512,38,8519],[38,8440,38,8447],[38,8448,38,8455],[38,8456,38,8463],[38,8464,38,8471],[38,8472,38,8479],[38,8400,38,8407],[38,8408,38,8415],[38,8416,38,8423],[38,8424,38,8431],[38,8432,38,8439],[38,8360,38,8367],[38,8368,38,8375]],"merged_total":2104,"flags":["merged_cut"]}
[null,null,null,null,null,null,null,null,null,null,null,null,null,null,null,null,null,null,null,"Verze k odeslání klientovi","Verze zpracovat","Verze k odeslání do pojišťovny (skrýt nevyplněné informace)"]
[null,null,null,null,null,null,null,null,null,null,null,null,null,null,null,null,null,null,null,1,1,1]
[null,null,null,null,null,null,null,null,null,null,null,null,null,null,null,null,null,null,null,1,1,1]
[null,null,null,null,null,null,null,null,null,null,null,null,null,null,null,null,null,null,null,1,1,1]
[null,null,null,null,null,null,null,null,null,null,null,null,null,null,null,null,null,null,null,1,1,1]
[]
["Strojní pojištění",null,null,null,null,null,null,null,null,null,null,null,null,null,null,null,null,null,null,1,1,1]
[]
["Místa pojištění",null,null,null,null,null,null,null,null,null,null,null,null,null,null,null,null,null,null,1,1,1]
[]
["Ulice, číslo popisné, město a PSČ",null,null,null,null,null,null,null,null,null,null,null,null,null,null,null,null,null,null,1,1,1]
["katastrální území města Teplice",null,null,null,null,null,null,null,null,"Automaticky se vyplňuje adresa sídla pojistníka. Adresu lze měnit.",null,null,null,null,null,null,null,null,null,1,1,1]
[null,null,null,null,null,null,null,null,null,null,null,null,null,null,null,null,null,null,null,1,1,{"$f":"IF(ISBLANK(A13),\"SKRÝT\",1)","v":"SKRÝT"}]
[null,null,null,null,null,null,null,null,null,null,null,null,null,null,null,null,null,null,null,1,1,{"$f":"IF(ISBLANK(A14),\"SKRÝT\",1)","v":"SKRÝT"}]
[null,null,null,null,null,null,null,null,null,null,null,null,null,null,null,null,null,null,null,1,1,{"$f":"IF(ISBLANK(A15),\"SKRÝT\",1)","v":"SKRÝT"}]
[null,null,null,null,null,null,null,null,null,null,null,null,null,null,null,null,null,null,null,1,1,{"$f":"IF(ISBLANK(A16),\"SKRÝT\",1)","v":"SKRÝT"}]
["Pro mobilní stroje:",null,null,null,null,null,null,null,null,null,null,null,null,null,null,null,null,null,null,1,1,{"$f":"IF(ISBLANK(C17),\"SKRÝT\",1)","v":"SKRÝT"}]
[null,null,null,null,null,null,null,null,null,null,null,null,null,null,null,null,null,null,null,1,1,1]
["Stroje k pojištění",null,null,null,null,null,null,null,null,null,null,null,null,null,null,null,null,null,null,1,1,1]
[]
["Stroje k pojištění",null,null,"Připojištění: \nZáklady/ elektronické prvky",null,"Vlastní/ cizí/ \nvlastní a cizí","Pojistná částka","Pojistná hodnota","roční pojistné",null,null,null,null,null,null,null,null,null,null,1,1,1]
["Stroje mobilní a stacionárních, FVE vč. strojů nad 10 let",null,null,"Elektronických prvků a základů",null,"Vlastní",2420000,"První riziko - nová cena",null,null,null,null,null,null,null,null,null,null,null,1,1,{"$f":"IF(G22=0,\"SKRÝT\",1)","v":1}]
["Soubor mobilních strojů do 7 let stáří včetně příslušenství a:",null,null,null,null,null,null,null,null,null,null,null,null,null,null,null,null,null,null,1,1,"SKRÝT"]
["Soubor stacionárních strojů do 7 let stáří včetně příslušenství a:",null,null,null,null,null,null,null,null,null,null,null,null,null,null,null,null,null,null,1,1,"SKRÝT"]
["Software a data zakoupené nebo pořízené nad rámec standardně dodaných výrobcem",null,null,null,null,null,null,null,null,null,null,null,null,null,null,null,null,null,null,1,1,"SKRÝT"]
["Rozvody pojišťovaných zařízení",null,null,null,null,null,null,null,null,null,null,null,null,null,null,null,null,null,null,1,1,"SKRÝT"]
["Jiné (uveďte):",null,null,null,null,null,null,null,null,null,null,null,null,null,null,null,null,null,null,1,1,"SKRÝT"]
["Pojistná částka celkem",null,null,null,null,null,{"$f":"SUM(G22:G24,G27)","v":2420000},null,null,null,null,null,null,null,null,null,null,null,null,1,1,1]
["Poznámka",null,null,null,null,null,null,null,null,null,null,null,null,null,null,null,null,null,null,1,1,{"$f":"IF(ISBLANK(A30),\"SKRÝT\",1)","v":"SKRÝT"}]
[null,null,null,null,null,null,null,null,null,"Zde můžete doplnit poznámky.",null,null,null,null,null,null,null,null,null,1,1,{"$f":"IF(ISBLANK(A30),\"SKRÝT\",1)","v":"SKRÝT"}]
[null,null,null,null,null,null,null,null,null,null,null,null,null,null,null,null,null,null,null,1,1,1]
["Použité pojmy",null,null,null,null,null,null,null,null,null,null,null,null,null,null,null,null,null,null,1,1,1]
["Nová cena","Cena, za kterou lze v daném místě a v daném čase věc stejnou nebo srovnatelnou znovu pořídit jako věc stejnou nebo novou, stejného druhu a účelu.",null,null,null,null,null,null,null,null,null,null,null,null,null,null,null,null,null,1,1,1]
["Časová cena","Cena, kterou měla věc bezprostředně před pojistnou událostí; stanoví se z nové ceny věci, přičemž se přihlíží ke stupni opotřebení nebo jiného znehodnocení anebo k zhodnocení věci, k němuž došlo její opravou, modernizací nebo jiným způsobem.",null,null,null,null,null,null,null,null,null,null,null,null,null,null,null,null,null,1,1,1]
["Jiná cena","Cena, jejíž výše i způsob stanovení jsou dohodnuté v pojistné smlouvě.",null,null,null,null,null,null,null,null,null,null,null,null,null,null,null,null,null,1,1,1]
["Obvyklá cena","Cena, kterou může pojištěný dosáhnout při prodeji předmětné věci v daném čase a místě pojištění.",null,null,null,null,null,null,null,null,null,null,null,null,null,null,null,null,null,1,1,1]
["První riziko","V případě pojištění na první riziko se pojištění sjednává pouze na část známé pojistné hodnoty věci. Pojistná částka sjednaná na první riziko je zároveň horní hranicí plnění pojistitele ze všech pojistných událostí vzniklých za určenou dobu.",null,null,null,null,null,null,null,null,null,null,null,null,null,null,null,null,null,1,1,1]
[null,null,null,null,null,null,null,null,null,null,null,null,null,null,null,null,null,null,null,1,1,1]
["Strojní pojištění",null,null,null,null,null,null,null,null,null,null,null,null,null,null,null,null,null,null,1,1,1]
[null,null,null,null,null,null,null,null,null,null,null,null,null,null,null,null,null,null,null,1,1,1]
["Pojištěná nebezpečí",null,null,null,"Varianta  I.",null,"Varianta  II.",null,null,"Požadujte především různé varianty limitů. ",null,null,null,null,null,null,null,null,null,1,1,1]
[null,null,null,null,"All risk (technická rizika)",null,null,null,null,null,null,null,null,null,null,null,null,null,null,1,1,1]
[null,null,null,null,"Limit plnění","Spoluúčast","Limit plnění","Spoluúčast",null,null,null,null,null,null,null,null,null,null,null,1,1,1]
["All risk (technická rizika)",null,null,null,2420000,1000,null,null,null,null,null,null,null,null,null,{"$f":"IF(ISBLANK(E44),\"SKRÝT\",1)","v":1},{"$f":"IF(ISBLANK(F44),\"SKRÝT\",1)","v":1},"SKRÝT","SKRÝT",1,1,{"$f":"IF(AND(P44=\"SKRÝT\",Q44=\"SKRÝT\",R44=\"SKRÝT\",S44=\"SKRÝT\"),\"SKRÝT\",1)","v":1}]
["Náraz, střet, havárie -  pro mobilní stroje",null,null,null,null,null,null,null,null,null,null,null,null,null,null,"SKRÝT","SKRÝT","SKRÝT","SKRÝT",1,1,{"$f":"IF(AND(P45=\"SKRÝT\",Q45=\"SKRÝT\",R45=\"SKRÝT\",S45=\"SKRÝT\"),\"SKRÝT\",1)","v":"SKRÝT"}]
["Jiné (uveďte):",null,null,null,null,null,null,null,null,"Pokud chcete pojistit i jiné nebezpečí, doplňte.",null,null,null,null,null,"SKRÝT","SKRÝT","SKRÝT","SKRÝT",1,1,{"$f":"IF(AND(P46=\"SKRÝT\",Q46=\"SKRÝT\",R46=\"SKRÝT\",S46=\"SKRÝT\"),\"SKRÝT\",1)","v":"SKRÝT"}]
["Náklady na expresní a leteckou dopravu ",null,null,null,null,"Viz jednotlivá nebezpečí",null,"Viz jednotlivá nebezpečí",null,null,null,null,null,null,null,"SKRÝT",null,"SKRÝT",null,1,1,{"$f":"IF(AND(P47=\"SKRÝT\",R47=\"SKRÝT\"),\"SKRÝT\",1)","v":"SKRÝT"}]
["Náklady na práci přesčas, v noci, v neděli a ve státních svátcích",null,null,null,null,"Viz jednotlivá nebezpečí",null,"Viz jednotlivá nebezpečí",null,null,null,null,null,null,null,"SKRÝT",null,"SKRÝT",null,1,1,{"$f":"IF(AND(P48=\"SKRÝT\",R48=\"SKRÝT\"),\"SKRÝT\",1)","v":"SKRÝT"}]
["Jiné náklady (uveďte):",null,null,null,null,"Viz jednotlivá nebezpečí",null,"Viz jednotlivá nebezpečí",null,"Pokud chcete pojistit i jiné náklady, doplňte.",null,null,null,null,null,"SKRÝT",null,"SKRÝT",null,1,1,"SKRÝT"]
["Poskytnutí dodatečné slevy za dlouhodobost   - požadovaná textace ",null,null,null,100000,"Viz jednotlivá nebezpečí",null,"Viz jednotlivá nebezpečí",null,null,null,null,null,null,null,1,null,"SKRÝT",null,1,1,1]
["Připojištění provozních kapalin",null,null,null,null,"Viz jednotlivá nebezpečí",null,"Viz jednotlivá nebezpečí",null,null,null,null,null,null,null,"SKRÝT",null,"SKRÝT",null,1,1,"SKRÝT"]
["Připojištění skleněných částí",null,null,null,50000,"Viz jednotlivá nebezpečí",null,"Viz jednotlivá nebezpečí",null,null,null,null,null,null,null,{"$f":"IF(ISBLANK(E52),\"SKRÝT\",1)","v":1},null,{"$f":"IF(ISBLANK(G52),\"SKRÝT\",1)","v":"SKRÝT"},null,1,1,{"$f":"IF(AND(P52=\"SKRÝT\",R52=\"SKRÝT\"),\"SKRÝT\",1)","v":1}]
["Vlastní a cizí zásoby v chladících nebo mrazících zařízeních",null,null,null,"500 000 Kč *","Viz jednotlivá nebezpečí",null,"Viz jednotlivá nebezpečí",null,null,null,null,null,null,null,1,null,"SKRÝT",null,1,1,1]
["Škody vzniklé při přepravě stroje jako nákladu",null,null,null,null,"Viz jednotlivá nebezpečí",null,"Viz jednotlivá nebezpečí",null,null,null,null,null,null,null,"SKRÝT",null,"SKRÝT",null,1,1,"SKRÝT"]
["Jiné (uveďte):",null,null,null,null,"Viz jednotlivá nebezpečí",null,"Viz jednotlivá nebezpečí",null,"Pokud chcete sjednat i jiné připojištění, doplňte.",null,null,null,null,null,"SKRÝT",null,"SKRÝT",null,1,1,"SKRÝT"]
["Poznámka",null,null,null,null,null,null,null,null,null,null,null,null,null,null,null,null,null,null,1,1,{"$f":"IF(ISBLANK(A57),\"SKRÝT\",1)","v":1}]
["viz příloha - Základní informace                                                                                                                                                                                                                * 1 riziko",null,null,null,null,null,null,null,null,"Zde můžete doplnit poznámky.",null,null,null,null,null,null,null,null,null,1,1,{"$f":"IF(ISBLANK(A57),\"SKRÝT\",1)","v":1}]
["Použité pojmy","Pokud pojistník, pojištěný nebo oprávněná osoba způsobí zánik pojištění,  dříve než za 4 roky od data nabytí její učinnosti, zavazuje se pojistník ",null,null,null,null,null,null,null,null,null,null,null,null,null,null,null,null,null,1,1,{"$f":"IF(ISBLANK(A58),\"SKRÝT\",1)","v":1}]
["All risk \n(technická rizika)"," uhradit částku odpovídající  poskytnuté slevě za dobu trvání pojištění.",null,null,null,null,null,null,null,null,null,null,null,null,null,null,null,null,null,1,1,1]
[null,null,null,null,null,null,null,null,null,null,null,null,null,null,null,null,null,null,null,1,1,1]
[null,null,null,null,null,null,null,null,null,null,null,null,null,null,null,null,null,null,null,1,1,1]
[null,null,null,null,null,null,null,null,null,null,null,null,null,null,null,null,null,null,null,1,1,1]

{"sheet":"Stroje_vc_zivlu","index":5,"n_rows":61,"n_cols":22,"rows_kept":61,"cut":false,"hidden":true,"merged":[[21,3,21,4],[22,3,22,4],[23,3,23,4],[60,1,60,7],[56,1,56,7],[51,0,51,3],[52,0,52,3],[53,0,53,3],[55,0,55,1],[55,2,55,3],[54,0,54,3],[31,1,31,7],[28,1,28,7],[29,0,29,7],[38,0,38,7],[40,0,42,2],[6,0,6,7],[57,0,57,7],[58,1,58,7],[59,1,59,7],[44,0,44,3],[45,0,45,3],[46,0,46,3],[47,1,47,3],[48,0,48,3],[43,0,43,3],[20,3,20,4],[21,0,21,2],[22,0,22,2],[23,0,23,2],[25,0,25,2],[24,0,24,4],[40,6,40,7],[41,4,41,5],[41,6,41,7],[32,1,32,7],[33,1,33,7],[34,1,34,7],[35,1,35,7],[36,1,36,7],[8,0,8,7],[10,0,10,7],[11,0,11,7],[12,0,12,7],[13,0,13,7],[20,0,20,2],[14,0,14,7],[15,0,15,7],[16,0,16,1],[16,2,16,3],[18,0,18,7],[19,0,19,7],[26,0,26,1],[26,2,26,4],[27,0,27,1],[50,0,50,1],[50,2,50,3],[49,0,49,3],[40,4,40,5]]}
[null,null,null,null,null,null,null,null,null,null,null,null,null,null,null,null,null,null,null,"Verze k odeslání klientovi","Verze zpracovat","Verze k odeslání do pojišťovny (skrýt nevyplněné informace)"]
[null,null,null,null,null,null,null,null,null,null,null,null,null,null,null,null,null,null,null,1,1,1]
[null,null,null,null,null,null,null,null,null,null,null,null,null,null,null,null,null,null,null,1,1,1]
[null,null,null,null,null,null,null,null,null,null,null,null,null,null,null,null,null,null,null,1,1,1]
[null,null,null,null,null,null,null,null,null,null,null,null,null,null,null,null,null,null,null,1,1,1]
[]
["Strojní pojištění",null,null,null,null,null,null,null,null,null,null,null,null,null,null,null,null,null,null,1,1,1]
[]
["Místa pojištění",null,null,null,null,null,null,null,null,null,null,null,null,null,null,null,null,null,null,1,1,1]
[]
["Ulice, číslo popisné, město a PSČ",null,null,null,null,null,null,null,null,null,null,null,null,null,null,null,null,null,null,1,1,1]
[{"$f":"Zakl_udaje!B14","v":"náměstí Svobody 2/2, Teplice - Teplice, PSČ 41501"},null,null,null,null,null,null,null,null,"Automaticky se vyplňuje adresa sídla pojistníka. Adresu lze měnit.",null,null,null,null,null,null,null,null,null,1,1,1]
[null,null,null,null,null,null,null,null,null,null,null,null,null,null,null,null,null,null,null,1,1,{"$f":"IF(ISBLANK(A13),\"SKRÝT\",1)","v":"SKRÝT"}]
[null,null,null,null,null,null,null,null,null,null,null,null,null,null,null,null,null,null,null,1,1,{"$f":"IF(ISBLANK(A14),\"SKRÝT\",1)","v":"SKRÝT"}]
[null,null,null,null,null,null,null,null,null,null,null,null,null,null,null,null,null,null,null,1,1,{"$f":"IF(ISBLANK(A15),\"SKRÝT\",1)","v":"SKRÝT"}]
[null,null,null,null,null,null,null,null,null,null,null,null,null,null,null,null,null,null,null,1,1,{"$f":"IF(ISBLANK(A16),\"SKRÝT\",1)","v":"SKRÝT"}]
["Pro mobilní stroje:",null,null,null,null,null,null,null,null,null,null,null,null,null,null,null,null,null,null,1,1,{"$f":"IF(ISBLANK(C17),\"SKRÝT\",1)","v":"SKRÝT"}]
[null,null,null,null,null,null,null,null,null,null,null,null,null,null,null,null,null,null,null,1,1,1]
["Stroje k pojištění",null,null,null,null,null,null,null,null,null,null,null,null,null,null,null,null,null,null,1,1,1]
["Stroje starší než 7 let je nutné uvést do Seznamu strojů (viz samostatný dokument)."]
["Stroje k pojištění",null,null,"Připojištění: \nZáklady/ elektronické prvky",null,"Vlastní/ cizí/ \nvlastní a cizí","Pojistná částka","Pojistná hodnota",null,null,null,null,null,null,null,null,null,null,null,1,1,1]
["Stroje uvedené v Seznamu strojů včetně příslušenství a:",null,null,null,null,null,null,null,null,null,null,null,null,null,null,null,null,null,null,1,1,{"$f":"IF(G22=0,\"SKRÝT\",1)","v":"SKRÝT"}]
["Soubor mobilních strojů do 7 let stáří včetně příslušenství a:",null,null,null,null,null,null,null,null,null,null,null,null,null,null,null,null,null,null,1,1,"SKRÝT"]
["Soubor stacionárních strojů do 7 let stáří včetně příslušenství a:",null,null,null,null,null,null,null,null,null,null,null,null,null,null,null,null,null,null,1,1,"SKRÝT"]
["Software a data zakoupené nebo pořízené nad rámec standardně dodaných výrobcem",null,null,null,null,null,null,null,null,null,null,null,null,null,null,null,null,null,null,1,1,"SKRÝT"]
["Rozvody pojišťovaných zařízení",null,null,null,null,null,null,null,null,null,null,null,null,null,null,null,null,null,null,1,1,"SKRÝT"]
["Jiné (uveďte):",null,null,null,null,null,null,null,null,null,null,null,null,null,null,null,null,null,null,1,1,"SKRÝT"]
["Pojistná částka celkem",null,null,null,null,null,{"$f":"SUM(G22:G24,G27)","v":0},null,null,null,null,null,null,null,null,null,null,null,null,1,1,1]
["Poznámka",null,null,null,null,null,null,null,null,null,null,null,null,null,null,null,null,null,null,1,1,{"$f":"IF(ISBLANK(A30),\"SKRÝT\",1)","v":"SKRÝT"}]
[null,null,null,null,null,null,null,null,null,"Zde můžete doplnit poznámky.",null,null,null,null,null,null,null,null,null,1,1,{"$f":"IF(ISBLANK(A30),\"SKRÝT\",1)","v":"SKRÝT"}]
[null,null,null,null,null,null,null,null,null,null,null,null,null,null,null,null,null,null,null,1,1,1]
["Použité pojmy",null,null,null,null,null,null,null,null,null,null,null,null,null,null,null,null,null,null,1,1,1]
["Nová cena","Cena, za kterou lze v daném místě a v daném čase věc stejnou nebo srovnatelnou znovu pořídit jako věc stejnou nebo novou, stejného druhu a účelu.",null,null,null,null,null,null,null,null,null,null,null,null,null,null,null,null,null,1,1,1]
["Časová cena","Cena, kterou měla věc bezprostředně před pojistnou událostí; stanoví se z nové ceny věci, přičemž se přihlíží ke stupni opotřebení nebo jiného znehodnocení anebo k zhodnocení věci, k němuž došlo její opravou, modernizací nebo jiným způsobem.",null,null,null,null,null,null,null,null,null,null,null,null,null,null,null,null,null,1,1,1]
["Jiná cena","Cena, jejíž výše i způsob stanovení jsou dohodnuté v pojistné smlouvě.",null,null,null,null,null,null,null,null,null,null,null,null,null,null,null,null,null,1,1,1]
["Obvyklá cena","Cena, kterou může pojištěný dosáhnout při prodeji předmětné věci v daném čase a místě pojištění.",null,null,null,null,null,null,null,null,null,null,null,null,null,null,null,null,null,1,1,1]
["První riziko","V případě pojištění na první riziko se pojištění sjednává pouze na část známé pojistné hodnoty věci. Pojistná částka sjednaná na první riziko je zároveň horní hranicí plnění pojistitele ze všech pojistných událostí vzniklých za určenou dobu.",null,null,null,null,null,null,null,null,null,null,null,null,null,null,null,null,null,1,1,1]
[null,null,null,null,null,null,null,null,null,null,null,null,null,null,null,null,null,null,null,1,1,1]
["Strojní a živelní pojištění",null,null,null,null,null,null,null,null,null,null,null,null,null,null,null,null,null,null,1,1,1]
[null,null,null,null,null,null,null,null,null,null,null,null,null,null,null,null,null,null,null,1,1,1]
["Pojištěná nebezpečí",null,null,null,"Varianta  I.",null,"Varianta  II.",null,null,"Požadujte především různé varianty limitů. ",null,null,null,null,null,null,null,null,null,1,1,1]
[null,null,null,null,null,null,null,null,null,null,null,null,null,null,null,null,null,null,null,1,1,1]
[null,null,null,null,"Limit plnění","Spoluúčast","Limit plnění","Spoluúčast",null,null,null,null,null,null,null,null,null,null,null,1,1,1]
["All risk (technická rizika)",null,null,null,null,null,null,null,null,null,null,null,null,null,null,{"$f":"IF(ISBLANK(E44),\"SKRÝT\",1)","v":"SKRÝT"},"SKRÝT","SKRÝT","SKRÝT",1,1,{"$f":"IF(AND(P44=\"SKRÝT\",Q44=\"SKRÝT\",R44=\"SKRÝT\",S44=\"SKRÝT\"),\"SKRÝT\",1)","v":"SKRÝT"}]
["Náraz, střet, havárie - pro mobilní stroje",null,null,null,null,null,null,null,null,null,null,null,null,null,null,"SKRÝT","SKRÝT","SKRÝT","SKRÝT",1,1,{"$f":"IF(AND(P45=\"SKRÝT\",Q45=\"SKRÝT\",R45=\"SKRÝT\",S45=\"SKRÝT\"),\"SKRÝT\",1)","v":"SKRÝT"}]
["Živel",null,null,null,null,null,null,null,null,null,null,null,null,null,null,"SKRÝT","SKRÝT","SKRÝT","SKRÝT",1,1,{"$f":"IF(AND(P46=\"SKRÝT\",Q46=\"SKRÝT\",R46=\"SKRÝT\",S46=\"SKRÝT\"),\"SKRÝT\",1)","v":"SKRÝT"}]
["Odcizení, vandalismus",null,null,null,null,null,null,null,null,"POZOR na úroveň zabezpečení u klienta.",null,null,null,null,null,"SKRÝT","SKRÝT","SKRÝT","SKRÝT",1,1,{"$f":"IF(AND(P47=\"SKRÝT\",Q47=\"SKRÝT\",R47=\"SKRÝT\",S47=\"SKRÝT\"),\"SKRÝT\",1)","v":"SKRÝT"}]
["Jiné (uveďte):",null,null,null,null,null,null,null,null,"Pokud chcete pojistit i jiné nebezpečí, doplňte.",null,null,null,null,null,"SKRÝT","SKRÝT","SKRÝT","SKRÝT",1,1,{"$f":"IF(AND(P48=\"SKRÝT\",Q48=\"SKRÝT\",R48=\"SKRÝT\",S48=\"SKRÝT\"),\"SKRÝT\",1)","v":"SKRÝT"}]
["Náklady na expresní a leteckou dopravu ",null,null,null,null,"Viz jednotlivá nebezpečí",null,"Viz jednotlivá nebezpečí",null,null,null,null,null,null,null,{"$f":"IF(ISBLANK(E49),\"SKRÝT\",1)","v":"SKRÝT"},null,{"$f":"IF(ISBLANK(G49),\"SKRÝT\",1)","v":"SKRÝT"},null,1,1,{"$f":"IF(AND(P49=\"SKRÝT\",R49=\"SKRÝT\"),\"SKRÝT\",1)","v":"SKRÝT"}]
["Náklady na práci přesčas, v noci, v neděli a ve státních svátcích",null,null,null,null,"Viz jednotlivá nebezpečí",null,"Viz jednotlivá nebezpečí",null,null,null,null,null,null,null,"SKRÝT",null,"SKRÝT",null,1,1,{"$f":"IF(AND(P50=\"SKRÝT\",R50=\"SKRÝT\"),\"SKRÝT\",1)","v":"SKRÝT"}]
["Jiné náklady (uveďte):",null,null,null,null,"Viz jednotlivá nebezpečí",null,"Viz jednotlivá nebezpečí",null,"Pokud chcete pojistit i jiné náklady, doplňte.",null,null,null,null,null,"SKRÝT",null,"SKRÝT",null,1,1,"SKRÝT"]
["Připojištění vyměnitelných částí",null,null,null,null,"Viz jednotlivá nebezpečí",null,"Viz jednotlivá nebezpečí",null,null,null,null,null,null,null,"SKRÝT",null,"SKRÝT",null,1,1,"SKRÝT"]
["Připojištění provozních kapalin",null,null,null,null,"Viz jednotlivá nebezpečí",null,"Viz jednotlivá nebezpečí",null,null,null,null,null,null,null,"SKRÝT",null,"SKRÝT",null,1,1,"SKRÝT"]
["Připojištění skleněných částí",null,null,null,null,"Viz jednotlivá nebezpečí",null,"Viz jednotlivá nebezpečí",null,null,null,null,null,null,null,"SKRÝT",null,"SKRÝT",null,1,1,"SKRÝT"]
["Škody vzniklé při přepravě stroje jako nákladu",null,null,null,null,"Viz jednotlivá nebezpečí",null,"Viz jednotlivá nebezpečí",null,null,null,null,null,null,null,"SKRÝT",null,"SKRÝT",null,1,1,"SKRÝT"]
["Jiné (uveďte):",null,null,null,null,"Viz jednotlivá nebezpečí",null,"Viz jednotlivá nebezpečí",null,"Pokud chcete sjednat i jiné připojištění, doplňte.",null,null,null,null,null,"SKRÝT",null,"SKRÝT",null,1,1,"SKRÝT"]
["Poznámka",null,null,null,null,null,null,null,null,null,null,null,null,null,null,null,null,null,null,1,1,{"$f":"IF(ISBLANK(A58),\"SKRÝT\",1)","v":"SKRÝT"}]
[null,null,null,null,null,null,null,null,null,"Zde můžete doplnit poznámky.",null,null,null,null,null,null,null,null,null,1,1,{"$f":"IF(ISBLANK(A58),\"SKRÝT\",1)","v":"SKRÝT"}]
["Použité pojmy",null,null,null,null,null,null,null,null,null,null,null,null,null,null,null,null,null,null,1,1,1]
["All risk \n(technická rizika)","Všechna nebezpečí, kromě výslovně vyloučených (běžně jsou vyloučená živelní nebezpečí, odcizení, vandalismus, válka, stávka; politická rizika; jaderné záření, reakce, kontaminace; běžné opotřebení; atmosférické vlivy; škody, za které odpovídá smluvní partner; úmyslné jednání pojištěného; škody na vyměnitelných součástech a na součástech, které podléhají rychlému opotřebení)",null,null,null,null,null,null,null,null,null,null,null,null,null,null,null,null,null,1,1,1]
["Živel","FLEXA (požár, úder blesku, výbuch, pád letadla nebo jeho nákladu); povodeň, záplava; vichřice nebo krupobití; pád stromů, stožárů nebo jiných předmětů; náraz dopravního prostředku; tíha sněhu nebo námrazy; sesuv půdy, zřícení skal nebo zemin, sesouvání nebo zřícení lavin; zemětřesení; aerodynamický třesk; vodovodní škody; kouř",null,null,null,null,null,null,null,null,null,null,null,null,null,null,null,null,null,1,1,1]

{"sheet":"Elektronika","index":6,"n_rows":59,"n_cols":22,"rows_kept":59,"cut":false,"hidden":false,"merged":[[20,0,20,2],[27,0,27,4],[47,0,47,1],[18,0,18,7],[13,0,13,7],[14,0,14,7],[15,0,15,7],[16,0,16,1],[16,2,16,3],[19,0,19,7],[21,3,21,4],[23,3,23,4],[21,0,21,2],[23,0,23,2],[22,0,22,4],[38,0,38,7],[6,0,6,7],[8,0,8,7],[10,0,10,7],[11,0,11,7],[12,0,12,7],[24,0,24,4],[25,0,25,4],[26,1,26,4],[28,1,28,7],[29,0,29,7],[31,1,31,7],[32,1,32,7],[33,1,33,7],[34,1,34,7],[35,1,35,7],[36,1,36,7],[40,4,40,5],[40,6,40,7],[41,4,41,5],[41,6,41,7],[43,0,43,3],[44,1,44,3],[45,0,45,3],[46,0,46,3],[40,0,42,2],[53,0,53,7],[54,1,54,7],[55,1,55,7],[48,0,48,3],[49,0,49,3],[50,0,50,3],[51,1,51,3],[52,1,52,7]]}
[null,null,null,null,null,null,null,null,null,null,null,null,null,null,null,null,null,null,null,"Verze k odeslání klientovi","Verze zpracovat","Verze k odeslání do pojišťovny (skrýt nevyplněné informace)"]
[null,null,null,null,null,null,null,null,null,null,null,null,null,null,null,null,null,null,null,1,1,1]
[null,null,null,null,null,null,null,null,null,null,null,null,null,null,null,null,null,null,null,1,1,1]
[null,null,null,null,null,null,null,null,null,null,null,null,null,null,null,null,null,null,null,1,1,1]
[null,null,null,null,null,null,null,null,null,null,null,null,null,null,null,null,null,null,null,1,1,1]
[null,null,null,null,null,null,null,null,null,null,null,null,null,null,null,null,null,null,null,1,1,1]
["Pojištění elektroniky",null,null,null,null,null,null,null,null,null,null,null,null,null,null,null,null,null,null,1,1,1]
[null,null,null,null,null,null,null,null,null,null,null,null,null,null,null,null,null,null,null,1,1,1]
["Místa pojištění",null,null,null,null,null,null,null,null,null,null,null,null,null,null,null,null,null,null,1,1,1]
[]
["Ulice, číslo popisné, město a PSČ",null,null,null,null,null,null,null,null,null,null,null,null,null,null,null,null,null,null,1,1,1]
["katastrální území města Teplic",null,null,null,null,null,null,null,null,"Automaticky se vyplní adresa sídla pojistníka.",null,null,null,null,null,null,null,null,null,1,1,1]
[null,null,null,null,null,null,null,null,null,null,null,null,null,null,null,null,null,null,null,1,1,{"$f":"IF(ISBLANK(A13),\"SKRÝT\",1)","v":"SKRÝT"}]
[null,null,null,null,null,null,null,null,null,null,null,null,null,null,null,null,null,null,null,1,1,{"$f":"IF(ISBLANK(A14),\"SKRÝT\",1)","v":"SKRÝT"}]
[null,null,null,null,null,null,null,null,null,null,null,null,null,null,null,null,null,null,null,1,1,{"$f":"IF(ISBLANK(A15),\"SKRÝT\",1)","v":"SKRÝT"}]
[null,null,null,null,null,null,null,null,null,null,null,null,null,null,null,null,null,null,null,1,1,{"$f":"IF(ISBLANK(A16),\"SKRÝT\",1)","v":"SKRÝT"}]
["Pro mobilní elektroniku:",null,"Území ČR",null,null,null,null,null,null,null,null,null,null,null,null,null,null,null,null,1,1,{"$f":"IF(ISBLANK(C17),\"SKRÝT\",1)","v":1}]
[null,null,null,null,null,null,null,null,null,null,null,null,null,null,null,null,null,null,null,1,1,1]
["Elektronika k pojištění",null,null,null,null,null,null,null,null,null,null,null,null,null,null,null,null,null,null,1,1,1]
[]
["Elektronika k pojištění",null,null,"Připojištění: \nZáklady",null,"Vlastní/ cizí/ \nvlastní a cizí","Pojistná částka","Pojistná hodnota","roční pojistné",null,null,null,null,null,null,null,null,null,null,1,1,1]
["soubor elektroniky vč. kamerového systému (vč.kancelářské a výpočetní techniky, ústředen, el.siganlizace apod., vč. vybavení kanceláří, škol a školek např. interaktivní tabule, počítače apod.)",null,null,"Základů",null,"Vlastní",1000000,"První riziko - nová cena",null,null,null,null,null,null,null,null,null,null,null,1,1,{"$f":"IF(G22=0,\"SKRÝT\",1)","v":1}]
["Soubor mobilní elektroniky do  5 let stáří, včetně příslušenství",null,null,null,null,null,null,null,null,null,null,null,null,null,null,null,null,null,null,1,1,{"$f":"IF(G23=0,\"SKRÝT\",1)","v":"SKRÝT"}]
["Soubor stacionární elektroniky do 5 let stáří, včetně příslušenství a:",null,null,null,null,null,null,null,null,null,null,null,null,null,null,null,null,null,null,1,1,"SKRÝT"]
["Software a data zakoupené nebo pořízené nad rámec standardně dodaných výrobcem",null,null,null,null,null,null,null,null,null,null,null,null,null,null,null,null,null,null,null,null,"SKRÝT"]
["Rozvody pojišťovaných zařízení",null,null,null,null,null,null,null,null,null,null,null,null,null,null,null,null,null,null,null,null,"SKRÝT"]
["Jiné (uveďte):",null,null,null,null,null,null,null,null,null,null,null,null,null,null,null,null,null,null,1,1,"SKRÝT"]
["Pojistná částka celkem",null,null,null,null,null,{"$f":"SUM(G22:G24,G27)","v":1000000},null,null,null,null,null,null,null,null,null,null,null,null,1,1,1]
["Poznámka",null,null,null,null,null,null,null,null,null,null,null,null,null,null,null,null,null,null,1,1,{"$f":"IF(ISBLANK(A30),\"SKRÝT\",1)","v":"SKRÝT"}]
[null,null,null,null,null,null,null,null,null,"Zde můžete doplnit poznámky. Řádek můžete rozkopírovat. ",null,null,null,null,null,null,null,null,null,1,1,{"$f":"IF(ISBLANK(A30),\"SKRÝT\",1)","v":"SKRÝT"}]
[null,null,null,null,null,null,null,null,null,null,null,null,null,null,null,null,null,null,null,1,1,1]
["Použité pojmy",null,null,null,null,null,null,null,null,null,null,null,null,null,null,null,null,null,null,1,1,1]
["Nová cena","Cena, za kterou lze v daném místě a v daném čase věc stejnou nebo srovnatelnou znovu pořídit jako věc stejnou nebo novou, stejného druhu a účelu.",null,null,null,null,null,null,null,null,null,null,null,null,null,null,null,null,null,1,1,1]
["Časová cena","Cena, kterou měla věc bezprostředně před pojistnou událostí; stanoví se z nové ceny věci, přičemž se přihlíží ke stupni opotřebení nebo jiného znehodnocení anebo k zhodnocení věci, k němuž došlo její opravou, modernizací nebo jiným způsobem.",null,null,null,null,null,null,null,null,null,null,null,null,null,null,null,null,null,1,1,1]
["Jiná cena","Cena, jejíž výše i způsob stanovení jsou dohodnuté v pojistné smlouvě.",null,null,null,null,null,null,null,null,null,null,null,null,null,null,null,null,null,1,1,1]
["Obvyklá cena","Cena, kterou může pojištěný dosáhnout při prodeji předmětné věci v daném čase a místě pojištění.",null,null,null,null,null,null,null,null,null,null,null,null,null,null,null,null,null,1,1,1]
["První riziko","V případě pojištění na první riziko se pojištění sjednává pouze na část známé pojistné hodnoty věci. Pojistná částka sjednaná na první riziko je zároveň horní hranicí plnění pojistitele ze všech pojistných událostí vzniklých za určenou dobu.",null,null,null,null,null,null,null,null,null,null,null,null,null,null,null,null,null,1,1,1]
[null,null,null,null,null,null,null,null,null,null,null,null,null,null,null,null,null,null,null,1,1,1]
["Pojištění elektroniky",null,null,null,null,null,null,null,null,null,null,null,null,null,null,null,null,null,null,1,1,1]
[null,null,null,null,null,null,null,null,null,null,null,null,null,null,null,null,null,null,null,1,1,1]
["Pojištěná nebezpečí",null,null,null,"Varianta  I.",null,"Varianta  II.",null,null,"Požadujte především různé varianty limitů. ",null,null,null,null,null,null,null,null,null,1,1,1]
[null,null,null,null,"All risk (technická rizika)",null,null,null,null,null,null,null,null,null,null,null,null,null,null,1,1,1]
[null,null,null,null,"Limit plnění","Spoluúčast","Limit plnění","Spoluúčast",null,null,null,null,null,null,null,null,null,null,null,1,1,1]
["All risk (technická rizika)",null,null,null,1000000,1000,null,null,null,null,null,null,null,null,null,{"$f":"IF(ISBLANK(E44),\"SKRÝT\",1)","v":1},{"$f":"IF(ISBLANK(F44),\"SKRÝT\",1)","v":1},{"$f":"IF(ISBLANK(G44),\"SKRÝT\",1)","v":"SKRÝT"},{"$f":"IF(ISBLANK(H44),\"SKRÝT\",1)","v":"SKRÝT"},1,1,{"$f":"IF(AND(P44=\"SKRÝT\",Q44=\"SKRÝT\",R44=\"SKRÝT\",S44=\"SKRÝT\"),\"SKRÝT\",1)","v":1}]
["Jiné (uveďte):",null,null,null,null,null,null,null,null,"Doplňte jiné nebezpečí, pokud chcete požadovat.",null,null,null,null,null,{"$f":"IF(ISBLANK(E45),\"SKRÝT\",1)","v":"SKRÝT"},"SKRÝT","SKRÝT","SKRÝT",1,1,{"$f":"IF(AND(P45=\"SKRÝT\",Q45=\"SKRÝT\",R45=\"SKRÝT\",S45=\"SKRÝT\"),\"SKRÝT\",1)","v":"SKRÝT"}]
["Náklady na expresní a leteckou dopravu ",null,null,null,null,"Viz jednotlivá nebezpečí",null,"Viz jednotlivá nebezpečí",null,null,null,null,null,null,null,"SKRÝT",null,"SKRÝT",null,1,1,{"$f":"IF(AND(P46=\"SKRÝT\",R46=\"SKRÝT\"),\"SKRÝT\",1)","v":"SKRÝT"}]
["Náklady na práci přesčas, v noci, v neděli a ve státních svátcích",null,null,null,null,"Viz jednotlivá nebezpečí",null,"Viz jednotlivá nebezpečí",null,null,null,null,null,null,null,"SKRÝT",null,"SKRÝT",null,1,1,"SKRÝT"]
["Jiné náklady (uveďte):",null,null,null,null,"Viz jednotlivá nebezpečí",null,"Viz jednotlivá nebezpečí",null,"Doplňte jiné náklady, pokud chcete požadovat.",null,null,null,null,null,"SKRÝT",null,"SKRÝT",null,1,1,"SKRÝT"]
["Připojištění vyměnitelných částí",null,null,null,null,"Viz jednotlivá nebezpečí",null,"Viz jednotlivá nebezpečí",null,null,null,null,null,null,null,"SKRÝT",null,"SKRÝT",null,null,null,"SKRÝT"]
["Poskytnutí dodatečné slevy za dlouhodobost   - požadovaná textace ",null,null,null,null,"Viz jednotlivá nebezpečí",null,"Viz jednotlivá nebezpečí",null,null,null,null,null,null,null,"SKRÝT",null,"SKRÝT",null,1,1,"SKRÝT"]
["Připojištění skleněných částí",null,null,null,50000,"Viz jednotlivá nebezpečí",null,"Viz jednotlivá nebezpečí",null,null,null,null,null,null,null,1,null,"SKRÝT",null,null,null,1]
["Jiné (uveďte):",null,null,null,null,null,null,null,null,"Doplňte jiné připojištění, pokud chcete požadovat.",null,null,null,null,null,"SKRÝT",{"$f":"IF(ISBLANK(F52),\"SKRÝT\",1)","v":"SKRÝT"},"SKRÝT",{"$f":"IF(ISBLANK(H52),\"SKRÝT\",1)","v":"SKRÝT"},1,1,"SKRÝT"]
["Poznámka",null,null,null,null,null,null,null,null,null,null,null,null,null,null,null,null,null,null,1,1,{"$f":"IF(ISBLANK(A54),\"SKRÝT\",1)","v":"SKRÝT"}]
[null,null,null,null,null,null,null,null,null,"Zde můžete doplnit poznámky.",null,null,null,null,null,null,null,null,null,1,1,{"$f":"IF(ISBLANK(A54),\"SKRÝT\",1)","v":"SKRÝT"}]
["Použité pojmy",null,null,null,null,null,null,null,null,null,null,null,null,null,null,null,null,null,null,1,1,1]
["viz příloha - Základní informace ","Všechna nebezpečí, kromě výslovně vyloučených (běžně jsou vyloučená živelní nebezpečí, odcizení, vandalismus, válka, stávka; politická rizika; jaderné záření, reakce, kontaminace; běžné opotřebení; atmosférické vlivy; škody, za které odpovídá smluvní partner; úmyslné jednání pojištěného; škody na vyměnitelných součástech a na součástech, které podléhají rychlému opotřebení)",null,null,null,null,null,null,null,null,null,null,null,null,null,null,null,null,null,1,1,1]
[]
[null,"Pokud pojistník, pojištěný nebo oprávněná osoba způsobí zánik pojištění,  dříve než za 4 roky od data nabytí její učinnosti, zavazuje se pojistník "]
[null," uhradit částku odpovídající  poskytnuté slevě za dobu trvání pojištění."]

{"sheet":"Elektronika_vc_zivlu","index":7,"n_rows":59,"n_cols":22,"rows_kept":59,"cut":false,"hidden":true,"merged":[[27,0,27,4],[49,0,49,1],[6,0,6,7],[55,0,55,7],[31,1,31,7],[24,0,24,4],[25,0,25,4],[26,1,26,4],[28,1,28,7],[29,0,29,7],[21,0,21,2],[21,3,21,4],[22,0,22,4],[23,0,23,2],[8,0,8,7],[43,0,43,3],[32,1,32,7],[33,1,33,7],[34,1,34,7],[35,1,35,7],[36,1,36,7],[38,0,38,7],[40,0,42,2],[40,4,40,5],[40,6,40,7],[41,4,41,5],[41,6,41,7],[58,1,58,7],[54,1,54,7],[44,0,44,3],[45,0,45,3],[46,1,46,3],[47,0,47,3],[48,0,48,3],[50,0,50,3],[51,0,51,3],[52,0,52,3],[53,1,53,3],[56,1,56,7],[57,1,57,7],[10,0,10,7],[11,0,11,7],[12,0,12,7],[13,0,13,7],[14,0,14,7],[23,3,23,4],[15,0,15,7],[16,0,16,1],[16,2,16,3],[18,0,18,7],[19,0,19,6],[20,0,20,2]]}
[null,null,null,null,null,null,null,null,null,null,null,null,null,null,null,null,null,null,null,"Verze k odeslání klientovi","Verze zpracovat","Verze k odeslání do pojišťovny (skrýt nevyplněné informace)"]
[null,null,null,null,null,null,null,null,null,null,null,null,null,null,null,null,null,null,null,1,1,1]
[null,null,null,null,null,null,null,null,null,null,null,null,null,null,null,null,null,null,null,1,1,1]
[null,null,null,null,null,null,null,null,null,null,null,null,null,null,null,null,null,null,null,1,1,1]
[null,null,null,null,null,null,null,null,null,null,null,null,null,null,null,null,null,null,null,1,1,1]
[null,null,null,null,null,null,null,null,null,null,null,null,null,null,null,null,null,null,null,1,1,1]
["Pojištění elektroniky",null,null,null,null,null,null,null,null,null,null,null,null,null,null,null,null,null,null,1,1,1]
[null,null,null,null,null,null,null,null,null,null,null,null,null,null,null,null,null,null,null,1,1,1]
["Místa pojištění",null,null,null,null,null,null,null,null,null,null,null,null,null,null,null,null,null,null,1,1,1]
[]
["Ulice, číslo popisné, město a PSČ",null,null,null,null,null,null,null,null,null,null,null,null,null,null,null,null,null,null,1,1,1]
[{"$f":"Zakl_udaje!B14","v":"náměstí Svobody 2/2, Teplice - Teplice, PSČ 41501"},null,null,null,null,null,null,null,null,"Automaticky se vyplní adresa sídla pojistníka.",null,null,null,null,null,null,null,null,null,1,1,1]
[null,null,null,null,null,null,null,null,null,null,null,null,null,null,null,null,null,null,null,1,1,{"$f":"IF(ISBLANK(A13),\"SKRÝT\",1)","v":"SKRÝT"}]
[null,null,null,null,null,null,null,null,null,null,null,null,null,null,null,null,null,null,null,1,1,{"$f":"IF(ISBLANK(A14),\"SKRÝT\",1)","v":"SKRÝT"}]
[null,null,null,null,null,null,null,null,null,null,null,null,null,null,null,null,null,null,null,1,1,{"$f":"IF(ISBLANK(A15),\"SKRÝT\",1)","v":"SKRÝT"}]
[null,null,null,null,null,null,null,null,null,null,null,null,null,null,null,null,null,null,null,1,1,{"$f":"IF(ISBLANK(A16),\"SKRÝT\",1)","v":"SKRÝT"}]
["Pro mobilní elektroniku:",null,null,null,null,null,null,null,null,null,null,null,null,null,null,null,null,null,null,1,1,{"$f":"IF(ISBLANK(C17),\"SKRÝT\",1)","v":"SKRÝT"}]
[null,null,null,null,null,null,null,null,null,null,null,null,null,null,null,null,null,null,null,1,1,1]
["Elektronika k pojištění",null,null,null,null,null,null,null,null,null,null,null,null,null,null,null,null,null,null,1,1,1]
["Elektroniku starší než 5 let je nutné uvést do Seznamu elektroniky (viz samostatný dokument)."]
["Elektronika k pojištění",null,null,"Připojištění: \nZáklady",null,"Vlastní/ cizí/ \nvlastní a cizí","Pojistná částka","Pojistná hodnota",null,null,null,null,null,null,null,null,null,null,null,1,1,1]
["Elektronika uvedená v Seznamu elektroniky, včetně příslušenství a:",null,null,null,null,null,null,null,null,null,null,null,null,null,null,null,null,null,null,1,1,{"$f":"IF(G22=0,\"SKRÝT\",1)","v":"SKRÝT"}]
["Soubor mobilní elektroniky do  5 let stáří, včetně příslušenství",null,null,null,null,null,null,null,null,null,null,null,null,null,null,null,null,null,null,1,1,{"$f":"IF(G23=0,\"SKRÝT\",1)","v":"SKRÝT"}]
["Soubor stacionární elektroniky do 5 let stáří, včetně příslušenství a:",null,null,null,null,null,null,null,null,null,null,null,null,null,null,null,null,null,null,1,1,"SKRÝT"]
["Software a data zakoupené nebo pořízené nad rámec standardně dodaných výrobcem",null,null,null,null,null,null,null,null,null,null,null,null,null,null,null,null,null,null,null,null,"SKRÝT"]
["Rozvody pojišťovaných zařízení",null,null,null,null,null,null,null,null,null,null,null,null,null,null,null,null,null,null,null,null,"SKRÝT"]
["Jiné (uveďte):",null,null,null,null,null,null,null,null,null,null,null,null,null,null,null,null,null,null,1,1,"SKRÝT"]
["Pojistná částka celkem",null,null,null,null,null,{"$f":"SUM(G22:G24,G27)","v":0},null,null,null,null,null,null,null,null,null,null,null,null,1,1,"SKRÝT"]
["Poznámka",null,null,null,null,null,null,null,null,null,null,null,null,null,null,null,null,null,null,1,1,{"$f":"IF(ISBLANK(A30),\"SKRÝT\",1)","v":"SKRÝT"}]
[null,null,null,null,null,null,null,null,null,"Zde můžete doplnit poznámky. Řádek můžete rozkopírovat. ",null,null,null,null,null,null,null,null,null,1,1,{"$f":"IF(ISBLANK(A30),\"SKRÝT\",1)","v":"SKRÝT"}]
[null,null,null,null,null,null,null,null,null,null,null,null,null,null,null,null,null,null,null,1,1,1]
["Použité pojmy",null,null,null,null,null,null,null,null,null,null,null,null,null,null,null,null,null,null,1,1,1]
["Nová cena","Cena, za kterou lze v daném místě a v daném čase věc stejnou nebo srovnatelnou znovu pořídit jako věc stejnou nebo novou, stejného druhu a účelu.",null,null,null,null,null,null,null,null,null,null,null,null,null,null,null,null,null,1,1,1]
["Časová cena","Cena, kterou měla věc bezprostředně před pojistnou událostí; stanoví se z nové ceny věci, přičemž se přihlíží ke stupni opotřebení nebo jiného znehodnocení anebo k zhodnocení věci, k němuž došlo její opravou, modernizací nebo jiným způsobem.",null,null,null,null,null,null,null,null,null,null,null,null,null,null,null,null,null,1,1,1]
["Jiná cena","Cena, jejíž výše i způsob stanovení jsou dohodnuté v pojistné smlouvě.",null,null,null,null,null,null,null,null,null,null,null,null,null,null,null,null,null,1,1,1]
["Obvyklá cena","Cena, kterou může pojištěný dosáhnout při prodeji předmětné věci v daném čase a místě pojištění.",null,null,null,null,null,null,null,null,null,null,null,null,null,null,null,null,null,1,1,1]
["První riziko","V případě pojištění na první riziko se pojištění sjednává pouze na část známé pojistné hodnoty věci. Pojistná částka sjednaná na první riziko je zároveň horní hranicí plnění pojistitele ze všech pojistných událostí vzniklých za určenou dobu.",null,null,null,null,null,null,null,null,null,null,null,null,null,null,null,null,null,1,1,1]
[null,null,null,null,null,null,null,null,null,null,null,null,null,null,null,null,null,null,null,1,1,1]
["Pojištění elektroniky a živelní pojištění",null,null,null,null,null,null,null,null,null,null,null,null,null,null,null,null,null,null,1,1,1]
[null,null,null,null,null,null,null,null,null,null,null,null,null,null,null,null,null,null,null,1,1,1]
["Pojištěná nebezpečí",null,null,null,"Varianta  I.",null,"Varianta  II.",null,null,"Požadujte především různé varianty limitů. ",null,null,null,null,null,null,null,null,null,1,1,1]
[null,null,null,null,null,null,null,null,null,null,null,null,null,null,null,null,null,null,null,1,1,1]
[null,null,null,null,"Limit plnění","Spoluúčast","Limit plnění","Spoluúčast",null,null,null,null,null,null,null,null,null,null,null,1,1,1]
["All risk (technická rizika)",null,null,null,null,null,null,null,null,null,null,null,null,null,null,{"$f":"IF(ISBLANK(E44),\"SKRÝT\",1)","v":"SKRÝT"},"SKRÝT","SKRÝT","SKRÝT",1,1,{"$f":"IF(AND(P44=\"SKRÝT\",Q44=\"SKRÝT\",R44=\"SKRÝT\",S44=\"SKRÝT\"),\"SKRÝT\",1)","v":"SKRÝT"}]
["Živel",null,null,null,null,null,null,null,null,null,null,null,null,null,null,"SKRÝT","SKRÝT","SKRÝT","SKRÝT",1,1,{"$f":"IF(AND(P45=\"SKRÝT\",Q45=\"SKRÝT\",R45=\"SKRÝT\",S45=\"SKRÝT\"),\"SKRÝT\",1)","v":"SKRÝT"}]
["Odcizení, vandalismus",null,null,null,null,null,null,null,null,null,null,null,null,null,null,"SKRÝT","SKRÝT","SKRÝT","SKRÝT",1,1,{"$f":"IF(AND(P46=\"SKRÝT\",Q46=\"SKRÝT\",R46=\"SKRÝT\",S46=\"SKRÝT\"),\"SKRÝT\",1)","v":"SKRÝT"}]
["Jiné (uveďte):",null,null,null,null,null,null,null,null,"Doplňte jiné nebezpečí, pokud chcete požadovat.",null,null,null,null,null,"SKRÝT","SKRÝT","SKRÝT","SKRÝT",1,1,{"$f":"IF(AND(P47=\"SKRÝT\",Q47=\"SKRÝT\",R47=\"SKRÝT\",S47=\"SKRÝT\"),\"SKRÝT\",1)","v":"SKRÝT"}]
["Náklady na expresní a leteckou dopravu ",null,null,null,null,"Viz jednotlivá nebezpečí",null,"Viz jednotlivá nebezpečí",null,null,null,null,null,null,null,"SKRÝT",null,"SKRÝT",null,1,1,{"$f":"IF(AND(P48=\"SKRÝT\",R48=\"SKRÝT\"),\"SKRÝT\",1)","v":"SKRÝT"}]
["Náklady na práci přesčas, v noci, v neděli a ve státních svátcích",null,null,null,null,"Viz jednotlivá nebezpečí",null,"Viz jednotlivá nebezpečí",null,null,null,null,null,null,null,"SKRÝT",null,"SKRÝT",null,null,null,"SKRÝT"]
["Jiné náklady (uveďte):",null,null,null,null,"Viz jednotlivá nebezpečí",null,"Viz jednotlivá nebezpečí",null,null,null,null,null,null,null,"SKRÝT",null,"SKRÝT",null,1,1,"SKRÝT"]
["Připojištění vyměnitelných částí",null,null,null,null,"Viz jednotlivá nebezpečí",null,"Viz jednotlivá nebezpečí",null,"Doplňte jiné náklady, pokud chcete požadovat.",null,null,null,null,null,"SKRÝT",null,"SKRÝT",null,null,null,"SKRÝT"]
["Připojištění provozních kapalin",null,null,null,null,"Viz jednotlivá nebezpečí",null,"Viz jednotlivá nebezpečí",null,null,null,null,null,null,null,"SKRÝT",null,"SKRÝT",null,1,1,"SKRÝT"]
["Připojištění skleněných částí",null,null,null,null,"Viz jednotlivá nebezpečí",null,"Viz jednotlivá nebezpečí",null,null,null,null,null,null,null,"SKRÝT",null,"SKRÝT",null,1,1,"SKRÝT"]
["Jiné (uveďte):",null,null,null,null,null,null,null,null,"Doplňte jiné připojištění, pokud chcete požadovat.",null,null,null,null,null,{"$f":"IF(ISBLANK(E54),\"SKRÝT\",1)","v":"SKRÝT"},{"$f":"IF(ISBLANK(F54),\"SKRÝT\",1)","v":"SKRÝT"},{"$f":"IF(ISBLANK(G54),\"SKRÝT\",1)","v":"SKRÝT"},{"$f":"IF(ISBLANK(H54),\"SKRÝT\",1)","v":"SKRÝT"},1,1,{"$f":"IF(AND(P54=\"SKRÝT\",Q54=\"SKRÝT\",R54=\"SKRÝT\",S54=\"SKRÝT\"),\"SKRÝT\",1)","v":"SKRÝT"}]
["Poznámka",null,null,null,null,null,null,null,null,null,null,null,null,null,null,null,null,null,null,1,1,{"$f":"IF(ISBLANK(A56),\"SKRÝT\",1)","v":"SKRÝT"}]
[null,null,null,null,null,null,null,null,null,"Zde můžete doplnit poznámky.",null,null,null,null,null,null,null,null,null,1,1,{"$f":"IF(ISBLANK(A56),\"SKRÝT\",1)","v":"SKRÝT"}]
["Použité pojmy",null,null,null,null,null,null,null,null,null,null,null,null,null,null,null,null,null,null,1,1,1]
["All risk\n(technická rizika)","Všechna nebezpečí, kromě výslovně vyloučených (běžně jsou vyloučená živelní nebezpečí, odcizení, vandalismus, válka, stávka; politická rizika; jaderné záření, reakce, kontaminace; běžné opotřebení; atmosférické vlivy; škody, za které odpovídá smluvní partner; úmyslné jednání pojištěného; škody na vyměnitelných součástech a na součástech, které podléhají rychlému opotřebení)",null,null,null,null,null,null,null,null,null,null,null,null,null,null,null,null,null,1,1,1]
["Živel","FLEXA (požár, úder blesku, výbuch, pád letadla nebo jeho nákladu); povodeň, záplava; vichřice nebo krupobití; pád stromů, stožárů nebo jiných předmětů; náraz dopravního prostředku; tíha sněhu nebo námrazy; sesuv půdy, zřícení skal nebo zemin, sesouvání nebo zřícení lavin; zemětřesení; aerodynamický třesk; vodovodní škody; kouř;",null,null,null,null,null,null,null,null,null,null,null,null,null,null,null,null,null,1,1,1]

{"sheet":"Preruseni_provozu_info_PC","index":8,"n_rows":86,"n_cols":22,"rows_kept":86,"cut":false,"hidden":true,"merged":[[41,0,41,7],[32,0,32,7],[38,0,38,2],[38,3,38,5],[39,0,39,2],[39,3,39,5],[45,0,45,7],[46,0,46,7],[33,0,33,7],[24,0,24,7],[43,0,43,1],[43,3,43,4],[49,1,49,5],[50,1,50,5],[21,0,21,4],[21,5,21,7],[23,0,23,7],[34,0,34,2],[34,3,34,5],[35,0,35,2],[35,3,35,5],[36,0,36,2],[36,3,36,5],[37,0,37,2],[37,3,37,5],[48,1,48,5],[47,0,47,7],[6,0,6,7],[8,0,8,7],[15,0,15,3],[16,0,16,3],[25,0,25,2],[26,0,26,2],[27,0,27,2],[30,0,30,2],[28,0,28,2],[28,3,28,5],[25,3,25,5],[26,3,26,5],[27,3,27,5],[30,3,30,5],[29,0,29,2],[29,3,29,5],[19,0,19,4],[20,0,20,4],[13,0,13,5],[14,0,14,5],[17,0,17,5],[18,0,18,5],[60,1,60,5],[61,1,61,5],[62,1,62,5],[63,1,63,5],[64,1,64,5],[65,0,65,5],[70,0,70,6],[69,0,69,7],[66,0,66,6],[51,1,51,5],[52,1,52,5],[53,1,53,5],[55,1,55,5],[56,1,56,5],[57,1,57,5],[58,1,58,5],[59,1,59,5],[54,1,54,2],[54,3,54,4],[67,0,67,6],[73,0,73,7],[68,0,68,7],[76,0,76,7],[77,0,77,7],[80,0,80,5],[80,6,80,7],[81,0,81,5],[81,6,81,7],[84,0,84,5],[84,6,84,7],[72,0,72,5],[71,0,71,6],[82,0,82,5],[82,6,82,7],[83,0,83,5],[83,6,83,7],[77,55,77,62],[77,191,77,198],[77,199,77,206],[77,63,77,70],[77,71,77,78],[77,79,77,86],[77,87,77,94],[77,95,77,102],[77,103,77,110],[77,111,77,118],[77,119,77,126],[77,127,77,134],[77,279,77,286],[77,287,77,294],[77,295,77,302],[77,303,77,310],[77,311,77,318],[77,319,77,326],[77,135,77,142],[77,143,77,150],[77,151,77,158],[77,159,77,166],[77,167,77,174],[77,175,77,182],[77,183,77,190],[77,327,77,334],[77,335,77,342],[77,343,77,350],[77,207,77,214],[77,215,77,222],[77,223,77,230],[77,231,77,238],[77,239,77,246],[77,247,77,254],[77,255,77,262],[77,263,77,270],[77,271,77,278],[77,423,77,430],[77,431,77,438],[77,439,77,446],[77,447,77,454],[77,455,77,462],[77,463,77,470],[77,471,77,478],[77,479,77,486],[77,487,77,494],[77,351,77,358],[77,359,77,366],[77,367,77,374],[77,375,77,382],[77,383,77,390],[77,391,77,398],[77,399,77,406],[77,407,77,414],[77,415,77,422],[77,567,77,574],[77,575,77,582],[77,583,77,590],[77,591,77,598],[77,599,77,606],[77,607,77,614],[77,615,77,622],[77,623,77,630],[77,631,77,638],[77,495,77,502],[77,503,77,510],[77,511,77,518],[77,519,77,526],[77,527,77,534],[77,535,77,542],[77,543,77,550],[77,551,77,558],[77,559,77,566],[77,711,77,718],[77,719,77,726],[77,727,77,734],[77,735,77,742],[77,743,77,750],[77,751,77,758],[77,759,77,766],[77,767,77,774],[77,775,77,782],[77,639,77,646],[77,647,77,654],[77,655,77,662],[77,663,77,670],[77,671,77,678],[77,679,77,686],[77,687,77,694],[77,695,77,702],[77,703,77,710],[77,855,77,862],[77,863,77,870],[77,911,77,918],[77,919,77,926],[77,783,77,790],[77,791,77,798],[77,799,77,806],[77,807,77,814],[77,815,77,822],[77,823,77,830],[77,831,77,838],[77,839,77,846],[77,847,77,854],[77,1071,77,1078],[77,1079,77,1086],[77,1087,77,1094],[77,1095,77,1102],[77,1103,77,1110],[77,1111,77,1118],[77,999,77,1006],[77,927,77,934],[77,935,77,942],[77,943,77,950],[77,951,77,958],[77,959,77,966],[77,967,77,974],[77,975,77,982],[77,983,77,990],[77,991,77,998],[77,871,77,878],[77,879,77,886],[77,887,77,894],[77,895,77,902],[77,903,77,910],[77,1119,77,1126],[77,1127,77,1134],[77,1135,77,1142],[77,1007,77,1014],[77,1015,77,1022],[77,1023,77,1030],[77,1031,77,1038],[77,1039,77,1046],[77,1047,77,1054],[77,1055,77,1062],[77,1063,77,1070],[77,1215,77,1222],[77,1223,77,1230],[77,1231,77,1238],[77,1239,77,1246],[77,1247,77,1254],[77,1255,77,1262],[77,1263,77,1270],[77,1271,77,1278],[77,1279,77,1286],[77,1143,77,1150],[77,1151,77,1158],[77,1159,77,1166],[77,1167,77,1174],[77,1175,77,1182],[77,1183,77,1190],[77,1191,77,1198],[77,1199,77,1206],[77,1207,77,1214],[77,1359,77,1366],[77,1367,77,1374],[77,1375,77,1382],[77,1383,77,1390],[77,1391,77,1398],[77,1399,77,1406],[77,1407,77,1414],[77,1415,77,1422],[77,1423,77,1430],[77,1287,77,1294],[77,1295,77,1302],[77,1303,77,1310],[77,1311,77,1318],[77,1319,77,1326],[77,1327,77,1334],[77,1335,77,1342],[77,1343,77,1350],[77,1351,77,1358],[77,1503,77,1510],[77,1511,77,1518],[77,1519,77,1526],[77,1527,77,1534],[77,1535,77,1542],[77,1543,77,1550],[77,1551,77,1558],[77,1559,77,1566],[77,1567,77,1574],[77,1431,77,1438],[77,1439,77,1446],[77,1447,77,1454],[77,1455,77,1462],[77,1463,77,1470],[77,1471,77,1478],[77,1479,77,1486],[77,1487,77,1494],[77,1495,77,1502],[77,1647,77,1654],[77,1655,77,1662],[77,1663,77,1670],[77,1671,77,1678],[77,1679,77,1686],[77,1687,77,1694],[77,1695,77,1702],[77,1703,77,1710],[77,1711,77,1718],[77,1575,77,1582],[77,1583,77,1590],[77,1591,77,1598],[77,1599,77,1606],[77,1607,77,1614],[77,1615,77,1622],[77,1623,77,1630],[77,1631,77,1638],[77,1639,77,1646],[77,1791,77,1798],[77,1799,77,1806],[77,1847,77,1854],[77,1855,77,1862],[77,1719,77,1726],[77,1727,77,1734],[77,1735,77,1742],[77,1743,77,1750],[77,1751,77,1758],[77,1759,77,1766],[77,1767,77,1774],[77,1775,77,1782],[77,1783,77,1790],[77,2007,77,2014],[77,2015,77,2022],[77,2023,77,2030],[77,2031,77,2038],[77,2039,77,2046],[77,2047,77,2054],[77,1935,77,1942],[77,1863,77,1870],[77,1871,77,1878],[77,1879,77,1886],[77,1887,77,1894],[77,1895,77,1902],[77,1903,77,1910],[77,1911,77,1918],[77,1919,77,1926],[77,1927,77,1934],[77,1807,77,1814],[77,1815,77,1822],[77,1823,77,1830],[77,1831,77,1838],[77,1839,77,1846],[77,2055,77,2062],[77,2063,77,2070],[77,2071,77,2078],[77,1943,77,1950],[77,1951,77,1958],[77,1959,77,1966],[77,1967,77,1974],[77,1975,77,1982],[77,1983,77,1990],[77,1991,77,1998],[77,1999,77,2006],[77,2151,77,2158],[77,2159,77,2166],[77,2167,77,2174],[77,2175,77,2182],[77,2183,77,2190],[77,2191,77,2198],[77,2199,77,2206],[77,2207,77,2214],[77,2215,77,2222],[77,2079,77,2086],[77,2087,77,2094],[77,2095,77,2102],[77,2103,77,2110],[77,2111,77,2118],[77,2119,77,2126],[77,2127,77,2134],[77,2135,77,2142],[77,2143,77,2150],[77,2295,77,2302],[77,2303,77,2310],[77,2311,77,2318],[77,2319,77,2326],[77,2327,77,2334],[77,2335,77,2342],[77,2343,77,2350],[77,2351,77,2358],[77,2359,77,2366],[77,2223,77,2230],[77,2231,77,2238],[77,2239,77,2246],[77,2247,77,2254],[77,2255,77,2262],[77,2263,77,2270],[77,2271,77,2278],[77,2279,77,2286],[77,2287,77,2294],[77,2439,77,2446],[77,2447,77,2454],[77,2455,77,2462],[77,2463,77,2470],[77,2471,77,2478],[77,2479,77,2486],[77,2487,77,2494],[77,2495,77,2502],[77,2503,77,2510],[77,2367,77,2374],[77,2375,77,2382],[77,2383,77,2390],[77,2391,77,2398],[77,2399,77,2406],[77,2407,77,2414],[77,2415,77,2422],[77,2423,77,2430],[77,2431,77,2438],[77,2583,77,2590],[77,2591,77,2598],[77,2599,77,2606],[77,2607,77,2614],[77,2615,77,2622],[77,2623,77,2630],[77,2631,77,2638],[77,2639,77,2646],[77,2647,77,2654],[77,2511,77,2518],[77,2519,77,2526],[77,2527,77,2534],[77,2535,77,2542],[77,2543,77,2550],[77,2551,77,2558],[77,2559,77,2566],[77,2567,77,2574],[77,2575,77,2582],[77,2727,77,2734],[77,2735,77,2742],[77,2783,77,2790],[77,2791,77,2798],[77,2655,77,2662],[77,2663,77,2670],[77,2671,77,2678],[77,2679,77,2686],[77,2687,77,2694],[77,2695,77,2702],[77,2703,77,2710],[77,2711,77,2718],[77,2719,77,2726],[77,2943,77,2950],[77,2951,77,2958],[77,2959,77,2966],[77,2967,77,2974],[77,2975,77,2982],[77,2983,77,2990],[77,2871,77,2878],[77,2799,77,2806],[77,2807,77,2814],[77,2815,77,2822],[77,2823,77,2830],[77,2831,77,2838],[77,2839,77,2846],[77,2847,77,2854],[77,2855,77,2862],[77,2863,77,2870],[77,2743,77,2750],[77,2751,77,2758],[77,2759,77,2766],[77,2767,77,2774],[77,2775,77,2782],[77,2991,77,2998],[77,2999,77,3006],[77,3007,77,3014],[77,2879,77,2886],[77,2887,77,2894],[77,2895,77,2902],[77,2903,77,2910],[77,2911,77,2918],[77,2919,77,2926],[77,2927,77,2934],[77,2935,77,2942],[77,3087,77,3094],[77,3095,77,3102],[77,3103,77,3110],[77,3111,77,3118],[77,3119,77,3126],[77,3127,77,3134],[77,3135,77,3142],[77,3143,77,3150],[77,3151,77,3158],[77,3015,77,3022],[77,3023,77,3030],[77,3031,77,3038],[77,3039,77,3046],[77,3047,77,3054],[77,3055,77,3062],[77,3063,77,3070],[77,3071,77,3078],[77,3079,77,3086],[77,3231,77,3238],[77,3239,77,3246],[77,3247,77,3254],[77,3255,77,3262],[77,3263,77,3270],[77,3271,77,3278],[77,3279,77,3286],[77,3287,77,3294],[77,3295,77,3302],[77,3159,77,3166],[77,3167,77,3174],[77,3175,77,3182],[77,3183,77,3190],[77,3191,77,3198],[77,3199,77,3206],[77,3207,77,3214],[77,3215,77,3222],[77,3223,77,3230],[77,3375,77,3382],[77,3383,77,3390],[77,3391,77,3398],[77,3399,77,3406],[77,3407,77,3414],[77,3415,77,3422],[77,3423,77,3430],[77,3431,77,3438],[77,3439,77,3446],[77,3303,77,3310],[77,3311,77,3318],[77,3319,77,3326],[77,3327,77,3334],[77,3335,77,3342],[77,3343,77,3350],[77,3351,77,3358],[77,3359,77,3366],[77,3367,77,3374],[77,3519,77,3526],[77,3527,77,3534],[77,3535,77,3542],[77,3543,77,3550],[77,3551,77,3558],[77,3559,77,3566],[77,3567,77,3574],[77,3575,77,3582],[77,3583,77,3590],[77,3447,77,3454],[77,3455,77,3462],[77,3463,77,3470],[77,3471,77,3478],[77,3479,77,3486],[77,3487,77,3494],[77,3495,77,3502],[77,3503,77,3510],[77,3511,77,3518],[77,3663,77,3670],[77,3671,77,3678],[77,3679,77,3686],[77,3687,77,3694],[77,3695,77,3702],[77,3703,77,3710],[77,3711,77,3718],[77,3719,77,3726],[77,3727,77,3734],[77,3591,77,3598],[77,3599,77,3606],[77,3607,77,3614],[77,3615,77,3622],[77,3623,77,3630],[77,3631,77,3638],[77,3639,77,3646],[77,3647,77,3654],[77,3655,77,3662],[77,3807,77,3814],[77,3815,77,3822],[77,3823,77,3830],[77,3831,77,3838],[77,3839,77,3846],[77,3847,77,3854],[77,3855,77,3862],[77,3863,77,3870],[77,3871,77,3878],[77,3735,77,3742],[77,3743,77,3750],[77,3751,77,3758],[77,3759,77,3766],[77,3767,77,3774],[77,3775,77,3782],[77,3783,77,3790],[77,3791,77,3798],[77,3799,77,3806],[77,3951,77,3958],[77,3959,77,3966],[77,3967,77,3974],[77,3975,77,3982],[77,3983,77,3990],[77,3991,77,3998],[77,3999,77,4006],[77,4007,77,4014],[77,4015,77,4022],[77,3879,77,3886],[77,3887,77,3894],[77,3895,77,3902],[77,3903,77,3910],[77,3911,77,3918],[77,3919,77,3926],[77,3927,77,3934],[77,3935,77,3942],[77,3943,77,3950],[77,4095,77,4102],[77,4103,77,4110],[77,4111,77,4118],[77,4119,77,4126],[77,4127,77,4134],[77,4135,77,4142],[77,4143,77,4150],[77,4151,77,4158],[77,4159,77,4166],[77,4023,77,4030],[77,4031,77,4038],[77,4039,77,4046],[77,4047,77,4054],[77,4055,77,4062],[77,4063,77,4070],[77,4071,77,4078],[77,4079,77,4086],[77,4087,77,4094],[77,4239,77,4246],[77,4247,77,4254],[77,4255,77,4262],[77,4263,77,4270],[77,4271,77,4278],[77,4279,77,4286],[77,4287,77,4294],[77,4295,77,4302],[77,4303,77,4310],[77,4167,77,4174],[77,4175,77,4182],[77,4183,77,4190],[77,4191,77,4198],[77,4199,77,4206],[77,4207,77,4214],[77,4215,77,4222],[77,4223,77,4230],[77,4231,77,4238],[77,4383,77,4390],[77,4391,77,4398],[77,4399,77,4406],[77,4407,77,4414],[77,4415,77,4422],[77,4423,77,4430],[77,4431,77,4438],[77,4439,77,4446],[77,4447,77,4454],[77,4311,77,4318],[77,4319,77,4326],[77,4327,77,4334],[77,4335,77,4342],[77,4343,77,4350],[77,4351,77,4358],[77,4359,77,4366],[77,4367,77,4374],[77,4375,77,4382],[77,4527,77,4534],[77,4535,77,4542],[77,4543,77,4550],[77,4551,77,4558],[77,4559,77,4566],[77,4567,77,4574],[77,4575,77,4582],[77,4583,77,4590],[77,4591,77,4598],[77,4455,77,4462],[77,4463,77,4470],[77,4471,77,4478],[77,4479,77,4486],[77,4487,77,4494],[77,4495,77,4502],[77,4503,77,4510],[77,4511,77,4518],[77,4519,77,4526],[77,4671,77,4678],[77,4679,77,4686],[77,4687,77,4694],[77,4695,77,4702],[77,4703,77,4710],[77,4711,77,4718],[77,4719,77,4726],[77,4727,77,4734],[77,4735,77,4742],[77,4599,77,4606],[77,4607,77,4614],[77,4615,77,4622],[77,4623,77,4630],[77,4631,77,4638],[77,4639,77,4646],[77,4647,77,4654],[77,4655,77,4662],[77,4663,77,4670],[77,4815,77,4822],[77,4823,77,4830],[77,4831,77,4838],[77,4839,77,4846],[77,4847,77,4854],[77,4855,77,4862],[77,4863,77,4870],[77,4871,77,4878],[77,4879,77,4886],[77,4743,77,4750],[77,4751,77,4758],[77,4759,77,4766],[77,4767,77,4774],[77,4775,77,4782],[77,4783,77,4790],[77,4791,77,4798],[77,4799,77,4806],[77,4807,77,4814],[77,4959,77,4966],[77,4967,77,4974],[77,4975,77,4982],[77,4983,77,4990],[77,4991,77,4998],[77,4999,77,5006],[77,5007,77,5014],[77,5015,77,5022],[77,5023,77,5030],[77,4887,77,4894],[77,4895,77,4902],[77,4903,77,4910],[77,4911,77,4918],[77,4919,77,4926],[77,4927,77,4934],[77,4935,77,4942],[77,4943,77,4950],[77,4951,77,4958],[77,5103,77,5110],[77,5111,77,5118],[77,5119,77,5126],[77,5127,77,5134],[77,5135,77,5142],[77,5143,77,5150],[77,5151,77,5158],[77,5159,77,5166],[77,5167,77,5174],[77,5031,77,5038],[77,5039,77,5046],[77,5047,77,5054],[77,5055,77,5062],[77,5063,77,5070],[77,5071,77,5078],[77,5079,77,5086],[77,5087,77,5094],[77,5095,77,5102],[77,5247,77,5254],[77,5255,77,5262],[77,5263,77,5270],[77,5271,77,5278],[77,5279,77,5286],[77,5287,77,5294],[77,5295,77,5302],[77,5303,77,5310],[77,5311,77,5318],[77,5175,77,5182],[77,5183,77,5190],[77,5191,77,5198],[77,5199,77,5206],[77,5207,77,5214],[77,5215,77,5222],[77,5223,77,5230],[77,5231,77,5238],[77,5239,77,5246],[77,5391,77,5398],[77,5399,77,5406],[77,5407,77,5414],[77,5415,77,5422],[77,5423,77,5430],[77,5431,77,5438],[77,5439,77,5446],[77,5447,77,5454],[77,5455,77,5462],[77,5319,77,5326],[77,5327,77,5334],[77,5335,77,5342],[77,5343,77,5350],[77,5351,77,5358],[77,5359,77,5366],[77,5367,77,5374],[77,5375,77,5382],[77,5383,77,5390],[77,5535,77,5542],[77,5543,77,5550],[77,5551,77,5558],[77,5559,77,5566],[77,5567,77,5574],[77,5575,77,5582],[77,5583,77,5590],[77,5591,77,5598],[77,5599,77,5606],[77,5463,77,5470],[77,5471,77,5478],[77,5479,77,5486],[77,5487,77,5494],[77,5495,77,5502],[77,5503,77,5510],[77,5511,77,5518],[77,5519,77,5526],[77,5527,77,5534],[77,5679,77,5686],[77,5687,77,5694],[77,5695,77,5702],[77,5703,77,5710],[77,5711,77,5718],[77,5719,77,5726],[77,5727,77,5734],[77,5735,77,5742],[77,5743,77,5750],[77,5607,77,5614],[77,5615,77,5622],[77,5623,77,5630],[77,5631,77,5638],[77,5639,77,5646],[77,5647,77,5654],[77,5655,77,5662],[77,5663,77,5670],[77,5671,77,5678],[77,5823,77,5830],[77,5831,77,5838],[77,5839,77,5846],[77,5847,77,5854],[77,5855,77,5862],[77,5863,77,5870],[77,5871,77,5878],[77,5879,77,5886],[77,5887,77,5894],[77,5751,77,5758],[77,5759,77,5766],[77,5767,77,5774],[77,5775,77,5782],[77,5783,77,5790],[77,5791,77,5798],[77,5799,77,5806],[77,5807,77,5814],[77,5815,77,5822],[77,5967,77,5974],[77,5975,77,5982],[77,5983,77,5990],[77,5991,77,5998],[77,5999,77,6006],[77,6007,77,6014],[77,6015,77,6022],[77,6023,77,6030],[77,6031,77,6038],[77,5895,77,5902],[77,5903,77,5910],[77,5911,77,5918],[77,5919,77,5926],[77,5927,77,5934],[77,5935,77,5942],[77,5943,77,5950],[77,5951,77,5958],[77,5959,77,5966],[77,6111,77,6118],[77,6119,77,6126],[77,6127,77,6134],[77,6135,77,6142],[77,6143,77,6150],[77,6151,77,6158],[77,6159,77,6166],[77,6167,77,6174],[77,6175,77,6182],[77,6039,77,6046],[77,6047,77,6054],[77,6055,77,6062],[77,6063,77,6070],[77,6071,77,6078],[77,6079,77,6086],[77,6087,77,6094],[77,6095,77,6102],[77,6103,77,6110],[77,6255,77,6262],[77,6263,77,6270],[77,6271,77,6278],[77,6279,77,6286],[77,6287,77,6294],[77,6295,77,6302],[77,6303,77,6310],[77,6311,77,6318],[77,6319,77,6326],[77,6183,77,6190],[77,6191,77,6198],[77,6199,77,6206],[77,6207,77,6214],[77,6215,77,6222],[77,6223,77,6230],[77,6231,77,6238],[77,6239,77,6246],[77,6247,77,6254],[77,6399,77,6406],[77,6407,77,6414],[77,6415,77,6422],[77,6423,77,6430],[77,6431,77,6438],[77,6439,77,6446],[77,6447,77,6454],[77,6455,77,6462],[77,6463,77,6470],[77,6327,77,6334],[77,6335,77,6342],[77,6343,77,6350],[77,6351,77,6358],[77,6359,77,6366],[77,6367,77,6374],[77,6375,77,6382],[77,6383,77,6390],[77,6391,77,6398],[77,6543,77,6550],[77,6551,77,6558],[77,6559,77,6566],[77,6567,77,6574],[77,6575,77,6582],[77,6583,77,6590],[77,6591,77,6598],[77,6599,77,6606],[77,6607,77,6614],[77,6471,77,6478],[77,6479,77,6486],[77,6487,77,6494],[77,6495,77,6502],[77,6503,77,6510],[77,6511,77,6518],[77,6519,77,6526],[77,6527,77,6534],[77,6535,77,6542],[77,6687,77,6694],[77,6695,77,6702],[77,6703,77,6710],[77,6711,77,6718],[77,6719,77,6726],[77,6727,77,6734],[77,6735,77,6742],[77,6743,77,6750],[77,6751,77,6758],[77,6615,77,6622],[77,6623,77,6630],[77,6631,77,6638],[77,6639,77,6646],[77,6647,77,6654],[77,6655,77,6662],[77,6663,77,6670],[77,6671,77,6678],[77,6679,77,6686],[77,6831,77,6838],[77,6839,77,6846],[77,6847,77,6854],[77,6855,77,6862],[77,6863,77,6870],[77,6871,77,6878],[77,6879,77,6886],[77,6887,77,6894],[77,6895,77,6902],[77,6759,77,6766],[77,6767,77,6774],[77,6775,77,6782],[77,6783,77,6790],[77,6791,77,6798],[77,6799,77,6806],[77,6807,77,6814],[77,6815,77,6822],[77,6823,77,6830],[77,6975,77,6982],[77,6983,77,6990],[77,6991,77,6998],[77,6999,77,7006],[77,7007,77,7014],[77,7015,77,7022],[77,7023,77,7030],[77,7031,77,7038],[77,7039,77,7046],[77,6903,77,6910],[77,6911,77,6918],[77,6919,77,6926],[77,6927,77,6934],[77,6935,77,6942],[77,6943,77,6950],[77,6951,77,6958],[77,6959,77,6966],[77,6967,77,6974],[77,7119,77,7126],[77,7127,77,7134],[77,7135,77,7142],[77,7143,77,7150],[77,7151,77,7158],[77,7159,77,7166],[77,7167,77,7174],[77,7175,77,7182],[77,7183,77,7190],[77,7047,77,7054],[77,7055,77,7062],[77,7063,77,7070],[77,7071,77,7078],[77,7079,77,7086],[77,7087,77,7094],[77,7095,77,7102],[77,7103,77,7110],[77,7111,77,7118],[77,7263,77,7270],[77,7271,77,7278],[77,7279,77,7286],[77,7287,77,7294],[77,7295,77,7302],[77,7303,77,7310],[77,7311,77,7318],[77,7319,77,7326],[77,7327,77,7334],[77,7191,77,7198],[77,7199,77,7206],[77,7207,77,7214],[77,7215,77,7222],[77,7223,77,7230],[77,7231,77,7238],[77,7239,77,7246],[77,7247,77,7254],[77,7255,77,7262],[77,7407,77,7414],[77,7415,77,7422],[77,7423,77,7430],[77,7431,77,7438],[77,7439,77,7446]],"merged_total":2130,"flags":["merged_cut"]}
[null,null,null,null,null,null,null,null,null,null,null,null,null,null,null,null,null,null,null,"Verze k odeslání klientovi","Verze zpracovat","Verze k odeslání do pojišťovny (skrýt nevyplněné informace)"]
[null,null,null,null,null,null,null,null,null,null,null,null,null,null,null,null,null,null,null,1,1,1]
[null,null,null,null,null,null,null,null,null,null,null,null,null,null,null,null,null,null,null,1,1,1]
[null,null,null,null,null,null,null,null,null,null,null,null,null,null,null,null,null,null,null,1,1,1]
[null,null,null,null,null,null,null,null,null,null,null,null,null,null,null,null,null,null,null,1,1,1]
[null,null,null,null,null,null,null,null,null,null,null,null,null,null,null,null,null,null,null,null,null,1]
["Pojištění přerušení provozu - informace o riziku, výpočet pojistné částky",null,null,null,null,null,null,null,null,null,null,null,null,null,null,null,null,null,null,1,1,1]
[null,null,null,null,null,null,null,null,null,null,null,null,null,null,null,null,null,null,null,null,null,1]
["Informace o pojišťovaném provozu",null,null,null,null,null,null,null,null,null,null,null,null,null,null,null,null,null,null,1,1,1]
[null,null,null,null,null,null,null,null,null,null,null,null,null,null,null,null,null,null,null,1,1,1]
["Pracovní doba od:",null,"do:",null,"Počet směn:",null,null,null,null,null,null,null,null,null,null,null,null,null,null,1,1,1]
[null,null,null,null,null,null,null,null,null,null,null,null,null,null,null,null,null,null,null,1,1,1]
[null,null,null,null,null,null,"Ano/ Ne",null,null,null,null,null,null,null,null,null,null,null,null,1,1,1]
["Jedná se o sezónní provoz nebo máte rozdílné příjmy v různých částech roku?",null,null,null,null,null,null,null,null,"POZOR, sezónnost provozu je nutné zohlednit při výpočtu pojistné částky.",null,null,null,null,null,null,null,null,null,1,1,1]
["Existují suroviny/ díly apod., u kterých byste v případě výpadku dodávek obtížně hledali alternativního dodavatele?",null,null,null,null,null,null,null,null,"POZOR na připojištění dodavatelů.",null,null,null,null,null,null,null,null,null,1,1,1]
["Existují odběratelé, jejichž ztrátu lze jen obtížně nahradit jinými? ",null,null,null,null,null,null,null,null,"POZOR na připojištění odběratelů.",null,null,null,null,null,null,null,null,null,1,1,1]
["Může se stát, že areál firmy bude nedostupný v souvislosti s živelní událostí? ",null,null,null,null,null,null,null,null,null,null,null,null,null,null,null,null,null,null,1,1,1]
["Hrozí vám sankce ze strany odběratelů či dodavatelů v případě přerušení provozu? ",null,null,null,null,null,null,null,null,null,null,null,null,null,null,null,null,null,null,1,1,1]
["Existuje možnost, jak zabezpečit náhradní provoz do obnovení dodávky v případě výpadku dodávky energií či médií?",null,null,null,null,null,null,null,null,null,null,null,null,null,null,null,null,null,null,1,1,1]
["Uveďte stupeň závislosti výrobního procesu na IT technologií (nízká/ střední/ vysoká):",null,null,null,null,null,null,null,null,null,null,null,null,null,null,null,null,null,null,1,1,1]
["Kolik měsíců bude potřeba na obnovu provozu, pokud by došlo k úplnému zničení provozu? ",null,null,null,null,null,null,null,null,null,null,null,null,null,null,null,null,null,null,1,1,1]
["Jaké vícenáklady či zvýšené provozní náklady očekáváte v souvislosti se vznikem přerušení provozu? \n(Např. nájem za provizorní provozovny; náklady na úklid a úpravy provizorních provozoven; nájem za provizorní stroje a zařízení; náklady na dopravu zařízení včetně nákladů na přemístění zařízení do provizorních provozoven; zvýšené náklady na zásobování energiemi; příplatky za přesčasové práce při náhradní činnosti; zvýšené pojistné za provizorní provozovny; zvýšené náklady na ostrahu a vrátné; ostatní náklady vzniklé v souvislosti s nájmem provizorních provozoven, tj. zvýšené náklady na reklamu, telefony, správní poplatky apod.)",null,null,null,null,null,null,null,null,null,null,null,null,null,null,null,null,null,null,1,1,1]
[null,null,null,null,null,null,null,null,null,null,null,null,null,null,null,null,null,null,null,1,1]
["Závislost na dodavatelích a odběratelích",null,null,null,null,null,null,null,null,null,null,null,null,null,null,null,null,null,null,1,1,{"$f":"IF(V26=\"SKRÝT\",\"SKRÝT\",1)","v":"SKRÝT"}]
["Uveďte prosím dodavatele a odběratele, jejichž výpadek by měl vliv na celkový obrat 10 % nebo více."]
["Surovina/ výrobek",null,null,"Jméno dodavatele/ odběratele",null,null,"Dodací lhůta ve dnech","Podíl na celkovém obratu v %",null,null,null,null,null,null,null,null,null,null,null,1,1,{"$f":"IF(AND(V27=\"SKRÝT\",V28=\"SKRÝT\",V29=\"SKRÝT\",V30=\"SKRÝT\",V31=\"SKRÝT\"),\"SKRÝT\",1)","v":"SKRÝT"}]
[null,null,null,null,null,null,null,null,null,null,null,null,null,null,null,{"$f":"IF(ISBLANK(A27),\"SKRÝT\",1)","v":"SKRÝT"},{"$f":"IF(ISBLANK(D27),\"SKRÝT\",1)","v":"SKRÝT"},{"$f":"IF(ISBLANK(G27),\"SKRÝT\",1)","v":"SKRÝT"},"SKRÝT",1,1,{"$f":"IF(AND(P27=\"SKRÝT\",Q27=\"SKRÝT\",R27=\"SKRÝT\",S27=\"SKRÝT\"),\"SKRÝT\",1)","v":"SKRÝT"}]
[null,null,null,null,null,null,null,null,null,null,null,null,null,null,null,{"$f":"IF(ISBLANK(A28),\"SKRÝT\",1)","v":"SKRÝT"},{"$f":"IF(ISBLANK(D28),\"SKRÝT\",1)","v":"SKRÝT"},"SKRÝT","SKRÝT",1,1,{"$f":"IF(AND(P28=\"SKRÝT\",Q28=\"SKRÝT\",R28=\"SKRÝT\",S28=\"SKRÝT\"),\"SKRÝT\",1)","v":"SKRÝT"}]
[null,null,null,null,null,null,null,null,null,null,null,null,null,null,null,{"$f":"IF(ISBLANK(A29),\"SKRÝT\",1)","v":"SKRÝT"},{"$f":"IF(ISBLANK(D29),\"SKRÝT\",1)","v":"SKRÝT"},"SKRÝT","SKRÝT",1,1,{"$f":"IF(AND(P29=\"SKRÝT\",Q29=\"SKRÝT\",R29=\"SKRÝT\",S29=\"SKRÝT\"),\"SKRÝT\",1)","v":"SKRÝT"}]
[null,null,null,null,null,null,null,null,null,null,null,null,null,null,null,{"$f":"IF(ISBLANK(A30),\"SKRÝT\",1)","v":"SKRÝT"},{"$f":"IF(ISBLANK(D30),\"SKRÝT\",1)","v":"SKRÝT"},"SKRÝT","SKRÝT",1,1,{"$f":"IF(AND(P30=\"SKRÝT\",Q30=\"SKRÝT\",R30=\"SKRÝT\",S30=\"SKRÝT\"),\"SKRÝT\",1)","v":"SKRÝT"}]
[null,null,null,null,null,null,null,null,null,null,null,null,null,null,null,{"$f":"IF(ISBLANK(A31),\"SKRÝT\",1)","v":"SKRÝT"},{"$f":"IF(ISBLANK(D31),\"SKRÝT\",1)","v":"SKRÝT"},"SKRÝT","SKRÝT",1,1,{"$f":"IF(AND(P31=\"SKRÝT\",Q31=\"SKRÝT\",R31=\"SKRÝT\",S31=\"SKRÝT\"),\"SKRÝT\",1)","v":"SKRÝT"}]
[null,null,null,null,null,null,null,null,null,null,null,null,null,null,null,null,null,null,null,1,1,1]
["Klíčové stroje a technologie",null,null,null,null,null,null,null,null,null,null,null,null,null,null,null,null,null,null,1,1,{"$f":"IF(V34=\"SKRÝT\",\"SKRÝT\",1)","v":"SKRÝT"}]
["Uveďte prosím jednotlivé stroje nebo soubory zařízení, jejichž poškození by mělo za následek snížení celkového obratu o 10 % a více.",null,null,null,null,null,null,null,null,null,null,null,null,null,null,null,null,null,null,1,1,{"$f":"IF(V35=\"SKRÝT\",\"SKRÝT\",1)","v":"SKRÝT"}]
["Název zařízení",null,null,"Popis postupu znovupořízení (oprava, náhrada…)",null,null,"Odhad času potřebného k znovupořízení při úplném zničení zařízení","Vliv na celkový obrat %",null,null,null,null,null,null,null,null,null,null,null,1,1,{"$f":"IF(AND(V36=\"SKRÝT\",V37=\"SKRÝT\",V38=\"SKRÝT\",V39=\"SKRÝT\",V40=\"SKRÝT\"),\"SKRÝT\",1)","v":"SKRÝT"}]
[null,null,null,null,null,null,null,null,null,null,null,null,null,null,null,{"$f":"IF(ISBLANK(A36),\"SKRÝT\",1)","v":"SKRÝT"},{"$f":"IF(ISBLANK(D36),\"SKRÝT\",1)","v":"SKRÝT"},{"$f":"IF(ISBLANK(G36),\"SKRÝT\",1)","v":"SKRÝT"},"SKRÝT",1,1,{"$f":"IF(AND(P36=\"SKRÝT\",Q36=\"SKRÝT\",R36=\"SKRÝT\",S36=\"SKRÝT\"),\"SKRÝT\",1)","v":"SKRÝT"}]
[null,null,null,null,null,null,null,null,null,null,null,null,null,null,null,{"$f":"IF(ISBLANK(A37),\"SKRÝT\",1)","v":"SKRÝT"},{"$f":"IF(ISBLANK(D37),\"SKRÝT\",1)","v":"SKRÝT"},"SKRÝT","SKRÝT",1,1,{"$f":"IF(AND(P37=\"SKRÝT\",Q37=\"SKRÝT\",R37=\"SKRÝT\",S37=\"SKRÝT\"),\"SKRÝT\",1)","v":"SKRÝT"}]
[null,null,null,null,null,null,null,null,null,null,null,null,null,null,null,{"$f":"IF(ISBLANK(A38),\"SKRÝT\",1)","v":"SKRÝT"},{"$f":"IF(ISBLANK(D38),\"SKRÝT\",1)","v":"SKRÝT"},"SKRÝT","SKRÝT",1,1,{"$f":"IF(AND(P38=\"SKRÝT\",Q38=\"SKRÝT\",R38=\"SKRÝT\",S38=\"SKRÝT\"),\"SKRÝT\",1)","v":"SKRÝT"}]
[null,null,null,null,null,null,null,null,null,null,null,null,null,null,null,{"$f":"IF(ISBLANK(A39),\"SKRÝT\",1)","v":"SKRÝT"},{"$f":"IF(ISBLANK(D39),\"SKRÝT\",1)","v":"SKRÝT"},"SKRÝT","SKRÝT",1,1,{"$f":"IF(AND(P39=\"SKRÝT\",Q39=\"SKRÝT\",R39=\"SKRÝT\",S39=\"SKRÝT\"),\"SKRÝT\",1)","v":"SKRÝT"}]
[null,null,null,null,null,null,null,null,null,null,null,null,null,null,null,{"$f":"IF(ISBLANK(A40),\"SKRÝT\",1)","v":"SKRÝT"},{"$f":"IF(ISBLANK(D40),\"SKRÝT\",1)","v":"SKRÝT"},"SKRÝT","SKRÝT",1,1,{"$f":"IF(AND(P40=\"SKRÝT\",Q40=\"SKRÝT\",R40=\"SKRÝT\",S40=\"SKRÝT\"),\"SKRÝT\",1)","v":"SKRÝT"}]
[null,null,null,null,null,null,null,null,null,null,null,null,null,null,null,null,null,null,null,1,1,1]
["Výpočet pojistné částky pro přerušení provozu",null,null,null,null,null,null,null,null,null,null,null,null,null,null,null,null,null,null,1,1,1]
[null,null,null,null,null,null,null,null,null,null,null,null,null,null,null,null,null,null,null,1,1,{"$f":"IF(AND(P43=\"SKRÝT\",Q43=\"SKRÝT\",R43=\"SKRÝT\",S43=\"SKRÝT\"),\"SKRÝT\",1)","v":1}]
["Počátek pojistného období:",null,null,"Konec pojistného období:",null,null,null,null,null,null,null,null,null,null,null,null,null,null,null,1,1,1]
[null,null,null,null,null,null,null,null,null,null,null,null,null,null,null,null,null,null,null,1,1,1]
["Výpočet ušlého zisku a stálých nákladů                                                                                                                         ",null,null,null,null,null,null,null,null,null,null,null,null,null,null,null,null,null,null,1,1,1]
["Princip výpočtu pojistné částky spočívá v tom, že od ročního dosaženého obratu (tržeb netto) budou odečteny všechny náklady, které v době přerušení provozu evidentně nenabíhají (tzn. variabilní náklady).",null,null,null,null,null,null,null,null,null,null,null,null,null,null,null,null,null,null,1,1,1]
["Struktura výpočtu je založena na Výkazu zisků a ztrát. Při vyplňování údajů doporučujeme co nejvíce vycházet z obchodních plánů, protože účetní výkazy nereflektují očekávaný vývoj.",null,null,null,null,null,null,null,null,null,null,null,null,null,null,null,null,null,null,1,1,1]
["Označení/ řádek ve Výkazu zisků \na ztrát","Položka",null,null,null,null,"Hodnoty jsou uvedeny v jednotkách/ v tisících/ v miliónech:",null,null,null,null,null,null,null,null,null,null,null,null,1,1,1]
["I.      01","Tržby z prodeje výrobků a služeb \n(Zahrnují tržby z prodeje výrobků, zboží a služeb z vlastní provozní činnosti podniku, a to po odečtení snížení výnosů (např. o slevy), daně z přidané hodnoty a spotřební daně (nemají vliv na hospodářský výsledek). Výpočet je stejný jako u Výkazu zisků a ztrát, řádku 01.)",null,null,null,null,null,null,null,null,null,null,null,null,null,null,null,null,null,1,1,1]
["II.     02","Tržby za prodej zboží \n(Výpočet je stejný jako u Výkazu zisků a ztrát, řádku 02.)",null,null,null,null,null,null,null,null,null,null,null,null,null,null,null,null,null,1,1,1]
["A.1  04","Náklady vynaložené na prodané zboží \n(Výpočet je stejný jako u Výkazu zisků a ztrát, řádku 04.)",null,null,null,null,null,null,null,null,null,null,null,null,null,null,null,null,null,1,1,1]
["A.2  05","Spotřeba materiálu a energie\n(Výpočet je stejný jako u Výkazu zisků a ztrát, řádku 05.)",null,null,null,null,null,null,null,null,null,null,null,null,null,null,null,null,null,1,1,1]
[null,"z toho podíl fixních nákladů  \n(Není součástí Výkazu zisku a ztrát, hodnotu určí klient. Jedná se o náklady, které je nezbytně nutné hradit i v případě přerušení provozu - např. platba za rezervovanou kapacitu.)",null,null,null,null,null,null,null,null,null,null,null,null,null,null,null,null,null,1,1,1]
["A.3  06","Služby\n(Výpočet je stejný jako u Výkazu zisků a ztrát, řádku 06.)",null,"Pro výpočet fixních nákladů chci použit pomocnou tabulku",null,null,null,null,null,null,null,null,null,null,null,null,null,null,null,1,1,1]
[null," z toho podíl fixních nákladů\n(Není součástí Výkazu zisku a ztrát, hodnotu určí klient. Jedná se o náklady, které je nezbytně nutné hradit i v případě přerušení provozu - např. ostraha, auditorské služby.)",null,null,null,null,null,null,null,null,null,null,null,null,null,null,null,null,null,1,1,1]
["B.     07","Změna stavu zásob vlastní činností (+/-)\n(Uvádí se včetně znaménka. Výpočet je stejný jako u Výkazu zisků a ztrát, řádku 07.)",null,null,null,null,null,null,null,null,null,null,null,null,null,null,null,null,null,1,1,1]
["C.     08","Aktivace (-)\n(Uvádí se včetně znaménka. Výpočet je stejný jako u Výkazu zisků a ztrát, řádku 08.)",null,null,null,null,null,null,null,null,null,null,null,null,null,null,null,null,null,1,1,1]
["D.     09","Osobní náklady\n(Výpočet je stejný jako u Výkazu zisků a ztrát, řádku 09.)",null,null,null,null,null,null,null,null,null,null,null,null,null,null,null,null,null,1,1,1]
["-"," z toho podíl fixních nákladů\n(Není součástí Výkazů zisků a ztrát. Minimální výši náhrady mzdy upravuje zákoník práce. Výše náhrady může být upravena vnitropodnikovou směrnicí nebo kolektivní smlouvou. Doporučujeme počítat s náhradou ve výši 100% a tím omezit riziko uplatnění podpojištění ze strany pojistitele.\nDle §207 Zákoníku práce je stanovena minimální náhrada ve výši 60% průměrného výdělku v případě živelní události a 80% průměrného výdělku v případě poruchy, kterou zaměstnanec nezavinil.)",null,null,null,null,null,{"$f":"G59","v":0},null,null,null,null,null,null,null,null,null,null,null,1,1,1]
["E.     14","Úpravy hodnot v provozní oblasti\n(Výpočet je stejný jako u Výkazu zisků a ztrát, řádku 14.)",null,null,null,null,null,null,null,null,null,null,null,null,null,null,null,null,null,1,1,1]
[16,"z toho trvalé\n(Odpisy. Výpočet je stejný jako u Výkazu zisků a ztrát, řádku 16.)",null,null,null,null,null,null,null,null,null,null,null,null,null,null,null,null,null,1,1,1]
["III.     20","Ostatní provozní výnosy \n(Zahrnuje část výnosů uvedených ve Výkazu zisků a ztrát na řádku č. 20. Zisky, které nesouvisí s provozem např. z finančních operací, obchodů s nemovitostmi, spekulativními obchody apod. nezapočítávejte)",null,null,null,null,null,null,null,null,null,null,null,null,null,null,null,null,null,1,1,1]
["F.      24","Ostatní provozní náklady\n(Výpočet je stejný jako u Výkazu zisků a ztrát, řádku 24.)",null,null,null,null,null,null,null,null,null,null,null,null,null,null,null,null,null,1,1,1]
["-"," z toho podíl fixních nákladů\n(Není součástí Výkazů zisků a ztrát, hodnotu určí klient. Jedná se o náklady, které je nezbytně nutné hradit i v případě přerušení provozu - např. pojistné. Náklady, které nesouvisí s provozem (např. z finanční operace, obchody s nemovitostmi, spekulativní obchody) nezapočítávejte.)",null,null,null,null,null,null,null,null,null,null,null,null,null,null,null,null,null,1,1,1]
["Souhrny",null,null,null,null,null,{"$f":"SUM(G50:G65)","v":0},{"$f":"SUM(H50:H65)","v":0},null,null,null,null,null,null,null,null,null,null,null,1,1,1]
["Základ pro výpočet pojistné částky pro zisk a stálé náklady:",null,null,null,null,null,null,{"$f":"(H66-G66)","v":0},null,null,null,null,null,null,null,{"$f":"IF(H49=\"V jednotkách\",(H66-G66),IF(H49=\"V tisících\",(H66-G66)*1000,IF(H49=\"V miliónech\",(H66-G66)*1000000,H66-G66)))","v":0},{"$f":"IF(H49=List_seznamy_bunky!C17,H67=(G66-H66)*1000)","v":false},null,null,1,1,1]
["Předpokládaný meziroční nárůst (+)/ pokles (-)\n(%, uvádí se včetně znaménka)",null,null,null,null,null,null,null,null,null,null,null,null,null,null,null,null,null,null,1,1,1]
["Komentář k předpokládanému meziročnímu nárůstu/ poklesu",null,null,null,null,null,null,null,null,null,null,null,null,null,null,null,null,null,null,1,1,1]
[null,null,null,null,null,null,null,null,null,null,null,null,null,null,null,null,null,null,null,1,1,1]
["Návrh roční pojistné částky pro ušlý zisk a stálé náklady (bez zohlednění sezónnosti provozu)",null,null,null,null,null,null,{"$f":"P67*(1+H68)","v":0},null,null,null,null,null,null,null,null,null,null,null,1,1,1]
["Požadovaná doba ručení (měsíců)\n(Zvolená doba by měla odpovídat času potřebnému na obnovu provozu v případě totální škody. Je potřeba zohlednit všechny faktory, které mají vliv na rychlost obnovy provozu (vč. např. vyřízení stavebního povolení). Například pokud využíváte technologii, která je vyráběna na zakázku, je potřeba zohlednit dobu, kterou bude dodavatel potřebovat na výrobu, dopravu a zprovoznění této technologie. Podle našich zkušeností není v těchto případech výjimkou, že obnova trvá i víc než 12 měsíců.)",null,null,null,null,null,null,{"$f":"F21","v":0},null,null,null,null,null,null,null,null,null,null,null,1,1,1]
["Návrh pojistné částky pro ušlý zisk a stálé náklady za požadovanou dobu ručení (bez zohlednění sezónnosti)",null,null,null,null,null,null,{"$f":"(H71/12)*H72","v":0},null,null,null,null,null,null,null,null,null,null,null,1,1,1]
["Při stanovení výše pojistné částky prosím zohledněte sezónní vlivy.",null,null,null,null,null,null,null,null,null,null,null,null,null,null,null,null,null,null,1,1,"SKRÝT"]
["Výše pojistné částky pro ušlý zisk a stálé náklady za požadovanou dobu ručení po zohlednění sezónnosti",null,null,null,null,null,null,null,null,null,null,null,null,null,null,null,null,null,null,1,1,1]
[null,null,null,null,null,null,null,null,null,null,null,null,null,null,null,null,null,null,null,1,1,1]
["Výpočet vícenákladů na zamezení poklesu obratu nad rámec stanovené pojistné částky",null,null,null,null,null,null,null,null,null,null,null,null,null,null,null,null,null,null,1,1,{"$f":"IF(V79=\"SKRÝT\",\"SKRÝT\",1)","v":"SKRÝT"}]
["Ve vypočtené pojistné částce je zahrnuto pojištění zvýšených provozních nákladů, které v případě škodní události slouží ke zmírnění poklesu obratu. Pokud by ke zmírnění nebo odstranění následků pojistné události bylo zapotřebí vynaložení vícenákladů nad rámec výše stanovené pojistné částky, prosíme uveďte tyto vícenáklady níže.",null,null,null,null,null,null,null,null,null,null,null,null,null,null,null,null,null,null,1,1,"SKRÝT"]
["Název položky",null,null,null,null,null,"Předpokládaná výše vícenákladů za požadovanou dobu ručení",null,null,null,null,null,null,null,null,null,null,null,null,1,1,{"$f":"IF(AND(V80=\"SKRÝT\",V81=\"SKRÝT\",V82=\"SKRÝT\",V83=\"SKRÝT\",V84=\"SKRÝT\",V85=\"SKRÝT\"),\"SKRÝT\",1)","v":"SKRÝT"}]
[null,null,null,null,null,null,null,null,null,null,null,null,null,null,null,{"$f":"IF(ISBLANK(A80),\"SKRÝT\",1)","v":"SKRÝT"},null,{"$f":"IF(ISBLANK(G80),\"SKRÝT\",1)","v":"SKRÝT"},null,1,1,{"$f":"IF(AND(P80=\"SKRÝT\",R80=\"SKRÝT\"),\"SKRÝT\",1)","v":"SKRÝT"}]
[null,null,null,null,null,null,null,null,null,null,null,null,null,null,null,{"$f":"IF(ISBLANK(A81),\"SKRÝT\",1)","v":"SKRÝT"},null,{"$f":"IF(ISBLANK(G81),\"SKRÝT\",1)","v":"SKRÝT"},null,1,1,{"$f":"IF(AND(P81=\"SKRÝT\",R81=\"SKRÝT\"),\"SKRÝT\",1)","v":"SKRÝT"}]
[null,null,null,null,null,null,null,null,null,null,null,null,null,null,null,{"$f":"IF(ISBLANK(A82),\"SKRÝT\",1)","v":"SKRÝT"},null,{"$f":"IF(ISBLANK(G82),\"SKRÝT\",1)","v":"SKRÝT"},null,1,1,{"$f":"IF(AND(P82=\"SKRÝT\",R82=\"SKRÝT\"),\"SKRÝT\",1)","v":"SKRÝT"}]
[null,null,null,null,null,null,null,null,null,null,null,null,null,null,null,{"$f":"IF(ISBLANK(A83),\"SKRÝT\",1)","v":"SKRÝT"},null,{"$f":"IF(ISBLANK(G83),\"SKRÝT\",1)","v":"SKRÝT"},null,1,1,{"$f":"IF(AND(P83=\"SKRÝT\",R83=\"SKRÝT\"),\"SKRÝT\",1)","v":"SKRÝT"}]
[null,null,null,null,null,null,null,null,null,null,null,null,null,null,null,{"$f":"IF(ISBLANK(A84),\"SKRÝT\",1)","v":"SKRÝT"},null,{"$f":"IF(ISBLANK(G84),\"SKRÝT\",1)","v":"SKRÝT"},null,1,1,{"$f":"IF(AND(P84=\"SKRÝT\",R84=\"SKRÝT\"),\"SKRÝT\",1)","v":"SKRÝT"}]
["Návrh limitu plnění pro vícenáklady za požadovanou dobu ručení",null,null,null,null,null,{"$f":"SUM(G80:H84)","v":0},null,null,null,null,null,null,null,null,null,null,null,null,1,1,{"$f":"IF(G85=0,\"SKRÝT\",1)","v":"SKRÝT"}]
[null,null,null,null,null,null,null,null,null,null,null,null,null,null,null,null,null,null,null,1,1,1]

{"sheet":"Preruseni_pomocny_vypocet","index":9,"n_rows":30,"n_cols":22,"rows_kept":30,"cut":false,"hidden":true,"merged":[[6,0,6,7],[8,0,8,7],[9,0,9,7],[11,4,11,5],[10,4,10,7],[11,6,11,7],[10,0,11,1],[10,2,11,3],[17,6,17,7],[12,4,12,5],[13,4,13,5],[14,4,14,5],[15,4,15,5],[16,4,16,5],[17,4,17,5],[12,6,12,7],[13,6,13,7],[14,6,14,7],[15,6,15,7],[16,6,16,7],[16,2,16,3],[17,2,17,3],[12,0,12,1],[13,0,13,1],[14,0,14,1],[15,0,15,1],[16,0,16,1],[17,0,17,1],[12,2,12,3],[13,2,13,3],[14,2,14,3],[15,2,15,3],[29,6,29,7],[29,0,29,5],[27,2,27,3],[18,4,27,7],[28,0,28,1],[28,4,28,5],[28,6,28,7],[27,0,27,1],[18,0,18,1],[19,0,19,1],[20,0,20,1],[21,0,21,1],[28,2,28,3],[18,2,18,3],[26,2,26,3],[21,2,21,3],[25,0,25,1],[26,0,26,1],[19,2,19,3],[20,2,20,3],[22,0,22,1],[23,0,23,1],[24,0,24,1],[24,2,24,3],[25,2,25,3],[22,2,22,3],[23,2,23,3]]}
[null,null,null,null,null,null,null,null,null,null,null,null,null,null,null,null,null,null,null,"Verze Klient","Verze zpracovat","Verze odeslat do pojišťovny (skrýt nevyplněné informace)"]
[null,null,null,null,null,null,null,null,null,null,null,null,null,null,null,null,null,null,null,1,1,1]
[null,null,null,null,null,null,null,null,null,null,null,null,null,null,null,null,null,null,null,1,1,1]
[null,null,null,null,null,null,null,null,null,null,null,null,null,null,null,null,null,null,null,1,1,1]
[null,null,null,null,null,null,null,null,null,null,null,null,null,null,null,null,null,null,null,1,1,1]
[null,null,null,null,null,null,null,null,null,null,null,null,null,null,null,null,null,null,null,1,1,1]
["Pojištění přerušení provozu - Pomocný výpočet - služby spotřebovávané v době přerušení provozu",null,null,null,null,null,null,null,null,null,null,null,null,null,null,null,null,null,null,1,1,1]
[null,null,null,null,null,null,null,null,null,null,null,null,null,null,null,null,null,null,null,1,1,1]
["Níže uvedená tabulka Vám může posloužit k výpočtu hodnoty Služeb spotřebovávaných i v době přerušení provozu.",null,null,null,null,null,null,null,null,null,null,null,null,null,null,null,null,null,null,1,1,"SKRÝT"]
["Uvedená struktura je čistě orientační a jako takovou jí nelze použít pro všechny typy společností. Tabulku můžete upravit dle specifik Vašeho podnikání.",null,null,null,null,null,null,null,null,null,null,null,null,null,null,null,null,null,null,1,1,"SKRÝT"]
["Detailní rozklad položky Služby",null,"Hodnota služeb spotřebovávaná při plánované provozu",null,"Hodnota služeb spotřebovávaná při zastavení/ omezení provozu ",null,null,null,null,null,null,null,null,null,null,null,null,null,null,1,1,1]
[null,null,null,null,"Kolik \"Služeb\" je spotřebováno při přerušení (v %)?",null,"Výpočet",null,null,null,null,null,null,null,null,null,null,null,null,1,1,1]
["Údržba celkem",null,null,null,null,null,{"$f":"B13*E13","v":0},null,null,null,null,null,null,null,null,null,null,null,null,1,1,1]
["Náklady na ekologii + stočné",null,null,null,null,null,0,null,null,null,null,null,null,null,null,null,null,null,null,1,1,1]
["Náklady na dopravu",null,null,null,null,null,0,null,null,null,null,null,null,null,null,null,null,null,null,1,1,1]
["Náklady na obchod a PR",null,null,null,null,null,0,null,null,null,null,null,null,null,null,null,null,null,null,1,1,1]
["Leasing a nájmy",null,null,null,null,null,0,null,null,null,null,null,null,null,null,null,null,null,null,1,1,1]
["Další služby (celkem)",null,{"$f":"SUM(C19:D28)","v":0},null,null,null,0,null,null,null,null,null,null,null,null,null,null,null,null,1,1,1]
["- ostraha",null,null,null,null,null,null,null,null,null,null,null,null,null,null,null,null,null,null,1,1,1]
["- IT a výzkum",null,null,null,null,null,null,null,null,null,null,null,null,null,null,null,null,null,null,1,1,1]
["- audit a poradenství",null,null,null,null,null,null,null,null,null,null,null,null,null,null,null,null,null,null,1,1,1]
["- přepracování polotovarů",null,null,null,null,null,null,null,null,null,null,null,null,null,null,null,null,null,null,1,1,1]
["- pojištění",null,null,null,null,null,null,null,null,null,null,null,null,null,null,null,null,null,null,1,1,1]
["- telekomunikace a spoje",null,null,null,null,null,null,null,null,null,null,null,null,null,null,null,null,null,null,1,1,1]
["- stravování",null,null,null,null,null,null,null,null,null,null,null,null,null,null,null,null,null,null,1,1,1]
["- vzdělávání",null,null,null,null,null,null,null,null,null,null,null,null,null,null,null,null,null,null,1,1,1]
["- služby spojené s obchodem",null,null,null,null,null,null,null,null,null,null,null,null,null,null,null,null,null,null,1,1,1]
["- ostatní",null,null,null,null,null,null,null,null,null,null,null,null,null,null,null,null,null,null,1,1,1]
["Náklady doprava vlastní výroba",null,null,null,null,null,{"$f":"B29*E29","v":0},null,null,null,null,null,null,null,null,null,null,null,null,1,1,1]
["Celkem",null,null,null,null,null,{"$f":"SUM(G13:H18,G29)","v":0},null,null,null,null,null,null,null,null,null,null,null,null,1,1,1]

{"sheet":"Preruseni_provozu_zivel","index":10,"n_rows":92,"n_cols":22,"rows_kept":92,"cut":false,"hidden":true,"merged":[[36,1,36,7],[37,1,37,7],[12,4,12,5],[12,6,12,7],[15,4,15,5],[15,6,15,7],[14,4,14,5],[14,6,14,7],[34,1,34,7],[35,0,35,7],[14,0,14,3],[18,0,18,3],[19,0,19,3],[21,0,21,3],[15,0,15,3],[16,0,16,3],[6,0,6,7],[8,0,8,7],[13,0,13,3],[13,4,13,5],[13,6,13,7],[11,0,11,7],[10,0,10,7],[9,0,9,2],[16,4,16,5],[16,6,16,7],[28,0,28,3],[20,0,20,3],[33,0,33,1],[33,2,33,3],[32,0,32,3],[22,0,22,3],[23,0,23,3],[24,0,24,3],[25,0,25,3],[26,0,26,3],[31,0,31,3],[29,0,29,3],[30,0,30,3]]}
[null,null,null,null,null,null,null,null,null,null,null,null,null,null,null,null,null,null,null,"Verze k odeslání klientovi","Verze zpracovat","Verze k odeslání do pojišťovny (skrýt nevyplněné informace)"]
[null,null,null,null,null,null,null,null,null,null,null,null,null,null,null,null,null,null,null,1,1,1]
[null,null,null,null,null,null,null,null,null,null,null,null,null,null,null,null,null,null,null,1,1,1]
[null,null,null,null,null,null,null,null,null,null,null,null,null,null,null,null,null,null,null,1,1,1]
[null,null,null,null,null,null,null,null,null,null,null,null,null,null,null,null,null,null,null,1,1,1]
[null,null,null,null,null,null,null,null,null,null,null,null,null,null,null,null,null,null,null,null,null,1]
["Pojištění živelního přerušení provozu",null,null,null,null,null,null,null,null,null,null,null,null,null,null,null,null,null,null,1,1,1]
[null,null,null,null,null,null,null,null,null,null,null,null,null,null,null,null,null,null,null,null,null,1]
["Pojistná částka",null,null,null,null,null,null,null,null,null,null,null,null,null,null,null,null,null,null,1,1,1]
["Roční pojistná částka (bez zohlednění sezónnosti):",null,null,{"$f":"Preruseni_provozu_info_PC!H71","v":0},null,null,null,null,null,"POZOR, v této pojistné částce není zohledněna sezónnost provozu.",null,null,null,null,null,null,null,null,null,1,1,1]
[null,null,null,null,null,null,null,null,null,null,null,null,null,null,null,null,null,null,null,1,1,1]
["Živelní přerušení provozu"]
[null,null,null,null,"Varianta  I.",null,"Varianta  II.",null,null,"Automaticky se vyplní požadovaná doba ručení z Výpočtu pojistné částky pro přerušení provozu. Hodnotu lze měnit.",null,null,null,null,null,null,null,null,null,1,1,1]
["Doba ručení (v měsících)",null,null,null,null,null,null,null,null,"Automaticky se vyplní požadovaná doba ručení z Výpočtu pojistné částky pro přerušení provozu. Hodnotu lze měnit.",null,null,null,null,null,null,null,null,null,1,1,1]
["Pojistná částka za dobu ručení",null,null,null,{"$f":"Preruseni_provozu_info_PC!H75","v":0},null,null,null,null,null,null,null,null,null,null,null,null,null,null,1,1,1]
["Pojištěná nebezpečí",null,null,null,null,null,null,null,null,null,null,null,null,null,null,null,null,null,null,1,1,1]
["Uvedené limity jsou samostatné/ kombinované:",null,null,null,null,null,null,null,null,"Doporučujeme požadovat samostatné limity.",null,null,null,null,null,null,null,null,null,1,1,1]
[null,null,null,null,"Limit plnění","Spoluúčast  (dny/ Kč)","Limit plnění","Spoluúčast  (dny/ Kč)",null,null,null,null,null,null,null,null,null,null,null,1,1,1]
["FLEXA (požár, výbuch, úder blesku, pád letadla nebo jeho částí)",null,null,null,"bez limitu",null,"bez limitu",null,null,null,null,null,null,null,null,{"$f":"IF(ISBLANK(E19),\"SKRÝT\",1)","v":1},"SKRÝT",1,"SKRÝT",1,1,{"$f":"IF(AND(P19=\"SKRÝT\",Q19=\"SKRÝT\",R19=\"SKRÝT\",S19=\"SKRÝT\"),\"SKRÝT\",1)","v":1}]
["Povodeň nebo záplava, zemětřesení, zřícení lavin",null,null,null,null,{"$f":"F19","v":0},null,{"$f":"H19","v":0},null,null,null,null,null,null,null,"SKRÝT",1,"SKRÝT",1,1,1,1]
["Vichřice, krupobití; sesuv půdy, zřícení skal nebo zemin; tíha sněhu, námrazy; pád stromů, stožárů nebo jiných předmětů ",null,null,null,null,null,null,null,null,null,null,null,null,null,null,{"$f":"IF(ISBLANK(E21),\"SKRÝT\",1)","v":"SKRÝT"},{"$f":"IF(ISBLANK(F21),\"SKRÝT\",1)","v":"SKRÝT"},{"$f":"IF(ISBLANK(G21),\"SKRÝT\",1)","v":"SKRÝT"},{"$f":"IF(ISBLANK(H21),\"SKRÝT\",1)","v":"SKRÝT"},1,1,"SKRÝT"]
["Vodovodní škody, vč. úniku vody z vnitřních okapových svodů, odpadního potrubí a kanalizace",null,null,null,null,null,null,null,null,null,null,null,null,null,null,"SKRÝT","SKRÝT","SKRÝT","SKRÝT",1,1,"SKRÝT"]
["Náraz dopravního prostředku; aerodynamický třesk; kouř",null,null,null,null,null,null,null,null,"V případě, že požadujete All risk, doporučujeme neuvádět zvláštní limit ani spoluúčast.  Doporučujeme uvést např.: \"viz Ostatní\".",null,null,null,null,null,"SKRÝT","SKRÝT","SKRÝT","SKRÝT",1,1,"SKRÝT"]
["Atmosférické srážky",null,null,null,null,null,null,null,null,"V případě, že požadujete All risk, doporučujeme neuvádět zvláštní limit ani spoluúčast.  Doporučujeme uvést např.: \"viz Ostatní\".",null,null,null,null,null,"SKRÝT","SKRÝT","SKRÝT","SKRÝT",1,1,"SKRÝT"]
["Nepřímý úder blesku",null,null,null,null,null,null,null,null,"V případě, že požadujete All risk, doporučujeme neuvádět zvláštní limit ani spoluúčast.  Doporučujeme uvést např.: \"viz Ostatní\".",null,null,null,null,null,"SKRÝT","SKRÝT","SKRÝT","SKRÝT",1,1,{"$f":"IF(AND(P25=\"SKRÝT\",Q25=\"SKRÝT\",R25=\"SKRÝT\",S25=\"SKRÝT\"),\"SKRÝT\",1)","v":"SKRÝT"}]
["Mechanické poškození zateplení budov ptactvem, hmyzem, hlodavci",null,null,null,null,null,null,null,null,null,null,null,null,null,null,"SKRÝT","SKRÝT","SKRÝT","SKRÝT",1,1,{"$f":"IF(AND(P26=\"SKRÝT\",Q26=\"SKRÝT\",R26=\"SKRÝT\",S26=\"SKRÝT\"),\"SKRÝT\",1)","v":"SKRÝT"}]
["Ostatní (v případě All risk)",null,null,null,null,null,null,null,null,null,null,null,null,null,null,"SKRÝT","SKRÝT","SKRÝT","SKRÝT",1,1,{"$f":"IF(AND(P27=\"SKRÝT\",Q27=\"SKRÝT\",R27=\"SKRÝT\",S27=\"SKRÝT\"),\"SKRÝT\",1)","v":"SKRÝT"}]
["Odcizení",null,null,null,null,null,null,null,null,null,null,null,null,null,null,"SKRÝT","SKRÝT","SKRÝT","SKRÝT",1,1,{"$f":"IF(AND(P28=\"SKRÝT\",Q28=\"SKRÝT\",R28=\"SKRÝT\",S28=\"SKRÝT\"),\"SKRÝT\",1)","v":"SKRÝT"}]
["Přerušení provozu v důsledku úředního rozhodnutí",null,null,null,null,"Viz jednotlivá nebezpečí",null,"Viz jednotlivá nebezpečí",null,null,null,null,null,null,null,"SKRÝT",null,"SKRÝT",null,1,1,{"$f":"IF(AND(P29=\"SKRÝT\",R29=\"SKRÝT\"),\"SKRÝT\",1)","v":"SKRÝT"}]
["Škody u odběratelů/ dodavatelů",null,null,null,null,"Viz jednotlivá nebezpečí",null,"Viz jednotlivá nebezpečí",null,null,null,null,null,null,null,"SKRÝT",null,"SKRÝT",null,1,1,"SKRÝT"]
["Škody u dodavatelů elektřiny, plynu, vody, tepla nebo stlačeného vzduchu a jejich distribuční síti",null,null,null,null,"Viz jednotlivá nebezpečí",null,"Viz jednotlivá nebezpečí",null,null,null,null,null,null,null,"SKRÝT",null,"SKRÝT",null,1,1,"SKRÝT"]
["Závislost v holdingu",null,null,null,null,"Viz jednotlivá nebezpečí",null,"Viz jednotlivá nebezpečí",null,null,null,null,null,null,null,"SKRÝT",null,"SKRÝT",null,1,1,"SKRÝT"]
["Vícenáklady",null,null,null,null,"Viz jednotlivá nebezpečí",null,"Viz jednotlivá nebezpečí",null,"Pokud chcete pojistit i jiné nebezpečí, doplňte.",null,null,null,null,null,"SKRÝT",null,"SKRÝT",null,1,1,"SKRÝT"]
["Jiné (uveďte):",null,null,null,null,"Viz jednotlivá nebezpečí",null,"Viz jednotlivá nebezpečí",null,null,null,null,null,null,null,"SKRÝT",{"$f":"IF(ISBLANK(D35),\"SKRÝT\",1)","v":"SKRÝT"},"SKRÝT",{"$f":"IF(ISBLANK(H35),\"SKRÝT\",1)","v":"SKRÝT"},1,1,"SKRÝT"]
["Poznámka",null,null,null,null,null,null,null,null,null,null,null,null,null,null,null,null,null,null,1,1,{"$f":"IF(ISBLANK(A36),\"SKRÝT\",1)","v":"SKRÝT"}]
[null,null,null,null,null,null,null,null,null,"Zde můžete uvést své poznámky.",null,null,null,null,null,null,null,null,null,1,1,{"$f":"IF(ISBLANK(A36),\"SKRÝT\",1)","v":"SKRÝT"}]
["Použité pojmy",null,null,null,null,null,null,null,null,null,null,null,null,null,null,null,null,null,null,1,1]
["Vícenáklady","Nezbytné a účelné náklady vynaložené nad rámec zvýšených provozních nákladů za účelem snížení poklesu obratu, ke kterému by došlo během doby ručení, kdyby nebyly tyto vícenáklady vynaloženy. Jedná se například o nájem za provizorní provozovny; náklady na úklid a úpravy provizorních provozoven; nájem za provizorní stroje a zařízení; náklady na dopravu zařízení včetně nákladů na přemístění zařízení do provizorních provozoven; zvýšené náklady na zásobování energiemi; příplatky za přesčasové práce při náhradní činnosti; zvýšené pojistné za provizorní provozovny; zvýšené náklady na ostrahu a vrátné; ostatní náklady vzniklé v souvislosti s nájmem provizorních provozoven, tj. zvýšené náklady na reklamu, telefony, správní poplatky apod. ",null,null,null,null,null,null,null,null,null,null,null,null,null,null,null,null,null,1,1,{"$f":"IF(AND(P38=\"SKRÝT\",Q38=\"SKRÝT\",R38=\"SKRÝT\",S38=\"SKRÝT\"),\"SKRÝT\",1)","v":1}]
[null,null,null,null,null,null,null,null,null,null,null,null,null,null,null,null,null,null,null,1,1,1]
[null,null,null,null,null,null,null,null,null,null,null,null,null,null,null,null,null,null,null,1,1,1]
[null,null,null,null,null,null,null,null,null,null,null,null,null,null,null,null,null,null,null,1,1,{"$f":"IF(AND(P41=\"SKRÝT\",Q41=\"SKRÝT\",R41=\"SKRÝT\",S41=\"SKRÝT\"),\"SKRÝT\",1)","v":1}]
[null,null,null,null,null,null,null,null,null,null,null,null,null,null,null,null,null,null,null,1,1,"SKRÝT"]
[null,null,null,null,null,null,null,null,null,null,null,null,null,null,null,null,null,null,null,1,1,1]
[null,null,null,null,null,null,null,null,null,null,null,null,null,null,null,null,null,null,null,1,1,1]
[null,null,null,null,null,null,null,null,null,null,null,null,null,null,null,null,null,null,null,1,1,1]
[null,null,null,null,null,null,null,null,null,null,null,null,null,null,null,null,null,null,null,1,1,1]
[null,null,null,null,null,null,null,null,null,null,null,null,null,null,null,null,null,null,null,1,1,1]
[null,null,null,null,null,null,null,null,null,null,null,null,null,null,null,null,null,null,null,1,1,1]
[null,null,null,null,null,null,null,null,null,null,null,null,null,null,null,null,null,null,null,1,1,1]
[null,null,null,null,null,null,null,null,null,null,null,null,null,null,null,null,null,null,null,1,1,1]
[null,null,null,null,null,null,null,null,null,null,null,null,null,null,null,null,null,null,null,1,1,1]
[null,null,null,null,null,null,null,null,null,null,null,null,null,null,null,null,null,null,null,1,1,1]
[null,null,null,null,null,null,null,null,null,null,null,null,null,null,null,null,null,null,null,1,1,1]
[null,null,null,null,null,null,null,null,null,null,null,null,null,null,null,null,null,null,null,1,1,1]
[null,null,null,null,null,null,null,null,null,null,null,null,null,null,null,null,null,null,null,1,1,1]
[null,null,null,null,null,null,null,null,null,null,null,null,null,null,null,null,null,null,null,1,1,1]
[null,null,null,null,null,null,null,null,null,null,null,null,null,null,null,null,null,null,null,1,1,1]
[null,null,null,null,null,null,null,null,null,null,null,null,null,null,null,null,null,null,null,1,1,1]
[null,null,null,null,null,null,null,null,null,null,null,null,null,null,null,null,null,null,null,1,1,1]
[null,null,null,null,null,null,null,null,null,null,null,null,null,null,null,null,null,null,null,1,1,1]
[null,null,null,null,null,null,null,null,null,null,null,null,null,null,null,null,null,null,null,1,1,1]
[null,null,null,null,null,null,null,null,null,null,null,null,null,null,null,null,null,null,null,1,1,1]
[null,null,null,null,null,null,null,null,null,null,null,null,null,null,null,null,null,null,null,1,1,1]
[null,null,null,null,null,null,null,null,null,null,null,null,null,null,null,null,null,null,null,1,1,1]
[null,null,null,null,null,null,null,null,null,null,null,null,null,null,null,null,null,null,null,1,1,1]
[null,null,null,null,null,null,null,null,null,null,null,null,null,null,null,null,null,null,null,1,1,1]
[null,null,null,null,null,null,null,null,null,null,null,null,null,null,null,null,null,null,null,1,1,1]
[null,null,null,null,null,null,null,null,null,null,null,null,null,null,null,null,null,null,null,1,1,1]
[null,null,null,null,null,null,null,null,null,null,null,null,null,null,null,null,null,null,null,1,1,1]
[null,null,null,null,null,null,null,null,null,null,null,null,null,null,null,null,null,null,null,1,1,1]
[null,null,null,null,null,null,null,null,null,null,null,null,null,null,null,null,null,null,null,1,1,1]
[null,null,null,null,null,null,null,null,null,null,null,null,null,null,null,null,null,null,null,1,1,1]
[null,null,null,null,null,null,null,null,null,null,null,null,null,null,null,null,null,null,null,1,1,"SKRÝT"]
[null,null,null,null,null,null,null,null,null,null,null,null,null,null,null,null,null,null,null,1,1,1]
[null,null,null,null,null,null,null,null,null,null,null,null,null,null,null,null,null,null,null,1,1,1]
[null,null,null,null,null,null,null,null,null,null,null,null,null,null,null,null,null,null,null,1,1,{"$f":"IF(V78=\"SKRÝT\",\"SKRÝT\",1)","v":"SKRÝT"}]
[null,null,null,null,null,null,null,null,null,null,null,null,null,null,null,null,null,null,null,1,1,"SKRÝT"]
[null,null,null,null,null,null,null,null,null,null,null,null,null,null,null,null,null,null,null,1,1,{"$f":"IF(AND(V79=\"SKRÝT\",V80=\"SKRÝT\",V81=\"SKRÝT\",V82=\"SKRÝT\",V83=\"SKRÝT\",V84=\"SKRÝT\"),\"SKRÝT\",1)","v":"SKRÝT"}]
[null,null,null,null,null,null,null,null,null,null,null,null,null,null,null,{"$f":"IF(ISBLANK(A80),\"SKRÝT\",1)","v":"SKRÝT"},null,{"$f":"IF(ISBLANK(G80),\"SKRÝT\",1)","v":"SKRÝT"},null,1,1,{"$f":"IF(AND(P79=\"SKRÝT\",R79=\"SKRÝT\"),\"SKRÝT\",1)","v":"SKRÝT"}]
[null,null,null,null,null,null,null,null,null,null,null,null,null,null,null,{"$f":"IF(ISBLANK(A81),\"SKRÝT\",1)","v":"SKRÝT"},null,{"$f":"IF(ISBLANK(G81),\"SKRÝT\",1)","v":"SKRÝT"},null,1,1,{"$f":"IF(AND(P80=\"SKRÝT\",R80=\"SKRÝT\"),\"SKRÝT\",1)","v":"SKRÝT"}]
[null,null,null,null,null,null,null,null,null,null,null,null,null,null,null,{"$f":"IF(ISBLANK(A82),\"SKRÝT\",1)","v":"SKRÝT"},null,{"$f":"IF(ISBLANK(G82),\"SKRÝT\",1)","v":"SKRÝT"},null,1,1,{"$f":"IF(AND(P81=\"SKRÝT\",R81=\"SKRÝT\"),\"SKRÝT\",1)","v":"SKRÝT"}]
[null,null,null,null,null,null,null,null,null,null,null,null,null,null,null,{"$f":"IF(ISBLANK(A83),\"SKRÝT\",1)","v":"SKRÝT"},null,{"$f":"IF(ISBLANK(G83),\"SKRÝT\",1)","v":"SKRÝT"},null,1,1,{"$f":"IF(AND(P82=\"SKRÝT\",R82=\"SKRÝT\"),\"SKRÝT\",1)","v":"SKRÝT"}]
[null,null,null,null,null,null,null,null,null,null,null,null,null,null,null,{"$f":"IF(ISBLANK(A84),\"SKRÝT\",1)","v":"SKRÝT"},null,{"$f":"IF(ISBLANK(G84),\"SKRÝT\",1)","v":"SKRÝT"},null,1,1,{"$f":"IF(AND(P83=\"SKRÝT\",R83=\"SKRÝT\"),\"SKRÝT\",1)","v":"SKRÝT"}]
[null,null,null,null,null,null,null,null,null,null,null,null,null,null,null,null,null,null,null,1,1,{"$f":"IF(G85=0,\"SKRÝT\",1)","v":"SKRÝT"}]
[null,null,null,null,null,null,null,null,null,null,null,null,null,null,null,null,null,null,null,1,1,1]
[null,null,null,null,null,null,null,null,null,null,null,null,null,null,null,null,null,null,null,1,1,1]
[null,null,null,null,null,null,null,null,null,null,null,null,null,null,null,null,null,null,null,1,1,"SKRÝT"]
[null,null,null,null,null,null,null,null,null,null,null,null,null,null,null,null,null,null,null,1,1,1]
[null,null,null,null,null,null,null,null,null,null,null,null,null,null,null,null,null,null,null,1,1,1]
[null,null,null,null,null,null,null,null,null,null,null,null,null,null,null,{"$f":"IF(ISBLANK(A91),\"SKRÝT\",1)","v":"SKRÝT"},null,{"$f":"IF(ISBLANK(G91),\"SKRÝT\",1)","v":"SKRÝT"},null,1,1,{"$f":"IF(AND(P90=\"SKRÝT\",R90=\"SKRÝT\"),\"SKRÝT\",1)","v":"SKRÝT"}]
[null,null,null,null,null,null,null,null,null,null,null,null,null,null,null,{"$f":"IF(ISBLANK(A92),\"SKRÝT\",1)","v":"SKRÝT"},null,{"$f":"IF(ISBLANK(G92),\"SKRÝT\",1)","v":"SKRÝT"},null,1,1,{"$f":"IF(AND(P91=\"SKRÝT\",R91=\"SKRÝT\"),\"SKRÝT\",1)","v":"SKRÝT"}]
[null,null,null,null,null,null,null,null,null,null,null,null,null,null,null,{"$f":"IF(ISBLANK(A93),\"SKRÝT\",1)","v":"SKRÝT"},null,{"$f":"IF(ISBLANK(G93),\"SKRÝT\",1)","v":"SKRÝT"},null,1,1,{"$f":"IF(AND(P92=\"SKRÝT\",R92=\"SKRÝT\"),\"SKRÝT\",1)","v":"SKRÝT"}]

{"sheet":"Preruseni_provozu_techn_rizika","index":11,"n_rows":31,"n_cols":22,"rows_kept":31,"cut":false,"hidden":true,"merged":[[6,0,6,7],[8,0,8,7],[12,4,12,5],[12,6,12,7],[13,0,13,3],[13,4,13,5],[13,6,13,7],[11,0,11,7],[9,0,9,2],[15,6,15,7],[16,0,16,3],[16,4,16,5],[16,6,16,7],[14,0,14,3],[14,4,14,5],[14,6,14,7],[19,0,19,3],[20,0,20,3],[18,0,18,3],[15,0,15,3],[15,4,15,5],[27,1,27,7],[21,0,21,3],[22,0,22,3],[24,1,24,7],[25,0,25,7],[26,1,26,7],[23,0,23,1],[23,2,23,3]]}
[null,null,null,null,null,null,null,null,null,null,null,null,null,null,null,null,null,null,null,"Verze k odeslání klientovi","Verze zpracovat","Verze k odeslání do pojišťovny (skrýt nevyplněné informace)"]
[null,null,null,null,null,null,null,null,null,null,null,null,null,null,null,null,null,null,null,1,1,1]
[null,null,null,null,null,null,null,null,null,null,null,null,null,null,null,null,null,null,null,1,1,1]
[null,null,null,null,null,null,null,null,null,null,null,null,null,null,null,null,null,null,null,1,1,1]
[null,null,null,null,null,null,null,null,null,null,null,null,null,null,null,null,null,null,null,1,1,1]
[null,null,null,null,null,null,null,null,null,null,null,null,null,null,null,null,null,null,null,null,null,1]
["Pojištění přerušení provozu z důvodu technických rizik",null,null,null,null,null,null,null,null,null,null,null,null,null,null,null,null,null,null,1,1,1]
[null,null,null,null,null,null,null,null,null,null,null,null,null,null,null,null,null,null,null,null,null,1]
["Pojistná částka",null,null,null,null,null,null,null,null,null,null,null,null,null,null,null,null,null,null,1,1,1]
["Roční pojistná částka (bez zohlednění sezónnosti):",null,null,{"$f":"Preruseni_provozu_info_PC!I71","v":0},null,null,null,null,null,"POZOR, v této pojistné částce není zohledněna sezónnost provozu.",null,null,null,null,null,null,null,null,null,1,1,1]
[null,null,null,null,null,null,null,null,null,null,null,null,null,null,null,null,null,null,null,1,1,1]
["Přerušení provozu z důvodu technických rizik"]
[null,null,null,null,"Varianta  I.",null,"Varianta  II.",null,null,"Požadujte především různé varianty limitů. ",null,null,null,null,null,null,null,null,null,1,1,1]
["Doba ručení (v měsících)",null,null,null,{"$f":"Preruseni_provozu_info_PC!H72","v":0},null,null,null,null,"Automaticky se vyplní požadovaná doba ručení z Výpočtu pojistné částky pro přerušení provozu. Hodnotu lze měnit.",null,null,null,null,null,null,null,null,null,1,1,1]
["Pojistná částka za dodu ručení",null,null,null,{"$f":"Preruseni_provozu_info_PC!H75","v":0},null,null,null,null,"Automaticky se vyplní požadovaná doba ručení z Výpočtu pojistné částky pro přerušení provozu. Hodnotu lze měnit.",null,null,null,null,null,null,null,null,null,1,1,1]
["Pojištěná nebezpečí",null,null,null,null,null,null,null,null,null,null,null,null,null,null,null,null,null,null,1,1,1]
["Uvedené limity jsou samostatné/ kombinované:",null,null,null,null,null,null,null,null,"Doporučujeme požadovat samostatné limity.",null,null,null,null,null,null,null,null,null,1,1,1]
[null,null,null,null,"Limit plnění","Spoluúčast\n(dny/ Kč)","Limit plnění","Spoluúčast\n(dny/ Kč)",null,null,null,null,null,null,null,null,null,null,null,1,1,1]
["Pro všechna nebezpečí",null,null,null,null,null,null,null,null,null,null,null,null,null,null,{"$f":"IF(ISBLANK(E19),\"SKRÝT\",1)","v":"SKRÝT"},{"$f":"IF(ISBLANK(F19),\"SKRÝT\",1)","v":"SKRÝT"},{"$f":"IF(ISBLANK(G19),\"SKRÝT\",1)","v":"SKRÝT"},{"$f":"IF(ISBLANK(H19),\"SKRÝT\",1)","v":"SKRÝT"},1,1,{"$f":"IF(AND(P19=\"SKRÝT\",Q19=\"SKRÝT\",R19=\"SKRÝT\",S19=\"SKRÝT\"),\"SKRÝT\",1)","v":"SKRÝT"}]
["Škody u odběratelů/ dodavatelů",null,null,null,null,"Viz jednotlivá nebezpečí",null,"Viz jednotlivá nebezpečí",null,null,null,null,null,null,null,{"$f":"IF(ISBLANK(E20),\"SKRÝT\",1)","v":"SKRÝT"},null,{"$f":"IF(ISBLANK(G21),\"SKRÝT\",1)","v":"SKRÝT"},null,1,1,{"$f":"IF(AND(P20=\"SKRÝT\",R20=\"SKRÝT\"),\"SKRÝT\",1)","v":"SKRÝT"}]
["Škody u dodavatelů elektřiny, plynu, vody, tepla nebo stlačeného vzduchu a jejich distribuční síti",null,null,null,null,"Viz jednotlivá nebezpečí",null,"Viz jednotlivá nebezpečí",null,null,null,null,null,null,null,{"$f":"IF(ISBLANK(E21),\"SKRÝT\",1)","v":"SKRÝT"},null,{"$f":"IF(ISBLANK(G22),\"SKRÝT\",1)","v":"SKRÝT"},null,1,1,{"$f":"IF(AND(P21=\"SKRÝT\",R21=\"SKRÝT\"),\"SKRÝT\",1)","v":"SKRÝT"}]
["Závislost v holdingu",null,null,null,null,"Viz jednotlivá nebezpečí",null,"Viz jednotlivá nebezpečí",null,null,null,null,null,null,null,{"$f":"IF(ISBLANK(E22),\"SKRÝT\",1)","v":"SKRÝT"},null,{"$f":"IF(ISBLANK(G23),\"SKRÝT\",1)","v":"SKRÝT"},null,1,1,{"$f":"IF(AND(P22=\"SKRÝT\",R22=\"SKRÝT\"),\"SKRÝT\",1)","v":"SKRÝT"}]
["Vícenáklady",null,null,null,null,"Viz jednotlivá nebezpečí",null,"Viz jednotlivá nebezpečí",null,null,null,null,null,null,null,{"$f":"IF(ISBLANK(E23),\"SKRÝT\",1)","v":"SKRÝT"},null,{"$f":"IF(ISBLANK(G24),\"SKRÝT\",1)","v":"SKRÝT"},null,1,1,{"$f":"IF(AND(P23=\"SKRÝT\",R23=\"SKRÝT\"),\"SKRÝT\",1)","v":"SKRÝT"}]
["Jiné (uveďte)",null,null,null,null,null,null,null,null,"Pokud chcete pojistit i jiné nebezpečí, doplňte.",null,null,null,null,null,{"$f":"IF(ISBLANK(E24),\"SKRÝT\",1)","v":"SKRÝT"},{"$f":"IF(ISBLANK(D25),\"SKRÝT\",1)","v":"SKRÝT"},{"$f":"IF(ISBLANK(G25),\"SKRÝT\",1)","v":"SKRÝT"},{"$f":"IF(ISBLANK(H25),\"SKRÝT\",1)","v":"SKRÝT"},1,1,{"$f":"IF(AND(P24=\"SKRÝT\",Q24=\"SKRÝT\",R24=\"SKRÝT\",S24=\"SKRÝT\"),\"SKRÝT\",1)","v":"SKRÝT"}]
["Poznámka",null,null,null,null,null,null,null,null,null,null,null,null,null,null,null,null,null,null,1,1,{"$f":"IF(ISBLANK(A26),\"SKRÝT\",1)","v":"SKRÝT"}]
[null,null,null,null,null,null,null,null,null,"Zde můžete uvést své poznámky.",null,null,null,null,null,null,null,null,null,1,1,{"$f":"IF(ISBLANK(A26),\"SKRÝT\",1)","v":"SKRÝT"}]
["Použité pojmy",null,null,null,null,null,null,null,null,null,null,null,null,null,null,null,null,null,null,1,1,{"$f":"IF(AND(P27=\"SKRÝT\",Q27=\"SKRÝT\",R27=\"SKRÝT\",S27=\"SKRÝT\"),\"SKRÝT\",1)","v":1}]
["Vícenáklady","Nezbytné a účelné náklady vynaložené nad rámec zvýšených provozních nákladů za účelem snížení poklesu obratu, ke kterému by došlo během doby ručení, kdyby nebyly tyto vícenáklady vynaloženy. Jedná se například o nájem za provizorní provozovny; náklady na úklid a úpravy provizorních provozoven; nájem za provizorní stroje a zařízení; náklady na dopravu zařízení včetně nákladů na přemístění zařízení do provizorních provozoven; zvýšené náklady na zásobování energiemi; příplatky za přesčasové práce při náhradní činnosti; zvýšené pojistné za provizorní provozovny; zvýšené náklady na ostrahu a vrátné; ostatní náklady vzniklé v souvislosti s nájmem provizorních provozoven, tj. zvýšené náklady na reklamu, telefony, správní poplatky apod. ",null,null,null,null,null,null,null,null,null,null,null,null,null,null,null,null,null,1,1,{"$f":"IF(AND(P28=\"SKRÝT\",Q28=\"SKRÝT\",R28=\"SKRÝT\",S28=\"SKRÝT\"),\"SKRÝT\",1)","v":1}]
[null,null,null,null,null,null,null,null,null,null,null,null,null,null,null,{"$f":"IF(ISBLANK(A30),\"SKRÝT\",1)","v":"SKRÝT"},null,{"$f":"IF(ISBLANK(G30),\"SKRÝT\",1)","v":"SKRÝT"},null,1,1,{"$f":"IF(AND(P29=\"SKRÝT\",R29=\"SKRÝT\"),\"SKRÝT\",1)","v":"SKRÝT"}]
[null,null,null,null,null,null,null,null,null,null,null,null,null,null,null,{"$f":"IF(ISBLANK(A31),\"SKRÝT\",1)","v":"SKRÝT"},null,{"$f":"IF(ISBLANK(G31),\"SKRÝT\",1)","v":"SKRÝT"},null,1,1,{"$f":"IF(AND(P30=\"SKRÝT\",R30=\"SKRÝT\"),\"SKRÝT\",1)","v":"SKRÝT"}]
[null,null,null,null,null,null,null,null,null,null,null,null,null,null,null,{"$f":"IF(ISBLANK(A32),\"SKRÝT\",1)","v":"SKRÝT"},null,{"$f":"IF(ISBLANK(G32),\"SKRÝT\",1)","v":"SKRÝT"},null,1,1,{"$f":"IF(AND(P31=\"SKRÝT\",R31=\"SKRÝT\"),\"SKRÝT\",1)","v":"SKRÝT"}]

{"sheet":"Odpovednost","index":12,"n_rows":83,"n_cols":22,"rows_kept":83,"cut":false,"hidden":false,"merged":[[81,0,81,7],[50,4,51,4],[50,5,51,5],[63,4,64,4],[63,5,64,5],[75,0,75,3],[58,0,58,3],[59,0,59,3],[61,0,61,3],[60,0,60,3],[62,0,62,3],[63,0,63,3],[54,0,54,3],[76,0,76,3],[77,0,77,3],[80,0,80,7],[57,0,57,3],[70,0,70,3],[71,0,71,3],[72,0,72,3],[73,1,73,3],[74,1,74,3],[79,0,79,7],[64,0,64,3],[65,0,65,3],[66,0,66,3],[67,0,67,3],[68,0,68,3],[69,0,69,3],[44,0,44,3],[45,0,45,3],[46,0,46,3],[47,0,47,3],[48,0,48,3],[49,0,49,3],[50,0,50,3],[51,0,51,3],[52,0,52,3],[53,0,53,3],[42,0,42,3],[42,4,42,5],[42,6,42,7],[43,0,43,3],[43,4,43,5],[43,6,43,7],[40,0,40,3],[40,4,40,5],[40,6,40,7],[41,0,41,3],[41,4,41,5],[41,6,41,7],[39,6,39,7],[30,2,30,3],[30,4,30,5],[30,6,30,7],[31,2,31,3],[31,4,31,5],[31,6,31,7],[33,2,33,3],[33,4,33,5],[34,2,34,3],[34,4,34,5],[39,4,39,5],[27,0,27,1],[27,2,27,3],[27,4,27,5],[27,6,27,7],[28,0,28,1],[28,2,28,3],[28,4,28,5],[28,6,28,7],[22,0,22,3],[22,4,22,5],[22,6,22,7],[23,0,23,3],[23,4,23,5],[23,6,23,7],[20,0,20,3],[20,4,20,5],[20,6,20,7],[21,0,21,3],[21,4,21,5],[21,6,21,7],[55,0,55,3],[56,0,56,3],[14,1,14,2],[6,0,6,7],[11,1,11,7],[12,1,12,5],[12,6,12,7],[13,1,13,2],[13,3,13,7],[16,0,16,7],[18,0,18,3],[18,4,18,5],[18,6,18,7],[19,0,19,3],[19,4,19,5],[19,6,19,7]]}
[null,null,null,null,null,null,null,null,null,null,null,null,null,null,null,null,null,null,null,"Verze Klient","Verze zpracovat","Verze odeslat do pojišťovny (skrýt nevyplněné informace)"]
[null,null,null,null,null,null,null,null,null,null,null,null,null,null,null,null,null,null,null,1,1,1]
[null,null,null,null,null,null,null,null,null,null,null,null,null,null,null,null,null,null,null,1,1,1]
[null,null,null,null,null,null,null,null,null,null,null,null,null,null,null,null,null,null,null,1,1,1]
[null,null,null,null,null,null,null,null,null,null,null,null,null,null,null,null,null,null,null,1,1,1]
[null,null,null,null,null,null,null,null,null,null,null,null,null,null,null,null,null,null,null,1,1,1]
["Pojištění odpovědnosti za újmu",null,null,null,null,null,null,null,null,null,null,null,null,null,null,null,null,null,null,1,1,1]
[null,null,null,null,null,null,null,null,null,null,null,null,null,null,null,null,null,null,null,1,1,1]
["Pojištěné činnosti",null,null,null,null,null,null,null,null,null,null,null,null,null,null,null,null,null,null,1,1,1]
[null,null,null,null,null,null,null,null,null,null,null,null,null,null,null,null,null,null,null,1,1,1]
["Ano/ Ne",null,null,null,null,null,null,null,null,null,null,null,null,null,null,null,null,null,null,1,1,1]
["Ano","Všechny činnosti uvedené v obchodním rejstříku, živnostenském rejstříku",null,null,null,null,null,null,null,"Činnosti klienta doporučujeme ověřit v aplikaci ARES (https://wwwinfo.mfcr.cz/ares/ares_es.html.cz). POZOR na činnosti spadající do profesní odpovědnosti.",null,null,null,null,null,null,null,null,null,1,1,{"$f":"IF(A12<>\"ANO\",\"SKRÝT\",1)","v":1}]
[null,"Všechny činnosti uvedené v obchodním rejstříku, živnostenském rejstříku s výjimkou:",null,null,null,null,null,null,null,null,null,null,null,null,null,null,null,null,null,1,1,{"$f":"IF(A13<>\"ANO\",\"SKRÝT\",1)","v":"SKRÝT"}]
[null,"Pouze následující činnosti:",null,null,null,null,null,null,null,null,null,null,null,null,null,null,null,null,null,1,1,{"$f":"IF(A14<>\"ANO\",\"SKRÝT\",1)","v":"SKRÝT"}]
[null,"Individuální zakázka (popis):",null,null,null,null,null,null,null,null,null,null,null,null,null,null,null,null,null,1,1,{"$f":"IF(A15<>\"ANO\",\"SKRÝT\",1)","v":"SKRÝT"}]
[null,null,null,null,null,null,null,null,null,null,null,null,null,null,null,null,null,null,null,1,1,1]
["Uveďte prosím rozdělení činností podle obratu. Vedlejší činnosti s podílem na obratu do 5 % lze uvést souhrnně. ",null,null,null,null,null,null,null,null,null,null,null,null,null,null,null,null,null,null,1,1,"SKRÝT"]
[null,null,null,null,null,null,null,null,null,null,null,null,null,null,null,null,null,null,null,1,1,1]
["Popis činnosti ",null,null,null,"Podíl činnosti na obratu %",null,"Činnost je provozována od roku",null,null,null,null,null,null,null,null,null,null,null,null,1,1,1]
["činnosti města vč. příspěvkových organizací",null,null,null,null,null,null,null,null,null,null,null,null,null,null,null,null,null,null,1,1,1]
[null,null,null,null,null,null,null,null,null,null,null,null,null,null,null,null,{"$f":"IF(ISBLANK(A21),\"SKRÝT\",1)","v":"SKRÝT"},{"$f":"IF(ISBLANK(E21),\"SKRÝT\",1)","v":"SKRÝT"},{"$f":"IF(ISBLANK(G21),\"SKRÝT\",1)","v":"SKRÝT"},1,1,{"$f":"IF(AND(Q21=\"SKRÝT\",R21=\"SKRÝT\",S21=\"SKRÝT\"),\"SKRÝT\",1)","v":"SKRÝT"}]
[null,null,null,null,null,null,null,null,null,null,null,null,null,null,null,null,{"$f":"IF(ISBLANK(A22),\"SKRÝT\",1)","v":"SKRÝT"},{"$f":"IF(ISBLANK(E22),\"SKRÝT\",1)","v":"SKRÝT"},{"$f":"IF(ISBLANK(G22),\"SKRÝT\",1)","v":"SKRÝT"},1,1,{"$f":"IF(AND(Q22=\"SKRÝT\",R22=\"SKRÝT\",S22=\"SKRÝT\"),\"SKRÝT\",1)","v":"SKRÝT"}]
[null,null,null,null,null,null,null,null,null,null,null,null,null,null,null,null,{"$f":"IF(ISBLANK(A23),\"SKRÝT\",1)","v":"SKRÝT"},{"$f":"IF(ISBLANK(E23),\"SKRÝT\",1)","v":"SKRÝT"},{"$f":"IF(ISBLANK(G23),\"SKRÝT\",1)","v":"SKRÝT"},1,1,{"$f":"IF(AND(Q23=\"SKRÝT\",R23=\"SKRÝT\",S23=\"SKRÝT\"),\"SKRÝT\",1)","v":"SKRÝT"}]
[null,null,null,null,null,null,null,null,null,null,null,null,null,null,null,null,{"$f":"IF(ISBLANK(A24),\"SKRÝT\",1)","v":"SKRÝT"},{"$f":"IF(ISBLANK(E24),\"SKRÝT\",1)","v":"SKRÝT"},{"$f":"IF(ISBLANK(G24),\"SKRÝT\",1)","v":"SKRÝT"},1,1,{"$f":"IF(AND(Q24=\"SKRÝT\",R24=\"SKRÝT\",S24=\"SKRÝT\"),\"SKRÝT\",1)","v":"SKRÝT"}]
[null,null,null,null,null,null,null,null,null,null,null,null,null,null,null,null,null,null,null,1,1,1]
["Základní ekonomické údaje",null,null,null,null,null,null,null,null,null,null,null,null,null,null,null,null,null,null,1,1,1]
[null,null,null,null,null,null,null,null,null,null,null,null,null,null,null,null,null,null,null,1,1,1]
[null,null,"Poslední uzavřený účetní rok",null,"Aktuální účetní rok (odhad)",null,"Plánovaný na následující účetní rok",null,null,null,null,null,null,null,null,null,null,null,null,1,1,1]
["Celková výše obratu (v Kč)",null,null,null,null,null,null,null,null,null,null,null,null,null,null,null,null,null,null,1,1,1]
[null,null,null,null,null,null,null,null,null,null,null,null,null,null,null,null,null,null,null,1,1,1]
[null,"ČR","Evropa s výjimkou ČR (geograficky)",null,"USA a Kanada",null,"Ostatní",null,null,null,null,null,null,null,null,null,null,null,null,1,1,1]
["Rozdělení obratu podle teritoria (%)",null,null,null,null,null,null,null,null,null,null,null,null,null,null,null,null,null,null,1,1,1]
[null,null,null,null,null,null,null,null,null,null,null,null,null,null,null,null,null,null,null,1,1,1]
[null,"THP","Dělníci",null,"Ostatní profese",null,null,null,null,null,null,null,null,null,null,null,null,null,null,1,1,1]
["Celkový počet zaměstnanců \n(aktuální)",null,null,null,null,null,"Počet směn",null,null,null,null,null,null,null,null,null,null,null,null,1,1,1]
[null,null,null,null,null,null,null,null,null,null,null,null,null,null,null,null,null,null,null,1,1,1]
[null,null,null,null,null,null,null,null,null,null,null,null,null,null,null,null,null,null,null,1,1,1]
["Pojištění odpovědnosti za újmu",null,null,null,null,null,null,null,null,null,null,null,null,null,null,null,null,null,null,1,1,1]
[null,null,null,null,null,null,null,null,null,null,null,null,null,null,null,null,null,null,null,1,1,1]
[null,null,null,null,"Varianta  I.",null,"Varianta  II.",null,null,"Požadujte především různé varianty limitů. ",null,null,null,null,null,null,null,null,null,1,1,1]
["Retroaktivita pojištění pro újmu/ škody, k jejichž příčina a vznik spadá před počátkem pojištění (datum)",null,null,null,"2014-01-01",null,null,null,null,"Požadujte vždy, pokud bylo nebo bude sjednáno pojištění na principu Act Committed nebo Claims Made, protože tyto principy podmiňují poskytnutí plnění tím, že příčina škody musí nastat v době trvání pojištění.",null,null,null,null,null,null,null,null,null,1,1,1]
["Retroaktivita pojištění pro výrobky uvedené na trh před počátkem pojištění (datum)",null,null,null,"2014-01-01",null,null,null,null,"U výrobců, distributorů a dovozců požadujte vždy, pokud se nejedná o rychlokazitelné zboží. Obvykle se totiž pojištění odpovědnosti za výrobek vztahuje jen na škody způsobené výrobky uvedenými na trh po počátku pojištění",null,null,null,null,null,null,null,null,null,1,1,1]
["Doba pro nahlašování vznesených nároků pojistiteli po skončení pojištění (měsíců)",null,null,null,null,null,null,null,null,"Požadujte vždy, pokud bylo nebo bude sjednáno pojištění na principu Claims Made (POZOR – někteří pojistitelé upravují princip pro odpovědnost za výrobek ve smlouvě). Pojistitelé obvykle akceptují prodlouženou dobu pro nahlášení minimálně  6 měsíců.",null,null,null,null,null,null,null,null,null,1,1,1]
["Územní rozsah pojištění",null,null,null,"Evropa (geograficky)",null,null,null,null,"POZOR např. na újmy na zdraví cizinců, které se mohou projevit až po jejich návratu domů, nebo na nepřímé exporty.",null,null,null,null,null,null,null,null,null,1,1,1]
[null,null,null,null,"Limit plnění","Spoluúčast","Limit plnění","Spoluúčast","roční pojistné",null,null,null,null,null,null,null,null,null,null,1,1,1]
["Obecná odpovědnost za újmu vč. následných finančních škod, újmy na životním prostředí v důsledku nenadálého selhání ochranného zařízení, vlastnictví a držby nemovitostí a pronájmu nemovitosti od 3. osoby, újmy na životě nebo zdraví žáků příspěvkových organizací ",null,null,null,30000000,1000,null,null,null,"Doporučujeme požadovat vždy základní limit min. 10 mil. Kč. Při stanovení základního limitu zároveň doporučujeme zohlednit i možné újmy na zdraví, kdy náhrada újmy může v jednotlivých případech dosahovat i 30 mil. Kč (zejm. u dětí a mladých lidí).",null,null,null,null,null,null,null,null,null,1,1,{"$f":"IF(AND(P46=\"SKRÝT\",Q46=\"SKRÝT\",R46=\"SKRÝT\",S46=\"SKRÝT\"),\"SKRÝT\",1)","v":1}]
["Duševní útrapy osoby blízké při zvlášť závažném ublížení na zdraví nebo při usmrcení",null,null,null,"v rámci zákl. limitu",1000,null,null,null,"Požadujte na plný limit. Obvykle bývá součástí základního krytí, některé pojišťovny však připojišťují zvlášť. ",null,null,null,null,null,{"$f":"IF(ISBLANK(E47),\"SKRÝT\",1)","v":1},{"$f":"IF(ISBLANK(F47),\"SKRÝT\",1)","v":1},"SKRÝT","SKRÝT",1,1,{"$f":"IF(AND(P47=\"SKRÝT\",Q47=\"SKRÝT\",R47=\"SKRÝT\",S47=\"SKRÝT\"),\"SKRÝT\",1)","v":1}]
["Regresy zdravotních pojišťoven v důsledky újmy na zdraví zaměstnanců",null,null,null,10000000,1000,null,null,null,"U některých pojišťoven součást základního krytí, jiné připojišťují zvlášť. Vzhledem k obvyklým nárokům doporučujeme jako minimální limit 3 mil. Kč (dostatečný k pokrytí 1 škody). Pokud pojišťovna nabídne společný limit i pro regresy orgánů nemocenského pojištění, je nutné limit přizpůsobit.",null,null,null,null,null,1,1,"SKRÝT","SKRÝT",1,1,1]
["Regresy orgánů nemocenského pojištění",null,null,null,10000000,1000,null,null,null,"U některých pojišťoven součást základního krytí, jiné připojišťují zvlášť. Vzhledem k obvyklým nárokům doporučujeme jako minimální limit 3 mil. Kč (dostatečný k pokrytí 1 škody). Pokud pojišťovna nabídne společný limit i pro regresy ZP, je nutné limit přizpůsobit.",null,null,null,null,null,1,1,"SKRÝT","SKRÝT",1,1,1]
["Poskytnutí dodatečné slevy za dlouhodobost   - požadovaná textace ",null,null,null,5000000,1000,null,null,null,"Zásah do přirozených práv.",null,null,null,null,null,1,1,"SKRÝT","SKRÝT",1,1,1]
["Odpovědnost za věci převzaté (k opravě, úpravě) a užívané",null,null,null,500000,1000,null,null,null,"POZOR na automobily a jiná vozidla, jejich připojištění je nutné žádat zvlášť.",null,null,null,null,null,1,1,"SKRÝT","SKRÝT",1,1,1]
["Odpovědnost za věci movité užívané (pronajaté, na leasing, vč. automobilů)",null,null,null,null,null,null,null,null,"POZOR na automobily a jiná vozidla, jejich připojištění je nutné žádat zvlášť.",null,null,null,null,null,"SKRÝT","SKRÝT","SKRÝT","SKRÝT",1,1,"SKRÝT"]
["Odpovědnost za věci zaměstnanců, vč. mobilních telefonů, notebooků, ostatních elektronických zařízení a jízdních kol",null,null,null,"v rámci zákl. limitu",500,null,null,null,"Obvyklé bývá součástí základního krytí, některé pojišťovny však připojišťují zvlášť.",null,null,null,null,null,1,1,"SKRÝT","SKRÝT",1,1,1]
["Odpovědnost za věci vnesené, odložené (věci návštěv apod.)",null,null,null,"v rámci zákl. limitu",500,null,null,null,"POZOR zejm. u hotelů a v pohostinství, provozování hlídaných garáží apod. POZOR na automobily a jiná vozidla, jejich připojištění je nutné žádat zvlášť.",null,null,null,null,null,1,1,"SKRÝT","SKRÝT",1,1,1]
["Odpovědnost za újmu způsobenou vadným výrobkem, vč. vadně vykonané práce",null,null,null,"v rámci zákl. limitu",1000,null,null,null,"POZOR na definici výrobku, pojišťovny mají nastaveno různě.",null,null,null,null,null,1,1,"SKRÝT","SKRÝT",1,1,1]
["Odpovědnost za zněčištění životního prostředí - provoz zimního stadionu (únik čpavku apod)",null,null,null,"v rámci zákl. limitu",1000,null,null,null,null,null,null,null,null,null,null,1]
["Přopojištění odpovědnosti členů orgánu za jinou než čistou finanční újmu (škody na motorovém vozidle)",null,null,null,500000,1000]
["Čistá finanční škoda",null,null,null,1000000,1000,null,null,null,null,null,null,null,null,null,1,1,{"$f":"IF(ISBLANK(G55),\"SKRÝT\",1)","v":"SKRÝT"},"SKRÝT",1,1,1]
["Čisté finanční z vady výrobku a vadně vykonané práce ",null,null,null,"V rámci limitu pro čisté finanční škody",1000,"V rámci limitu pro čisté finanční škody",null,null,"Finanční škoda ve formě např. ušlého zisku vzniklého v důsledku vady výrobku (vady provedené práce).",null,null,null,null,null,1,1,{"$f":"IF(ISBLANK(G58),\"SKRÝT\",1)","v":"SKRÝT"},"SKRÝT",1,1,1]
["Škody způsobené spojením/ smícháním (vadného výrobku s výrobkem bez vady)",null,null,null,null,null,null,null,null,"Kryje pouze škody vzniklé spojením/ smícháním.",null,null,null,null,null,"SKRÝT","SKRÝT","SKRÝT","SKRÝT",1,1,"SKRÝT"]
["Náklady na montáž/ demontáž vadného výrobku",null,null,null,null,null,null,null,null,"Kryje pouze náklady na montáž/ demontáž vadného výrobku, nikoliv čisté finanční škody způsobené výrobkem obecně (např. ušlý zisk odběratele).",null,null,null,null,null,{"$f":"IF(ISBLANK(E61),\"SKRÝT\",1)","v":"SKRÝT"},{"$f":"IF(ISBLANK(F61),\"SKRÝT\",1)","v":"SKRÝT"},{"$f":"IF(ISBLANK(G61),\"SKRÝT\",1)","v":"SKRÝT"},{"$f":"IF(ISBLANK(H61),\"SKRÝT\",1)","v":"SKRÝT"},1,1,"SKRÝT"]
["Odpovědnost za újmu v důsledku rozšíření salmonely a jiných přenosných chorob v souvislosti s mikrobiologickou kontaminací výrobku",null,null,null,"v rámci limitu vadného výrobku",1000,null,null,null,"Vhodné zejm. v pohostinství, škol s vlastní jídelnou. POZOR na způsobenou újmu na zdraví (viz výše).",null,null,null,null,null,1,1,"SKRÝT","SKRÝT",1,1,1]
["Náklady na stažení výrobku z trhu",null,null,null,null,null,null,null,null,"Doporučujeme vždy řešit nezávisle včetně samostatného dotazníku dostupného na Intranetu. Na českém trhu se nabízí pouze společně s pojištěním odpovědnosti.",null,null,null,null,null,"SKRÝT","SKRÝT","SKRÝT","SKRÝT",1,1,"SKRÝT"]
["Křížová odpovědnost vůči majetkově propojeným společnostem",null,null,null,"v rámci zákl. limitu",1000,null,null,null,"Vhodné u holdingů.",null,null,null,null,null,{"$f":"IF(ISBLANK(#REF!),\"SKRÝT\",1)","v":1},1,"SKRÝT","SKRÝT",1,1,1]
["Křížová odpovědnost mezi pojištěnými",null,null,null,null,null,null,null,null,"Vhodné u holdingových smluv.",null,null,null,null,null,{"$f":"IF(ISBLANK(E64),\"SKRÝT\",1)","v":1},"SKRÝT","SKRÝT","SKRÝT",1,1,1]
["Odpovědnost za újmu na životním prostředí vzniklou jinak než v důsledku nenadálého selhání ochranného zařízení",null,null,null,null,null,null,null,null,"Vhodné zejm. pro společnosti nakládající s nebezpečnými látkami nebo jinak potencionálně ohrožující životní prostředí.",null,null,null,null,null,"SKRÝT","SKRÝT","SKRÝT","SKRÝT",1,1,"SKRÝT"]
["Odpovědnost za ekologickou újmu",null,null,null,null,null,null,null,null,"Je nutné zeptat se klienta, zda má povinnost obstarat pojištění nebo jinou formu zajištění ekologické újmy.",null,null,null,null,null,"SKRÝT","SKRÝT","SKRÝT","SKRÝT",1,1,"SKRÝT"]
["Odpovědnost za újmu vzniklou přerušením, kolísáním nebo omezením dodávek elektřiny, plynu, vody nebo tepla",null,null,null,null,null,null,null,null,"Vhodné pro distributory elektřiny, plynu, vody, tepla apod.",null,null,null,null,null,"SKRÝT","SKRÝT","SKRÝT","SKRÝT",1,1,"SKRÝT"]
["Odpovědnost za újmu způsobenou činností silniční doprava nákladní, vyjma škod přímo na přepravovaném nákladu",null,null,null,null,null,null,null,null,"Vhodné pro silniční dopravce (POZOR škody přímo na přepravovaném nákladu zůstávají stále vyloučeny - ty kryje pojištění odpovědnosti dopravce).",null,null,null,null,null,"SKRÝT","SKRÝT","SKRÝT","SKRÝT",1,1,"SKRÝT"]
["Odpovědnost za újmu způsobenou pozvolným vnikáním vlhka a kapalin všeho druhu, působením plynů, par, vlhkostí nebo srážek",null,null,null,null,null,null,null,null,"Vhodné např. pro stavební společnosti.",null,null,null,null,null,"SKRÝT","SKRÝT","SKRÝT","SKRÝT",1,1,"SKRÝT"]
["Odpovědnost za újmu způsobenou sesedáním, sesuvem půdy, skal,  poddolováním",null,null,null,null,null,null,null,null,"Vhodné např. pro stavební společnosti.",null,null,null,null,null,"SKRÝT","SKRÝT","SKRÝT","SKRÝT",1,1,"SKRÝT"]
["Odpovědnost za újmu způsobenou vibracemi",null,null,null,null,null,null,null,null,"Vhodné např. pro stavební společnosti.",null,null,null,null,null,"SKRÝT","SKRÝT","SKRÝT","SKRÝT",1,1,"SKRÝT"]
["Odpovědnost za újmu vzniklou odcizením věci ve střeženém objektu při zajišťování ostrahy majetku",null,null,null,null,null,null,null,null,"Vhodné pro společnosti zabývající se ostrahou objektů.",null,null,null,null,null,"SKRÝT","SKRÝT","SKRÝT","SKRÝT",1,1,"SKRÝT"]
["Jiné (uveďte):","odpovědnost za chybná rozhodnutí zastupitelů ",null,null,2000000,1000,null,null,null,"Doplňte jiné připojištění, pokud chcete požadovat.",null,null,null,null,null,1,1,"SKRÝT","SKRÝT",1,1,1]
["Jiné (uveďte):","veřejná služba",null,null,5000000,1000,null,null,null,"Doplňte jiné připojištění, pokud chcete požadovat.",null,null,null,null,null,1,1,"SKRÝT","SKRÝT",1,1,1]
["Odpovědnost obchodní korporace za újmu členům svých orgánů v souvislosti s výkonem jejich funkce",null,null,null,500000,1000]
["Výkon veřejné moci",null,null,null,2000000,1000]
["Vlastnictví pozemních komunikací",null,null,null,"v rámci zákl. limitu",1000]
["Poznámka",null,null,null,null,null,null,null,null,null,null,null,null,null,null,{"$f":"IF(ISBLANK(E79),\"SKRÝT\",1)","v":"SKRÝT"},{"$f":"IF(ISBLANK(F79),\"SKRÝT\",1)","v":"SKRÝT"},{"$f":"IF(ISBLANK(G79),\"SKRÝT\",1)","v":"SKRÝT"},{"$f":"IF(ISBLANK(H79),\"SKRÝT\",1)","v":"SKRÝT"},1,1,{"$f":"IF(ISBLANK(A81),\"SKRÝT\",1)","v":1}]
["pojištění odpovědnosti se vztahuje i na sesuv půdy, skal, eroze",null,null,null,null,null,null,null,null,"Příklad poznámky",null,null,null,null,null,null,null,null,null,"SKRÝT",1,{"$f":"IF(ISBLANK(A80),\"SKRÝT\",1)","v":1}]
["pro škody na zdraví žáků, škody na věci žáků a odcizení věcí žáků se sjednává spoluúčast 0 Kč",null,null,null,null,null,null,null,null,"Zde můžete doplnit poznámky.",null,null,null,null,null,null,null,null,null,1,1,{"$f":"IF(ISBLANK(A81),\"SKRÝT\",1)","v":1}]
["pojištění odpovědnosti se vztahuje i na městskou policii, dobrovolné hasiče, rybářskou stráž, provozování sportovních a kulturních zařízení a akcí"]
["pojištění odpovědnosti se vztahuje i na příspěvkové organizace uvedené na příloze č. 5"]

{"sheet":"Vyrobci_distributori_dovozci","index":13,"n_rows":50,"n_cols":22,"rows_kept":50,"cut":false,"hidden":true,"merged":[[44,0,44,3],[44,4,44,7],[36,0,36,3],[36,4,36,7],[48,0,48,3],[48,4,48,7],[40,0,40,3],[40,4,40,7],[42,0,42,7],[39,0,39,3],[39,4,39,7],[49,0,49,3],[49,4,49,7],[45,0,45,3],[45,4,45,7],[46,0,46,3],[46,4,46,7],[47,0,47,3],[47,4,47,7],[35,0,35,3],[35,4,35,7],[37,0,37,3],[37,4,37,7],[38,0,38,3],[38,4,38,7],[21,0,21,1],[22,0,22,1],[23,0,23,1],[26,0,26,1],[27,0,27,1],[28,0,28,1],[29,0,29,1],[33,0,33,7],[26,5,26,7],[27,5,27,7],[28,5,28,7],[29,5,29,7],[26,3,26,4],[27,3,27,4],[28,3,28,4],[29,3,29,4],[20,0,20,1],[6,0,6,7],[7,0,7,7],[8,0,8,7],[12,0,12,1],[13,0,13,1],[14,0,14,1],[15,0,15,1],[16,0,16,1],[17,0,17,1],[18,0,18,1],[19,0,19,1]]}
[null,null,null,null,null,null,null,null,null,null,null,null,null,null,null,null,null,null,null,"Verze Klient","Verze zpracovat","Verze odeslat do pojišťovny (skrýt nevyplněné informace)"]
[null,null,null,null,null,null,null,null,null,null,null,null,null,null,null,null,null,null,null,1,1,1]
[null,null,null,null,null,null,null,null,null,null,null,null,null,null,null,null,null,null,null,1,1,1]
[null,null,null,null,null,null,null,null,null,null,null,null,null,null,null,null,null,null,null,1,1,1]
[null,null,null,null,null,null,null,null,null,null,null,null,null,null,null,null,null,null,null,1,1,1]
[null,null,null,null,null,null,null,null,null,null,null,null,null,null,null,null,null,null,null,1,1,1]
["Pojištění odpovědnosti za újmu - Informace k výrobě a výrobkům",null,null,null,null,null,null,null,null,null,null,null,null,null,null,null,null,null,null,1,1,1]
[null,null,null,null,null,null,null,null,null,null,null,null,null,null,null,null,null,null,null,1,1,1]
["Následující informace k výrobě a výrobků prosím vyplňte v případě, že se Vaše společnost zabývá jakoukoliv výrobou výrobků, distribucí výrobků pod vlastní značkou nebo jejich dovozem (blíže viz  v § 2939 z č. 89/2012 Sb., občanského zákoníku).",null,null,null,null,null,null,null,null,null,null,null,null,null,null,null,null,null,null,1,"SKRÝT","SKRÝT"]
[null,null,null,null,null,null,null,null,null,null,null,null,null,null,null,null,null,null,null,1,"SKRÝT","SKRÝT"]
["Podrobné informace k výrobě a výrobkům",null,null,null,null,null,null,null,null,null,null,null,null,null,null,null,null,null,null,1,1,1]
[null,null,null,null,null,null,null,null,null,null,null,null,null,null,null,null,null,null,null,1,1,1]
["Obchodní název výrobku nebo výrobkové skupiny",null,null,null,null,null,null,null,null,null,null,null,null,null,null,null,null,null,null,1,1,1]
["Popis, hlavní účel užití",null,null,null,null,null,null,null,null,null,null,null,null,null,null,null,null,null,null,1,1,1]
["Výrobky jsou:  distribuovány/ distribuovány pod vlastní značkou/ vyráběny",null,null,null,null,null,null,null,null,null,null,null,null,null,null,null,null,null,null,1,1,1]
["Výrobek je určen: pro konečného zákazníka/ k dalšímu zpracování",null,null,null,null,null,null,null,null,null,null,null,null,null,null,null,null,null,null,1,1,1]
["Výrobek je vyráběn: od začátku do konce/ z polotovarů dodavatele",null,null,null,null,null,null,null,null,null,null,null,null,null,null,null,null,null,null,1,1,1]
["Kdo projektuje/ vyvíjí vyráběné/ prodávané výrobky? (Vlastní oddělení/ oddělení zákazníka/ jiné způsoby)",null,null,null,null,null,null,null,null,null,null,null,null,null,null,null,null,null,null,1,1,1]
["Výroba je: velkosériová/ malosériová/ kusová",null,null,null,null,null,null,null,null,null,null,null,null,null,null,null,null,null,null,1,1,1]
["Je výrobek hořlavý/ jedovatý/ radioaktivní/ jinak nebezpečný? \n(Pokud ANO, uveďte vlastnost.)",null,null,null,null,null,null,null,null,null,null,null,null,null,null,null,null,null,null,1,1,1]
["Rok zahájení výroby",null,null,null,null,null,null,null,null,null,null,null,null,null,null,null,null,null,null,1,1,1]
["Je výrobek exportován? Pokud ANO, uveďte konkrétní geografickou oblast (např. Evropa, celý svět) nebo přímo zemi, kam je exportován.",null,null,null,null,null,null,null,null,null,null,null,null,null,null,null,null,null,null,1,1,1]
["Rok zahájení exportu",null,null,null,null,null,null,null,null,null,null,null,null,null,null,null,null,null,null,1,1,1]
["Roční obrat (Kč)",null,null,null,null,null,null,null,null,null,null,null,null,null,null,null,null,null,null,1,1,1]
[null,null,null,null,null,null,null,null,null,null,null,null,null,null,null,null,null,null,null,1,1,1]
[null,null,"Ano/ Ne",null,null,null,null,null,null,null,null,null,null,null,null,null,null,null,null,1,1,1]
["Bude během následujících 12 měsíců uveden na trh nový výrobek?",null,null,"Pokud ano, jaký/ jaké?",null,null,null,null,null,null,null,null,null,null,null,null,null,null,null,1,1,1]
["Vyrábíte pro zahraničního partnera pod jeho značkou?",null,null,"Pokud ano, jaký/ jaké?",null,null,null,null,null,null,null,null,null,null,null,null,null,null,null,1,1,1]
["Probíhá kontrola výrobků v procesu výroby?",null,null,"Pokud ano, popište:",null,null,null,null,null,null,null,null,null,null,null,null,null,null,null,1,1,1]
["Probíhá výstupní kontrola výrobků?",null,null,"Pokud ano, popište:",null,null,null,null,null,null,null,null,null,null,null,null,null,null,null,1,1,1]
[null,null,null,null,null,null,null,null,null,null,null,null,null,null,null,null,null,null,null,1,1,1]
["Údaje o odběratelích",null,null,null,null,null,null,null,null,null,null,null,null,null,null,null,null,null,null,1,1,1]
[null,null,null,null,null,null,null,null,null,null,null,null,null,null,null,null,null,null,null,1,1,1]
["Uveďte 5 největších odběratelů.",null,null,null,null,null,null,null,null,null,null,null,null,null,null,null,null,null,null,1,1,1]
[null,null,null,null,null,null,null,null,null,null,null,null,null,null,null,null,null,null,null,1,1,1]
["Název odběratele",null,null,null,"Roční objem obchodu (Kč)",null,null,null,null,null,null,null,null,null,null,null,null,null,null,1,1,1]
[null,null,null,null,null,null,null,null,null,null,null,null,null,null,null,null,null,null,null,1,1,1]
[null,null,null,null,null,null,null,null,null,null,null,null,null,null,null,null,null,null,null,1,1,1]
[null,null,null,null,null,null,null,null,null,null,null,null,null,null,null,null,null,null,null,1,1,1]
[null,null,null,null,null,null,null,null,null,null,null,null,null,null,null,null,null,null,null,1,1,1]
[null,null,null,null,null,null,null,null,null,null,null,null,null,null,null,null,null,null,null,1,1,1]
[null,null,null,null,null,null,null,null,null,null,null,null,null,null,null,null,null,null,null,1,1,1]
["Uveďte odběratele v USA a Kanadě.",null,null,null,null,null,null,null,null,null,null,null,null,null,null,null,null,null,null,1,1,1]
[null,null,null,null,null,null,null,null,null,null,null,null,null,null,null,null,null,null,null,1,1,1]
["Název odběratele v USA, Kanadě",null,null,null,"Roční objem obchodu (Kč)",null,null,null,null,null,null,null,null,null,null,null,null,null,null,1,1,1]
[null,null,null,null,null,null,null,null,null,null,null,null,null,null,null,null,null,null,null,1,1,1]
[null,null,null,null,null,null,null,null,null,null,null,null,null,null,null,null,null,{"$f":"IF(ISBLANK(A47),\"SKRÝT\",1)","v":"SKRÝT"},{"$f":"IF(ISBLANK(E47),\"SKRÝT\",1)","v":"SKRÝT"},1,1,{"$f":"IF(AND(R47=\"SKRÝT\",S47=\"SKRÝT\"),\"SKRÝT\",1)","v":"SKRÝT"}]
[null,null,null,null,null,null,null,null,null,null,null,null,null,null,null,null,null,{"$f":"IF(ISBLANK(A48),\"SKRÝT\",1)","v":"SKRÝT"},{"$f":"IF(ISBLANK(E48),\"SKRÝT\",1)","v":"SKRÝT"},1,1,{"$f":"IF(AND(R48=\"SKRÝT\",S48=\"SKRÝT\"),\"SKRÝT\",1)","v":"SKRÝT"}]
[null,null,null,null,null,null,null,null,null,null,null,null,null,null,null,null,null,{"$f":"IF(ISBLANK(A49),\"SKRÝT\",1)","v":"SKRÝT"},{"$f":"IF(ISBLANK(E49),\"SKRÝT\",1)","v":"SKRÝT"},1,1,{"$f":"IF(AND(R49=\"SKRÝT\",S49=\"SKRÝT\"),\"SKRÝT\",1)","v":"SKRÝT"}]
[null,null,null,null,null,null,null,null,null,null,null,null,null,null,null,null,null,{"$f":"IF(ISBLANK(A50),\"SKRÝT\",1)","v":"SKRÝT"},{"$f":"IF(ISBLANK(E50),\"SKRÝT\",1)","v":"SKRÝT"},1,1,{"$f":"IF(AND(R50=\"SKRÝT\",S50=\"SKRÝT\"),\"SKRÝT\",1)","v":"SKRÝT"}]

{"sheet":"Hotely_restaurace","index":14,"n_rows":30,"n_cols":22,"rows_kept":30,"cut":false,"hidden":true,"merged":[[23,0,23,7],[6,0,6,7],[7,0,7,7],[8,0,8,7],[11,1,11,7],[12,1,12,7]]}
[null,null,null,null,null,null,null,null,null,null,null,null,null,null,null,null,null,null,null,"Verze Klient","Verze zpracovat","Verze odeslat do pojišťovny (skrýt nevyplněné informace)"]
[null,null,null,null,null,null,null,null,null,null,null,null,null,null,null,null,null,null,null,1,1,1]
[null,null,null,null,null,null,null,null,null,null,null,null,null,null,null,null,null,null,null,1,1,1]
[null,null,null,null,null,null,null,null,null,null,null,null,null,null,null,null,null,null,null,1,1,1]
[null,null,null,null,null,null,null,null,null,null,null,null,null,null,null,null,null,null,null,1,1,1]
[null,null,null,null,null,null,null,null,null,null,null,null,null,null,null,null,null,null,null,1,1,1]
["Pojištění odpovědnosti za újmu - Informace k provozu hotelu, rekreačního střediska, restauračního zařízení",null,null,null,null,null,null,null,null,null,null,null,null,null,null,null,null,null,null,1,1,1]
[null,null,null,null,null,null,null,null,null,null,null,null,null,null,null,null,null,null,null,1,1,1]
["Následující informace prosím vyplňte v případě, že se Vaše společnost zabývá provozem hotelu, rekreačního střediska nebo restauračního zařízení.",null,null,null,null,null,null,null,null,null,null,null,null,null,null,null,null,null,null,1,"SKRÝT","SKRÝT"]
[null,null,null,null,null,null,null,null,null,null,null,null,null,null,null,null,null,null,null,1,"SKRÝT","SKRÝT"]
["Základní informace",null,null,null,null,null,null,null,null,null,null,null,null,null,null,null,null,null,null,1,1,1]
["Název zařízení",null,null,null,null,null,null,null,null,null,null,null,null,null,null,null,null,null,null,1,1,1]
["Adresa zařízení",null,null,null,null,null,null,null,null,null,null,null,null,null,null,null,null,null,null,1,1,1]
["Web:",null,null,null,null,null,null,null,null,null,null,null,null,null,null,null,null,null,null,1,1,1]
["Počet pokojů",null,"Počet lůžek",null,null,null,null,null,null,null,null,null,null,null,null,null,null,null,null,1,1,1]
["Průměrná roční obsazenost (%)",null,null,null,null,null,null,null,null,null,null,null,null,null,null,null,null,null,null,1,1,1]
[null,null,null,null,null,null,null,null,null,null,null,null,null,null,null,null,null,null,null,1,1,1]
[null,"Ano/ Ne",null,"Počet ","Kapacita (osob)",null,null,null,null,null,null,null,null,null,null,null,null,null,null,1,1,1]
["Restaurace",null,"Pokud ano",null,null,null,null,null,null,null,null,null,null,null,null,null,null,null,null,1,1,1]
["Salonky",null,"Pokud ano",null,null,null,null,null,null,null,null,null,null,null,null,null,null,null,null,1,1,1]
["Konferenční místnost",null,"Pokud ano",null,null,null,null,null,null,null,null,null,null,null,null,null,null,null,null,1,1,1]
["Jiné",null,"Pokud ano",null,null,null,null,null,null,null,null,null,null,null,null,null,null,null,null,1,1,1]
[null,null,null,null,null,null,null,null,null,null,null,null,null,null,null,null,null,null,null,1,1,1]
["Uveďte, zda poskytuje některé z níže uvedených speciálních služeb.",null,null,null,null,null,null,null,null,null,null,null,null,null,null,null,null,null,null,1,1,1]
[null,null,null,null,null,null,null,null,null,null,null,null,null,null,null,null,null,null,null,1,1,1]
[null,"Ano/ Ne",null,"Ano/ Ne",null,null,null,null,null,null,null,null,null,null,null,null,null,null,null,1,1,1]
["Fitness centrum",null,"Kolagenárium",null,null,null,null,null,null,null,null,null,null,null,null,null,null,null,null,1,1,1]
["Plavecký bazén",null,"Kadeřnictví",null,null,null,null,null,null,null,null,null,null,null,null,null,null,null,null,1,1,1]
["Sauna",null,"Obchody",null,null,null,null,null,null,null,null,null,null,null,null,null,null,null,null,1,1,1]
["Solárium",null,"Jiné",null,null,null,null,null,null,null,null,null,null,null,null,null,null,null,null,1,1,1]

{"sheet":"List_seznamy_bunky","index":15,"n_rows":53,"n_cols":10,"rows_kept":53,"cut":false,"hidden":true,"merged":[]}
["s provizí makléře","Roční"]
["bez provize makléře","Pololetní, bez přirážky za področní splátky"]
[null,"Čtvrtletní, bez přirážky za področní splátky"]
[null,"Měsíční, bez přirážky za področní splátky"]
["Přerušení provozu - info o riziku, výpočet PČ"]
["Ano","1 směna","Částečně","Nízká"]
["Ne","2 směny","Zcela","Střední"]
[null,"3 směny",null,"Vysoká"]
[]
["Živelní přerušení provozu"]
["Viz živelní pojištění majetku","Samostatné"]
["FLEXA","Kombinované s živelním pojištěním majetku"]
["Vyjmenovaná nebezpečí"]
[]
["Přerušení provozu  - technická rizika"]
["Viz pojištění strojů/ elektroniky","Samostatné","V jednotkách"]
[null,"Kombinované s pojištění strojů/ elektroniky","V tisících"]
[null,null,"V miliónech"]
["Stroje"]
["Území ČR","Elektronických prvků a základů","Elektronických prvků","Nová cena","Vlastní a cizí","All risk (technická rizika)","All risk (technická rizika)"]
["Území ČR a SR","Elektronických prvků",null,"První riziko - nová cena","Vlastní","All risk (technická rizika); Náraz, střet, havárie","All risk (technická rizika); Živel; Odcizení, vandalismus"]
["Území ČR a sousedních států","Základů",null,"Časová cena","Cizí","Náraz, střet, havárie","All risk (technická rizika); Živel; Odcizení, vandalismus; Náraz, střet, havárie,"]
["Území EU",null,null,"První riziko - časová cena",null,null,"All risk (technická rizika); Náraz, střet, havárie"]
["Území Evropy (geograficky)",null,null,"Jiná cena",null,null,"Živel; Odcizení, vandalismus; Náraz, střet, havárie"]
[null,null,null,"První riziko - jiná cena"]
[null,null,null,"Obvyklá cena"]
[null,null,null,"První  riziko - obvyklá cena"]
["Elektronika"]
["Území ČR","Základů","Příslušenství","Nová cena","Vlastní a cizí","All risk (technická rizika)","All risk (technická rizika)"]
["Území ČR a SR",null,null,"První riziko - nová cena","Vlastní",null,"All risk (technická rizika); Živel; Odcizení, vandalismus"]
["Území ČR a sousedních států",null,null,"Časová cena","Cizí"]
["Území EU",null,null,"První riziko - časová cena"]
["Území Evropy (geograficky)",null,null,"Jiná cena"]
[null,null,null,"První riziko - jiná cena"]
[null,null,null,"Obvyklá cena"]
[null,null,null,"První  riziko - obvyklá cena"]
["Majetek"]
["Vlastní","Vlastní","Nová cena","Obvyklá cena","All risk","Ano","Nová cena","Území ČR","První riziko - nová cena","První riziko - obvyklá cena"]
["Pronajaté","Vlastní a cizí","První riziko - nová cena","První riziko - obvyklá cena","Kompletní živel","Ne","První riziko - nová cena","Území ČR a SR","První riziko - časová cena","První riziko - jiná cena"]
["Vlastní i pronajaté","Cizí","Časová cena","Jiná cena","Vyjmenovaná nebezpečí",null,"K rozhodnému dni - nová cena","Území ČR a okolních států","První riziko - obvyklá cena"]
[null,"Vlastní a cizí","První riziko - časová cena","První riziko - jiná cena",null,null,null,"Území Evropy","První riziko - jiná cena"]
[null,"Vlastní","Obvyklá cena"]
[null,"Cizí","První riziko - obvyklá cena"]
[null,null,"Jiná cena"]
[null,null,"První riziko - jiná cena"]
[]
["Odpovědnost"]
["Česká republika","Ano","Vlastní oddělení","Vlastní výrobek","Hořlavý","Ano","Distribuovány","Pro konečného zákazníka","Od začátku do konce"]
["Česká republika a Slovensko","Ne","Oddělení zákazníka","Výrobek subdodavatele","Jedovatý","Ne","Distribuovány pod vlastní značkou","K dalšímu zpracování","Z polotovarů dodavatele"]
["Evropa (geograficky)",null,"Jiné způsoby",null,"Radioaktivní ",null,"Vyráběny"]
["Celý svět, vyjma USA a Kanady",null,null,"Velkosériová","Jinak nebezpečný"]
["Celý svět, včetně USA a Kanady",null,null,"Malosériová","Není nebezpečný"]
[null,null,null,"Kusová"]